Workbook

Sheet ALKU
B1: TIETOJA TÄSTÄ MALLISTA
B2: Tämän Liiketoiminnan kulubudjetti -työkirjan avulla voit seurata suunniteltuja ja todellisia kuluja sekä kustannuspoikkeamia.
B3: Kirjoita yrityksen nimi ja lisää logo.
B4: Kirjoita tiedot Suunnitellut kulut- ja Todelliset kulut -laskentataulukoihin.
B5: Kustannuspoikkeamat-laskentataulukon taulukot ja Kuluanalyysi-laskentataulukon kaaviot päivittyvät automaattisesti.
B6: Huomautus:
B7: Kunkin laskentataulukon sarakkeessa A annetaan lisäohjeita. Tämä teksti on piilotettu tarkoituksella. Jos haluat poistaa tekstin, valitse sarake A ja valitse sitten POISTA. Jos haluat tuoda tekstin näkyviin, valitse sarake A ja muuta sitten fonttiväriä.
B8: Jos haluat lisätietoja taulukoista, paina VAIHTO ja F10 taulukossa, valitse TAULUKKO-kohta ja valitse sitten VAIHTOEHTOINEN TEKSTI.

Sheet SUUNNITELLUT KULUT
A1: Kirjoita suunnitellut työntekijäkulut, toimistokulut, markkinointikulut ja koulutus- tai matkakulut tämän laskentataulukon taulukoihin. Summa lasketaan automaattisesti. Tämän sarakkeen soluissa on hyödyllisiä ohjeita tämän laskentataulukon käyttöön. Aloita siirtymällä nuolella alaspäin.
A2: Kirjoita yrityksen nimi oikealla olevaan soluun ja lisää logo soluun N2. Tämän laskentataulukon otsikko on solussa K2. | B2: Yrityksen nimi | K2: Yksityiskohtaiset kuluarviot | N2: Logon paikkamerkki on tässä solussa.
A3: Solussa K3 on vihje. | K3: Varjostetut solut ovat laskutoimituksia.
A4: Suunnitellut kulut -otsikko on oikealla olevassa solussa, kuukaudet soluissa C4–N4, Vuosi-otsikko solussa O4 ja tämän mallin käyttöohjeet solussa R4. | B4: SUUNNITELLUT KULUT | C4: TAMMI | D4: HELMI | E4: MAALIS | F4: HUHTI | G4: TOUKO | H4: KESÄ | I4: HEINÄ | J4: ELO | K4: SYYS | L4: LOKA | M4: MARRAS | N4: JOULU | O4: VUOSI | R4: Vihje: TÄMÄN MALLIN KÄYTTÖ Syötä tiedot SUUNNITELLUT KULUT- ja TODELLISET KULUT -laskentataulukoiden valkoisiin soluihin ja KUSTANNUSPOIKKEAMAT ja KULUANALYYSI lasketaan automaattisesti. Jos lisäät rivin yhteen taulukkoon, muiden taulukoiden on oltava yhteensopivat.
A5: Kirjoita työntekijäkulut Työntekijäsuunniteltu-taulukkoon oikealla olevasta solusta aloittaen. Seuraava ohje on solussa A10. | B5: Työntekijäkulut | C5: Tammi | D5: Helmi | E5: Maalis | F5: Huhti | G5: Touko | H5: Kesä | I5: Heinä | J5: Elo | K5: Syys | L5: Loka | M5: Marras | N5: Joulu | O5: VUOSI
B6: Palkat | C6: 85,000.00 € | D6: 85,000.00 € | E6: 85,000.00 € | F6: 87,500.00 € | G6: 87,500.00 € | H6: 87,500.00 € | I6: 87,500.00 € | J6: 92,400.00 € | K6: 92,400.00 € | L6: 92,400.00 € | M6: 92,400.00 € | N6: 92,400.00 € | O6: =SUM(C6:N6) -> 1,067,000.00 €
B7: Edut | C7: =C6*0.27 -> 22,950.00 € | D7: 22,950.00 € | E7: 22,950.00 € | F7: 23,625.00 € | G7: 23,625.00 € | H7: 23,625.00 € | I7: 23,625.00 € | J7: 24,948.00 € | K7: 24,948.00 € | L7: 24,948.00 € | M7: 24,948.00 € | N7: 24,948.00 € | O7: =SUM(C7:N7) -> 288,090.00 €
B8: Välisumma | C8: =SUBTOTAL(109,TyöntekijäSuunniteltu[Tammi]) -> 107,950.00 € | D8: =SUBTOTAL(109,TyöntekijäSuunniteltu[Helmi]) -> 107,950.00 € | E8: =SUBTOTAL(109,TyöntekijäSuunniteltu[Maalis]) -> 107,950.00 € | F8: =SUBTOTAL(109,TyöntekijäSuunniteltu[Huhti]) -> 111,125.00 € | G8: =SUBTOTAL(109,TyöntekijäSuunniteltu[Touko]) -> 111,125.00 € | H8: =SUBTOTAL(109,TyöntekijäSuunniteltu[Kesä]) -> 111,125.00 € | I8: =SUBTOTAL(109,TyöntekijäSuunniteltu[Heinä]) -> 111,125.00 € | J8: =SUBTOTAL(109,TyöntekijäSuunniteltu[Elo]) -> 117,348.00 € | K8: =SUBTOTAL(109,TyöntekijäSuunniteltu[Syys]) -> 117,348.00 € | L8: =SUBTOTAL(109,TyöntekijäSuunniteltu[Loka]) -> 117,348.00 € | M8: =SUBTOTAL(109,TyöntekijäSuunniteltu[Marras]) -> 117,348.00 € | N8: =SUBTOTAL(109,TyöntekijäSuunniteltu[Joulu]) -> 117,348.00 € | O8: =SUBTOTAL(109,TyöntekijäSuunniteltu[VUOSI]) -> 1,355,090.00 €
A10: Kirjoita toimistokulut Toimistosuunniteltu-taulukkoon oikealla olevasta solusta aloittaen. Seuraava ohje on solussa A21. | B10: Toimistokulut | C10: Tammi | D10: Helmi | E10: Maalis | F10: Huhti | G10: Touko | H10: Kesä | I10: Heinä | J10: Elo | K10: Syys | L10: Loka | M10: Marras | N10: Joulu | O10: VUOSI
B11: Toimiston vuokra | C11: 9,800.00 € | D11: 9,800.00 € | E11: 9,800.00 € | F11: 9,800.00 € | G11: 9,800.00 € | H11: 9,800.00 € | I11: 9,800.00 € | J11: 9,800.00 € | K11: 9,800.00 € | L11: 9,800.00 € | M11: 9,800.00 € | N11: 9,800.00 € | O11: =SUM(C11:N11) -> 117,600.00 €
B12: Lämmitys | D12: 400.00 € | E12: 400.00 € | F12: 100.00 € | G12: 100.00 € | H12: 100.00 € | I12: 100.00 € | J12: 100.00 € | K12: 100.00 € | L12: 100.00 € | M12: 400.00 € | N12: 400.00 € | O12: 2,300.00 €
B13: Sähkö | C13: 300.00 € | D13: 300.00 € | E13: 300.00 € | F13: 300.00 € | G13: 300.00 € | H13: 300.00 € | I13: 300.00 € | J13: 300.00 € | K13: 300.00 € | L13: 300.00 € | M13: 300.00 € | N13: 300.00 € | O13: 3,600.00 €
B14: Vesi | C14: 40.00 € | D14: 40.00 € | E14: 40.00 € | F14: 40.00 € | G14: 40.00 € | H14: 40.00 € | I14: 40.00 € | J14: 40.00 € | K14: 40.00 € | L14: 40.00 € | M14: 40.00 € | N14: 40.00 € | O14: 480.00 €
B15: Puhelin | C15: 250.00 € | D15: 250.00 € | E15: 250.00 € | F15: 250.00 € | G15: 250.00 € | H15: 250.00 € | I15: 250.00 € | J15: 250.00 € | K15: 250.00 € | L15: 250.00 € | M15: 250.00 € | N15: 250.00 € | O15: 3,000.00 €
B16: Internet-yhteys | C16: 180.00 € | D16: 180.00 € | E16: 180.00 € | F16: 180.00 € | G16: 180.00 € | H16: 180.00 € | I16: 180.00 € | J16: 180.00 € | K16: 180.00 € | L16: 180.00 € | M16: 180.00 € | N16: 180.00 € | O16: 2,160.00 €
B17: Toimistotarvikkeet | C17: 200.00 € | D17: 200.00 € | E17: 200.00 € | F17: 200.00 € | G17: 200.00 € | H17: 200.00 € | I17: 200.00 € | J17: 200.00 € | K17: 200.00 € | L17: 200.00 € | M17: 200.00 € | N17: 200.00 € | O17: 2,400.00 €
B18: Tietoturva | C18: 600.00 € | D18: 600.00 € | E18: 600.00 € | F18: 600.00 € | G18: 600.00 € | H18: 600.00 € | I18: 600.00 € | J18: 600.00 € | K18: 600.00 € | L18: 600.00 € | M18: 600.00 € | N18: 600.00 € | O18: 7,200.00 €
B19: Välisumma | C19: =SUBTOTAL(109,ToimistoSuunniteltu[Tammi]) -> 11,370.00 € | D19: =SUBTOTAL(109,ToimistoSuunniteltu[Helmi]) -> 11,770.00 € | E19: =SUBTOTAL(109,ToimistoSuunniteltu[Maalis]) -> 11,770.00 € | F19: =SUBTOTAL(109,ToimistoSuunniteltu[Huhti]) -> 11,470.00 € | G19: =SUBTOTAL(109,ToimistoSuunniteltu[Touko]) -> 11,470.00 € | H19: =SUBTOTAL(109,ToimistoSuunniteltu[Kesä]) -> 11,470.00 € | I19: =SUBTOTAL(109,ToimistoSuunniteltu[Heinä]) -> 11,470.00 € | J19: =SUBTOTAL(109,ToimistoSuunniteltu[Elo]) -> 11,470.00 € | K19: =SUBTOTAL(109,ToimistoSuunniteltu[Syys]) -> 11,470.00 € | L19: =SUBTOTAL(109,ToimistoSuunniteltu[Loka]) -> 11,470.00 € | M19: =SUBTOTAL(109,ToimistoSuunniteltu[Marras]) -> 11,770.00 € | N19: =SUBTOTAL(109,ToimistoSuunniteltu[Joulu]) -> 11,770.00 € | O19: =SUBTOTAL(109,ToimistoSuunniteltu[VUOSI]) -> 138,740.00 €
A21: Kirjoita markkinointikulut Markkinointisuunniteltu-taulukkoon oikealla olevasta solusta aloittaen. Seuraava ohje on solussa A30. | B21: Markkinointikulut | C21: Tammi | D21: Helmi | E21: Maalis | F21: Huhti | G21: Touko | H21: Kesä | I21: Heinä | J21: Elo | K21: Syys | L21: Loka | M21: Marras | N21: Joulu | O21: VUOSI
B22: Verkkosivuston isännöinti | C22: 500.00 € | D22: 500.00 € | E22: 500.00 € | F22: 500.00 € | G22: 500.00 € | H22: 500.00 € | I22: 500.00 € | J22: 500.00 € | K22: 500.00 € | L22: 500.00 € | M22: 500.00 € | N22: 500.00 € | O22: =SUM(C22:N22) -> 6,000.00 €
B23: Verkkosivuston päivitykset | C23: 200.00 € | D23: 200.00 € | E23: 200.00 € | F23: 200.00 € | G23: 200.00 € | H23: 1,000.00 € | I23: 200.00 € | J23: 200.00 € | K23: 200.00 € | L23: 200.00 € | M23: 200.00 € | N23: 1,000.00 € | O23: 4,000.00 €
B24: Oheismateriaalin valmistelu | C24: 5,000.00 € | D24: 0.00 € | E24: 0.00 € | F24: 5,000.00 € | G24: 0.00 € | H24: 0.00 € | I24: 5,000.00 € | J24: 0.00 € | K24: 0.00 € | L24: 5,000.00 € | M24: 0.00 € | N24: 0.00 € | O24: 20,000.00 €
B25: Oheismateriaalin tulostaminen | C25: 200.00 € | D25: 200.00 € | E25: 200.00 € | F25: 200.00 € | G25: 200.00 € | H25: 200.00 € | I25: 200.00 € | J25: 200.00 € | K25: 200.00 € | L25: 200.00 € | M25: 200.00 € | N25: 200.00 € | O25: 2,400.00 €
B26: Markkinointitapahtumat | C26: 2,000.00 € | D26: 2,000.00 € | E26: 2,000.00 € | F26: 5,000.00 € | G26: 2,000.00 € | H26: 2,000.00 € | I26: 2,000.00 € | J26: 5,000.00 € | K26: 2,000.00 € | L26: 2,000.00 € | M26: 2,000.00 € | N26: 5,000.00 € | O26: 33,000.00 €
B27: Sekalaiset kulut | C27: 200.00 € | D27: 200.00 € | E27: 200.00 € | F27: 200.00 € | G27: 200.00 € | H27: 200.00 € | I27: 200.00 € | J27: 200.00 € | K27: 200.00 € | L27: 200.00 € | M27: 200.00 € | N27: 200.00 € | O27: 2,400.00 €
B28: Välisumma | C28: =SUBTOTAL(109,MarkkinointiSuunniteltu[Tammi]) -> 8,100.00 € | D28: =SUBTOTAL(109,MarkkinointiSuunniteltu[Helmi]) -> 3,100.00 € | E28: =SUBTOTAL(109,MarkkinointiSuunniteltu[Maalis]) -> 3,100.00 € | F28: =SUBTOTAL(109,MarkkinointiSuunniteltu[Huhti]) -> 11,100.00 € | G28: =SUBTOTAL(109,MarkkinointiSuunniteltu[Touko]) -> 3,100.00 € | H28: =SUBTOTAL(109,MarkkinointiSuunniteltu[Kesä]) -> 3,900.00 € | I28: =SUBTOTAL(109,MarkkinointiSuunniteltu[Heinä]) -> 8,100.00 € | J28: =SUBTOTAL(109,MarkkinointiSuunniteltu[Elo]) -> 6,100.00 € | K28: =SUBTOTAL(109,MarkkinointiSuunniteltu[Syys]) -> 3,100.00 € | L28: =SUBTOTAL(109,MarkkinointiSuunniteltu[Loka]) -> 8,100.00 € | M28: =SUBTOTAL(109,MarkkinointiSuunniteltu[Marras]) -> 3,100.00 € | N28: =SUBTOTAL(109,MarkkinointiSuunniteltu[Joulu]) -> 6,900.00 € | O28: =SUBTOTAL(109,MarkkinointiSuunniteltu[VUOSI]) -> 67,800.00 €
A30: Kirjoita koulutus- ja matkakulut Koulutusjamatkasuunniteltu -taulukkoon oikealla olevasta solusta aloittaen. Seuraava ohje on solussa A35. | B30: Koulutus/matka | C30: Tammi | D30: Helmi | E30: Maalis | F30: Huhti | G30: Touko | H30: Kesä | I30: Heinä | J30: Elo | K30: Syys | L30: Loka | M30: Marras | N30: Joulu | O30: VUOSI
B31: Koulutuskurssit | C31: 2,000.00 € | D31: 2,000.00 € | E31: 2,000.00 € | F31: 2,000.00 € | G31: 2,000.00 € | H31: 2,000.00 € | I31: 2,000.00 € | J31: 2,000.00 € | K31: 2,000.00 € | L31: 2,000.00 € | M31: 2,000.00 € | N31: 2,000.00 € | O31: =SUM(C31:N31) -> 24,000.00 €
B32: Koulutukseen liittyvät matkakulut | C32: 2,000.00 € | D32: 2,000.00 € | E32: 2,000.00 € | F32: 2,000.00 € | G32: 2,000.00 € | H32: 2,000.00 € | I32: 2,000.00 € | J32: 2,000.00 € | K32: 2,000.00 € | L32: 2,000.00 € | M32: 2,000.00 € | N32: 2,000.00 € | O32: =SUM(C32:N32) -> 24,000.00 €
B33: Välisumma | C33: =SUBTOTAL(109,KoulutusJaMatkaSuunniteltu[Tammi]) -> 4,000.00 € | D33: =SUBTOTAL(109,KoulutusJaMatkaSuunniteltu[Helmi]) -> 4,000.00 € | E33: =SUBTOTAL(109,KoulutusJaMatkaSuunniteltu[Maalis]) -> 4,000.00 € | F33: =SUBTOTAL(109,KoulutusJaMatkaSuunniteltu[Huhti]) -> 4,000.00 € | G33: =SUBTOTAL(109,KoulutusJaMatkaSuunniteltu[Touko]) -> 4,000.00 € | H33: =SUBTOTAL(109,KoulutusJaMatkaSuunniteltu[Kesä]) -> 4,000.00 € | I33: =SUBTOTAL(109,KoulutusJaMatkaSuunniteltu[Heinä]) -> 4,000.00 € | J33: =SUBTOTAL(109,KoulutusJaMatkaSuunniteltu[Elo]) -> 4,000.00 € | K33: =SUBTOTAL(109,KoulutusJaMatkaSuunniteltu[Syys]) -> 4,000.00 € | L33: =SUBTOTAL(109,KoulutusJaMatkaSuunniteltu[Loka]) -> 4,000.00 € | M33: =SUBTOTAL(109,KoulutusJaMatkaSuunniteltu[Marras]) -> 4,000.00 € | N33: =SUBTOTAL(109,KoulutusJaMatkaSuunniteltu[Joulu]) -> 4,000.00 € | O33: =SUBTOTAL(109,KoulutusJaMatkaSuunniteltu[VUOSI]) -> 48,000.00 €
A35: Summa lasketaan automaattisesti Suunniteltu yhteissumma -taulukkoon oikealla olevasta solusta aloittaen. | B35: SUMMA | C35: Tammi | D35: Helmi | E35: Maalis | F35: Huhti | G35: Touko | H35: Kesä | I35: Heinä | J35: Elo | K35: Syys | L35: Loka | M35: Marras | N35: Joulu | O35: Vuosi
B36: Kuukausittaiset suunnitellut kulut | C36: =KoulutusJaMatkaSuunniteltu[[#Totals],[Tammi]]+MarkkinointiSuunniteltu[[#Totals],[Tammi]]+ToimistoSuunniteltu[[#Totals],[Tammi]]+TyöntekijäSuunniteltu[[#Totals],[Tammi]] -> 131,420.00 € | D36: =KoulutusJaMatkaSuunniteltu[[#Totals],[Helmi]]+MarkkinointiSuunniteltu[[#Totals],[Helmi]]+ToimistoSuunniteltu[[#Totals],[Helmi]]+TyöntekijäSuunniteltu[[#Totals],[Helmi]] -> 126,820.00 € | E36: =KoulutusJaMatkaSuunniteltu[[#Totals],[Maalis]]+MarkkinointiSuunniteltu[[#Totals],[Maalis]]+ToimistoSuunniteltu[[#Totals],[Maalis]]+TyöntekijäSuunniteltu[[#Totals],[Maalis]] -> 126,820.00 € | F36: =KoulutusJaMatkaSuunniteltu[[#Totals],[Huhti]]+MarkkinointiSuunniteltu[[#Totals],[Huhti]]+ToimistoSuunniteltu[[#Totals],[Huhti]]+TyöntekijäSuunniteltu[[#Totals],[Huhti]] -> 137,695.00 € | G36: =KoulutusJaMatkaSuunniteltu[[#Totals],[Touko]]+MarkkinointiSuunniteltu[[#Totals],[Touko]]+ToimistoSuunniteltu[[#Totals],[Touko]]+TyöntekijäSuunniteltu[[#Totals],[Touko]] -> 129,695.00 € | H36: =KoulutusJaMatkaSuunniteltu[[#Totals],[Kesä]]+MarkkinointiSuunniteltu[[#Totals],[Kesä]]+ToimistoSuunniteltu[[#Totals],[Kesä]]+TyöntekijäSuunniteltu[[#Totals],[Kesä]] -> 130,495.00 € | I36: =KoulutusJaMatkaSuunniteltu[[#Totals],[Heinä]]+MarkkinointiSuunniteltu[[#Totals],[Heinä]]+ToimistoSuunniteltu[[#Totals],[Heinä]]+TyöntekijäSuunniteltu[[#Totals],[Heinä]] -> 134,695.00 € | J36: =KoulutusJaMatkaSuunniteltu[[#Totals],[Elo]]+MarkkinointiSuunniteltu[[#Totals],[Elo]]+ToimistoSuunniteltu[[#Totals],[Elo]]+TyöntekijäSuunniteltu[[#Totals],[Elo]] -> 138,918.00 € | K36: =KoulutusJaMatkaSuunniteltu[[#Totals],[Syys]]+MarkkinointiSuunniteltu[[#Totals],[Syys]]+ToimistoSuunniteltu[[#Totals],[Syys]]+TyöntekijäSuunniteltu[[#Totals],[Syys]] -> 135,918.00 € | L36: =KoulutusJaMatkaSuunniteltu[[#Totals],[Loka]]+MarkkinointiSuunniteltu[[#Totals],[Loka]]+ToimistoSuunniteltu[[#Totals],[Loka]]+TyöntekijäSuunniteltu[[#Totals],[Loka]] -> 140,918.00 € | M36: =KoulutusJaMatkaSuunniteltu[[#Totals],[Marras]]+MarkkinointiSuunniteltu[[#Totals],[Marras]]+ToimistoSuunniteltu[[#Totals],[Marras]]+TyöntekijäSuunniteltu[[#Totals],[Marras]] -> 136,218.00 € | N36: =KoulutusJaMatkaSuunniteltu[[#Totals],[Joulu]]+MarkkinointiSuunniteltu[[#Totals],[Joulu]]+ToimistoSuunniteltu[[#Totals],[Joulu]]+TyöntekijäSuunniteltu[[#Totals],[Joulu]] -> 140,018.00 € | O36: =KoulutusJaMatkaSuunniteltu[[#Totals],[VUOSI]]+MarkkinointiSuunniteltu[[#Totals],[VUOSI]]+ToimistoSuunniteltu[[#Totals],[VUOSI]]+TyöntekijäSuunniteltu[[#Totals],[VUOSI]] -> 1,609,630.00 €
B37: YHTEENSÄ Suunnitellut kulut | C37: =SUM($C$36:C36) -> 131,420.00 € | D37: =SUM($C$36:D36) -> 258,240.00 € | E37: =SUM($C$36:E36) -> 385,060.00 € | F37: =SUM($C$36:F36) -> 522,755.00 € | G37: =SUM($C$36:G36) -> 652,450.00 € | H37: =SUM($C$36:H36) -> 782,945.00 € | I37: =SUM($C$36:I36) -> 917,640.00 € | J37: =SUM($C$36:J36) -> 1,056,558.00 € | K37: =SUM($C$36:K36) -> 1,192,476.00 € | L37: =SUM($C$36:L36) -> 1,333,394.00 € | M37: =SUM($C$36:M36) -> 1,469,612.00 € | N37: =SUM($C$36:N36) -> 1,609,630.00 €

Sheet TODELLISET KULUT
A1: Kirjoita todelliset työntekijäkulut, toimistokulut, markkinointikulut ja koulutus- tai matkakulut tämän laskentataulukon taulukoihin. Yhteissummat lasketaan automaattisesti. Tämän sarakkeen soluissa on hyödyllisiä ohjeita tämän laskentataulukon käyttöön. Aloita siirtymällä nuolella alaspäin.
A2: Yrityksen nimi päivitetään automaattisesti oikealla olevaan soluun. Tämän laskentataulukon otsikko on solussa K2. Lisää logo soluun N2. | B2: ='SUUNNITELLUT KULUT'!B2:D3 -> Yrityksen nimi | K2: =laskentataulukon_otsikko -> Yksityiskohtaiset kuluarviot | N2: Logon paikkamerkki on tässä solussa.
A3: Solussa K3 on vihje. | K3: Varjostetut solut ovat laskutoimituksia.
A4: Todelliset kulut -otsikko on oikealla olevassa solussa, kuukaudet soluissa C4–N4 ja Vuosi-otsikko solussa O4. | B4: TODELLISET KULUT | C4: TAMMI | D4: HELMI | E4: MAALIS | F4: HUHTI | G4: TOUKO | H4: KESÄ | I4: HEINÄ | J4: ELO | K4: SYYS | L4: LOKA | M4: MARRAS | N4: JOULU | O4: VUOSI
A5: Kirjoita työntekijäkulut Työntekijä, todellinen -taulukkoon oikealla olevasta solusta aloittaen. Seuraava ohje on solussa A10. | B5: Työntekijäkulut | C5: Tammi | D5: Helmi | E5: Maalis | F5: Huhti | G5: Touko | H5: Kesä | I5: Heinä | J5: Elo | K5: Syys | L5: Loka | M5: Marras | N5: Joulu | O5: VUOSI
B6: Palkat | C6: 85,000.00 € | D6: 85,000.00 € | E6: 85,000.00 € | F6: 88,000.00 € | G6: 88,000.00 € | H6: 88,000.00 € | O6: =SUM(C6:N6) -> 519,000.00 €
B7: Edut | C7: =C6*0.27 -> 22,950.00 € | D7: 22,950.00 € | E7: 22,950.00 € | F7: 23,760.00 € | G7: 23,760.00 € | H7: 23,760.00 € | I7: 0.00 € | J7: 0.00 € | K7: 0.00 € | L7: 0.00 € | M7: 0.00 € | N7: 0.00 € | O7: =SUM(C7:N7) -> 140,130.00 €
B8: Välisumma | C8: =SUBTOTAL(109,TyöntekijäTodellinen[Tammi]) -> 107,950.00 € | D8: =SUBTOTAL(109,TyöntekijäTodellinen[Helmi]) -> 107,950.00 € | E8: =SUBTOTAL(109,TyöntekijäTodellinen[Maalis]) -> 107,950.00 € | F8: =SUBTOTAL(109,TyöntekijäTodellinen[Huhti]) -> 111,760.00 € | G8: =SUBTOTAL(109,TyöntekijäTodellinen[Touko]) -> 111,760.00 € | H8: =SUBTOTAL(109,TyöntekijäTodellinen[Kesä]) -> 111,760.00 € | I8: =SUBTOTAL(109,TyöntekijäTodellinen[Heinä]) -> 0.00 € | J8: =SUBTOTAL(109,TyöntekijäTodellinen[Elo]) -> 0.00 € | K8: =SUBTOTAL(109,TyöntekijäTodellinen[Syys]) -> 0.00 € | L8: =SUBTOTAL(109,TyöntekijäTodellinen[Loka]) -> 0.00 € | M8: =SUBTOTAL(109,TyöntekijäTodellinen[Marras]) -> 0.00 € | N8: =SUBTOTAL(109,TyöntekijäTodellinen[Joulu]) -> 0.00 € | O8: =SUBTOTAL(109,TyöntekijäTodellinen[VUOSI]) -> 659,130.00 €
A10: Kirjoita toimistokulut Toimisto, todellinen -taulukkoon oikealla olevasta solusta aloittaen. Seuraava ohje on solussa A21. | B10: Toimistokulut | C10: Tammi | D10: Helmi | E10: Maalis | F10: Huhti | G10: Touko | H10: Kesä | I10: Heinä | J10: Elo | K10: Syys | L10: Loka | M10: Marras | N10: Joulu | O10: VUOSI
B11: Toimiston vuokra | C11: 9,800.00 € | D11: 9,800.00 € | E11: 9,800.00 € | F11: 9,800.00 € | G11: 9,800.00 € | H11: 9,800.00 € | O11: =SUM(C11:N11) -> 58,800.00 €
B12: Lämmitys | C12: 4.00 € | D12: 430.00 € | E12: 385.00 € | F12: 230.00 € | G12: 87.00 € | H12: 88.00 € | O12: 1,224.00 €
B13: Sähkö | C13: 288.00 € | D13: 278.00 € | E13: 268.00 € | F13: 299.00 € | G13: 306.00 € | H13: 290.00 € | O13: 1,729.00 €
B14: Vesi | C14: 35.00 € | D14: 33.00 € | E14: 34.00 € | F14: 36.00 € | G14: 34.00 € | H14: 36.00 € | O14: 208.00 €
B15: Puhelin | C15: 224.00 € | D15: 235.00 € | E15: 265.00 € | F15: 245.00 € | G15: 245.00 € | H15: 220.00 € | O15: 1,434.00 €
B16: Internet-yhteys | C16: 180.00 € | D16: 180.00 € | E16: 180.00 € | F16: 180.00 € | G16: 180.00 € | H16: 180.00 € | O16: 1,080.00 €
B17: Toimistotarvikkeet | C17: 256.00 € | D17: 142.00 € | E17: 160.00 € | F17: 221.00 € | G17: 256.00 € | H17: 240.00 € | O17: 1,275.00 €
B18: Tietoturva | C18: 600.00 € | D18: 600.00 € | E18: 600.00 € | F18: 600.00 € | G18: 600.00 € | H18: 600.00 € | O18: 3,600.00 €
B19: Välisumma | C19: =SUBTOTAL(109,ToimistoTodellinen[Tammi]) -> 11,387.00 € | D19: =SUBTOTAL(109,ToimistoTodellinen[Helmi]) -> 11,698.00 € | E19: =SUBTOTAL(109,ToimistoTodellinen[Maalis]) -> 11,692.00 € | F19: =SUBTOTAL(109,ToimistoTodellinen[Huhti]) -> 11,611.00 € | G19: =SUBTOTAL(109,ToimistoTodellinen[Touko]) -> 11,508.00 € | H19: =SUBTOTAL(109,ToimistoTodellinen[Kesä]) -> 11,454.00 € | I19: =SUBTOTAL(109,ToimistoTodellinen[Heinä]) -> 0.00 € | J19: =SUBTOTAL(109,ToimistoTodellinen[Elo]) -> 0.00 € | K19: =SUBTOTAL(109,ToimistoTodellinen[Syys]) -> 0.00 € | L19: =SUBTOTAL(109,ToimistoTodellinen[Loka]) -> 0.00 € | M19: =SUBTOTAL(109,ToimistoTodellinen[Marras]) -> 0.00 € | N19: =SUBTOTAL(109,ToimistoTodellinen[Joulu]) -> 0.00 € | O19: =SUBTOTAL(109,ToimistoTodellinen[VUOSI]) -> 69,350.00 €
A21: Kirjoita markkinointikulut Markkinointi, todellinen -taulukkoon oikealla olevasta solusta aloittaen. Seuraava ohje on solussa A30. | B21: Markkinointikulut | C21: Tammi | D21: Helmi | E21: Maalis | F21: Huhti | G21: Touko | H21: Kesä | I21: Heinä | J21: Elo | K21: Syys | L21: Loka | M21: Marras | N21: Joulu | O21: VUOSI
B22: Verkkosivuston isännöinti | C22: 500.00 € | D22: 500.00 € | E22: 500.00 € | F22: 500.00 € | G22: 500.00 € | H22: 500.00 € | O22: =SUM(C22:N22) -> 3,000.00 €
B23: Verkkosivuston päivitykset | C23: 200.00 € | D23: 200.00 € | E23: 200.00 € | F23: 200.00 € | G23: 200.00 € | H23: 1,500.00 € | O23: 2,500.00 €
B24: Oheismateriaalin valmistelu | C24: 4,800.00 € | D24: 0.00 € | E24: 0.00 € | F24: 5,500.00 € | G24: 0.00 € | H24: 0.00 € | O24: 10,300.00 €
B25: Oheismateriaalin tulostaminen | C25: 100.00 € | D25: 500.00 € | E25: 100.00 € | F25: 100.00 € | G25: 600.00 € | H25: 180.00 € | O25: 1,580.00 €
B26: Markkinointitapahtumat | C26: 1,800.00 € | D26: 2,200.00 € | E26: 2,200.00 € | F26: 4,700.00 € | G26: 1,500.00 € | H26: 2,300.00 € | O26: 14,700.00 €
B27: Sekalaiset kulut | C27: 145.00 € | D27: 156.00 € | E27: 123.00 € | F27: 223.00 € | G27: 187.00 € | H27: 245.00 € | O27: 1,079.00 €
B28: Välisumma | C28: =SUBTOTAL(109,MarkkinointiTodellinen[Tammi]) -> 7,545.00 € | D28: =SUBTOTAL(109,MarkkinointiTodellinen[Helmi]) -> 3,556.00 € | E28: =SUBTOTAL(109,MarkkinointiTodellinen[Maalis]) -> 3,123.00 € | F28: =SUBTOTAL(109,MarkkinointiTodellinen[Huhti]) -> 11,223.00 € | G28: =SUBTOTAL(109,MarkkinointiTodellinen[Touko]) -> 2,987.00 € | H28: =SUBTOTAL(109,MarkkinointiTodellinen[Kesä]) -> 4,725.00 € | I28: =SUBTOTAL(109,MarkkinointiTodellinen[Heinä]) -> 0.00 € | J28: =SUBTOTAL(109,MarkkinointiTodellinen[Elo]) -> 0.00 € | K28: =SUBTOTAL(109,MarkkinointiTodellinen[Syys]) -> 0.00 € | L28: =SUBTOTAL(109,MarkkinointiTodellinen[Loka]) -> 0.00 € | M28: =SUBTOTAL(109,MarkkinointiTodellinen[Marras]) -> 0.00 € | N28: =SUBTOTAL(109,MarkkinointiTodellinen[Joulu]) -> 0.00 € | O28: =SUBTOTAL(109,MarkkinointiTodellinen[VUOSI]) -> 33,159.00 €
A30: Kirjoita koulutus- tai matkakulut Koulutus- ja matka, todellinen -taulukkoon oikealla olevasta solusta aloittaen. Seuraava ohje on solussa A35. | B30: Koulutus/matka | C30: Tammi | D30: Helmi | E30: Maalis | F30: Huhti | G30: Touko | H30: Kesä | I30: Heinä | J30: Elo | K30: Syys | L30: Loka | M30: Marras | N30: Joulu | O30: VUOSI
B31: Koulutuskurssit | C31: 1,600.00 € | D31: 2,400.00 € | E31: 1,400.00 € | F31: 1,600.00 € | G31: 1,200.00 € | H31: 2,800.00 € | O31: =SUM(C31:N31) -> 11,000.00 €
B32: Koulutukseen liittyvät matkakulut | C32: 1,200.00 € | D32: 2,200.00 € | E32: 1,400.00 € | F32: 1,200.00 € | G32: 800.00 € | H32: 3,500.00 € | O32: =SUM(C32:N32) -> 10,300.00 €
B33: Välisumma | C33: =SUBTOTAL(109,KoulutusJaMatkaTodellinen[Tammi]) -> 2,800.00 € | D33: =SUBTOTAL(109,KoulutusJaMatkaTodellinen[Helmi]) -> 4,600.00 € | E33: =SUBTOTAL(109,KoulutusJaMatkaTodellinen[Maalis]) -> 2,800.00 € | F33: =SUBTOTAL(109,KoulutusJaMatkaTodellinen[Huhti]) -> 2,800.00 € | G33: =SUBTOTAL(109,KoulutusJaMatkaTodellinen[Touko]) -> 2,000.00 € | H33: =SUBTOTAL(109,KoulutusJaMatkaTodellinen[Kesä]) -> 6,300.00 € | I33: =SUBTOTAL(109,KoulutusJaMatkaTodellinen[Heinä]) -> 0.00 € | J33: =SUBTOTAL(109,KoulutusJaMatkaTodellinen[Elo]) -> 0.00 € | K33: =SUBTOTAL(109,KoulutusJaMatkaTodellinen[Syys]) -> 0.00 € | L33: =SUBTOTAL(109,KoulutusJaMatkaTodellinen[Loka]) -> 0.00 € | M33: =SUBTOTAL(109,KoulutusJaMatkaTodellinen[Marras]) -> 0.00 € | N33: =SUBTOTAL(109,KoulutusJaMatkaTodellinen[Joulu]) -> 0.00 € | O33: =SUBTOTAL(109,KoulutusJaMatkaTodellinen[VUOSI]) -> 21,300.00 €
A35: Todellisten kulujen yhteissummat lasketaan automaattisesti Todelliset yhteensä -taulukkoon oikealla olevasta solusta aloittaen. | B35: YHTEENSÄ Suunnitellut kulut | C35: Tammi | D35: Helmi | E35: Maalis | F35: Huhti | G35: Touko | H35: Kesä | I35: Heinä | J35: Elo | K35: Syys | L35: Loka | M35: Marras | N35: Joulu | O35: Vuosi
B36: Kuukausittaiset todelliset kulut | C36: =KoulutusJaMatkaTodellinen[[#Totals],[Tammi]]+MarkkinointiTodellinen[[#Totals],[Tammi]]+ToimistoTodellinen[[#Totals],[Tammi]]+TyöntekijäTodellinen[[#Totals],[Tammi]] -> 129,682.00 € | D36: =KoulutusJaMatkaTodellinen[[#Totals],[Helmi]]+MarkkinointiTodellinen[[#Totals],[Helmi]]+ToimistoTodellinen[[#Totals],[Helmi]]+TyöntekijäTodellinen[[#Totals],[Helmi]] -> 127,804.00 € | E36: =KoulutusJaMatkaTodellinen[[#Totals],[Maalis]]+MarkkinointiTodellinen[[#Totals],[Maalis]]+ToimistoTodellinen[[#Totals],[Maalis]]+TyöntekijäTodellinen[[#Totals],[Maalis]] -> 125,565.00 € | F36: =KoulutusJaMatkaTodellinen[[#Totals],[Huhti]]+MarkkinointiTodellinen[[#Totals],[Huhti]]+ToimistoTodellinen[[#Totals],[Huhti]]+TyöntekijäTodellinen[[#Totals],[Huhti]] -> 137,394.00 € | G36: =KoulutusJaMatkaTodellinen[[#Totals],[Touko]]+MarkkinointiTodellinen[[#Totals],[Touko]]+ToimistoTodellinen[[#Totals],[Touko]]+TyöntekijäTodellinen[[#Totals],[Touko]] -> 128,255.00 € | H36: =KoulutusJaMatkaTodellinen[[#Totals],[Kesä]]+MarkkinointiTodellinen[[#Totals],[Kesä]]+ToimistoTodellinen[[#Totals],[Kesä]]+TyöntekijäTodellinen[[#Totals],[Kesä]] -> 134,239.00 € | I36: =KoulutusJaMatkaTodellinen[[#Totals],[Heinä]]+MarkkinointiTodellinen[[#Totals],[Heinä]]+ToimistoTodellinen[[#Totals],[Heinä]]+TyöntekijäTodellinen[[#Totals],[Heinä]] -> 0.00 € | J36: =KoulutusJaMatkaTodellinen[[#Totals],[Elo]]+MarkkinointiTodellinen[[#Totals],[Elo]]+ToimistoTodellinen[[#Totals],[Elo]]+TyöntekijäTodellinen[[#Totals],[Elo]] -> 0.00 € | K36: =KoulutusJaMatkaTodellinen[[#Totals],[Syys]]+MarkkinointiTodellinen[[#Totals],[Syys]]+ToimistoTodellinen[[#Totals],[Syys]]+TyöntekijäTodellinen[[#Totals],[Syys]] -> 0.00 € | L36: =KoulutusJaMatkaTodellinen[[#Totals],[Loka]]+MarkkinointiTodellinen[[#Totals],[Loka]]+ToimistoTodellinen[[#Totals],[Loka]]+TyöntekijäTodellinen[[#Totals],[Loka]] -> 0.00 € | M36: =KoulutusJaMatkaTodellinen[[#Totals],[Marras]]+MarkkinointiTodellinen[[#Totals],[Marras]]+ToimistoTodellinen[[#Totals],[Marras]]+TyöntekijäTodellinen[[#Totals],[Marras]] -> 0.00 € | N36: =KoulutusJaMatkaTodellinen[[#Totals],[Joulu]]+MarkkinointiTodellinen[[#Totals],[Joulu]]+ToimistoTodellinen[[#Totals],[Joulu]]+TyöntekijäTodellinen[[#Totals],[Joulu]] -> 0.00 € | O36: =KoulutusJaMatkaTodellinen[[#Totals],[VUOSI]]+MarkkinointiTodellinen[[#Totals],[VUOSI]]+ToimistoTodellinen[[#Totals],[VUOSI]]+TyöntekijäTodellinen[[#Totals],[VUOSI]] -> 782,939.00 €
B37: YHTEENSÄ Todelliset kulut | C37: =SUM($C$36:C36) -> 129,682.00 € | D37: =SUM($C$36:D36) -> 257,486.00 € | E37: =SUM($C$36:E36) -> 383,051.00 € | F37: =SUM($C$36:F36) -> 520,445.00 € | G37: =SUM($C$36:G36) -> 648,700.00 € | H37: =SUM($C$36:H36) -> 782,939.00 € | I37: =SUM($C$36:I36) -> 782,939.00 € | J37: =SUM($C$36:J36) -> 782,939.00 € | K37: =SUM($C$36:K36) -> 782,939.00 € | L37: =SUM($C$36:L36) -> 782,939.00 € | M37: =SUM($C$36:M36) -> 782,939.00 € | N37: =SUM($C$36:N36) -> 782,939.00 €

Sheet KUSTANNUSPOIKKEAMAT
A1: Työntekijäkulut, toimistokulut, markkinointikulut ja koulutus- tai matkakulujen kustannuspoikkeamat lasketaan automaattisesti tämän laskentataulukon taulukoihin. Tämän sarakkeen soluissa on hyödyllisiä ohjeita tämän laskentataulukon käyttöön. Aloita siirtymällä nuolella alaspäin.
A2: Yrityksen nimi päivitetään automaattisesti oikealla olevaan soluun. Tämän laskentataulukon otsikko on solussa K2. Lisää logo soluun N2. | B2: ='SUUNNITELLUT KULUT'!B2:D3 -> Yrityksen nimi | K2: =laskentataulukon_otsikko -> Yksityiskohtaiset kuluarviot | N2: Logon paikkamerkki on tässä solussa.
A3: Solussa K3 on vihje. | K3: Varjostetut solut ovat laskutoimituksia.
A4: Kustannuspoikkeamat-otsikko on oikealla olevassa solussa, kuukaudet soluissa C4–N4 ja Vuosi-otsikko solussa O4. | B4: KUSTANNUSPOIKKEAMAT | C4: TAMMI | D4: HELMI | E4: MAALIS | F4: HUHTI | G4: TOUKO | H4: KESÄ | I4: HEINÄ | J4: ELO | K4: SYYS | L4: LOKA | M4: MARRAS | N4: JOULU | O4: VUOSI
A5: Työntekijäkulut poikkeama lasketaan automaattisesti Työntekijäpoikkeamat-taulukkoon oikealla olevasta solusta aloittaen. Seuraava ohje on solussa A10. | B5: Työntekijäkulut | C5: Tammi | D5: Helmi | E5: Maalis | F5: Huhti | G5: Touko | H5: Kesä | I5: Heinä | J5: Elo | K5: Syys | L5: Loka | M5: Marras | N5: Joulu | O5: VUOSI
B6: Palkat | C6: =INDEX(TyöntekijäSuunniteltu[],MATCH(INDEX(Työntekijäpoikkeamat[],ROW()-ROW(Työntekijäpoikkeamat[[#Headers],[Tammi]]),1),INDEX(TyöntekijäSuunniteltu[],,1),0),MATCH(Työntekijäpoikkeamat[[#Headers],[Tammi]],TyöntekijäSuunniteltu[#Headers],0))-INDEX(TyöntekijäTodellinen[],MATCH(INDEX(Työntekijäpoikkeamat[],ROW()-ROW(Työntekijäpoikkeamat[[#Headers],[Tammi]]),1),INDEX(TyöntekijäSuunniteltu[],,1),0),MATCH(Työntekijäpoikkeamat[[#Headers],[Tammi]],TyöntekijäTodellinen[#Headers],0)) -> 0.00 € | D6: =INDEX(TyöntekijäSuunniteltu[],MATCH(INDEX(Työntekijäpoikkeamat[],ROW()-ROW(Työntekijäpoikkeamat[[#Headers],[Helmi]]),1),INDEX(TyöntekijäSuunniteltu[],,1),0),MATCH(Työntekijäpoikkeamat[[#Headers],[Helmi]],TyöntekijäSuunniteltu[#Headers],0))-INDEX(TyöntekijäTodellinen[],MATCH(INDEX(Työntekijäpoikkeamat[],ROW()-ROW(Työntekijäpoikkeamat[[#Headers],[Helmi]]),1),INDEX(TyöntekijäSuunniteltu[],,1),0),MATCH(Työntekijäpoikkeamat[[#Headers],[Helmi]],TyöntekijäTodellinen[#Headers],0)) -> 0.00 € | E6: =INDEX(TyöntekijäSuunniteltu[],MATCH(INDEX(Työntekijäpoikkeamat[],ROW()-ROW(Työntekijäpoikkeamat[[#Headers],[Maalis]]),1),INDEX(TyöntekijäSuunniteltu[],,1),0),MATCH(Työntekijäpoikkeamat[[#Headers],[Maalis]],TyöntekijäSuunniteltu[#Headers],0))-INDEX(TyöntekijäTodellinen[],MATCH(INDEX(Työntekijäpoikkeamat[],ROW()-ROW(Työntekijäpoikkeamat[[#Headers],[Maalis]]),1),INDEX(TyöntekijäSuunniteltu[],,1),0),MATCH(Työntekijäpoikkeamat[[#Headers],[Maalis]],TyöntekijäTodellinen[#Headers],0)) -> 0.00 € | F6: =INDEX(TyöntekijäSuunniteltu[],MATCH(INDEX(Työntekijäpoikkeamat[],ROW()-ROW(Työntekijäpoikkeamat[[#Headers],[Huhti]]),1),INDEX(TyöntekijäSuunniteltu[],,1),0),MATCH(Työntekijäpoikkeamat[[#Headers],[Huhti]],TyöntekijäSuunniteltu[#Headers],0))-INDEX(TyöntekijäTodellinen[],MATCH(INDEX(Työntekijäpoikkeamat[],ROW()-ROW(Työntekijäpoikkeamat[[#Headers],[Huhti]]),1),INDEX(TyöntekijäSuunniteltu[],,1),0),MATCH(Työntekijäpoikkeamat[[#Headers],[Huhti]],TyöntekijäTodellinen[#Headers],0)) -> -500.00 € | G6: =INDEX(TyöntekijäSuunniteltu[],MATCH(INDEX(Työntekijäpoikkeamat[],ROW()-ROW(Työntekijäpoikkeamat[[#Headers],[Touko]]),1),INDEX(TyöntekijäSuunniteltu[],,1),0),MATCH(Työntekijäpoikkeamat[[#Headers],[Touko]],TyöntekijäSuunniteltu[#Headers],0))-INDEX(TyöntekijäTodellinen[],MATCH(INDEX(Työntekijäpoikkeamat[],ROW()-ROW(Työntekijäpoikkeamat[[#Headers],[Touko]]),1),INDEX(TyöntekijäSuunniteltu[],,1),0),MATCH(Työntekijäpoikkeamat[[#Headers],[Touko]],TyöntekijäTodellinen[#Headers],0)) -> -500.00 € | H6: =INDEX(TyöntekijäSuunniteltu[],MATCH(INDEX(Työntekijäpoikkeamat[],ROW()-ROW(Työntekijäpoikkeamat[[#Headers],[Kesä]]),1),INDEX(TyöntekijäSuunniteltu[],,1),0),MATCH(Työntekijäpoikkeamat[[#Headers],[Kesä]],TyöntekijäSuunniteltu[#Headers],0))-INDEX(TyöntekijäTodellinen[],MATCH(INDEX(Työntekijäpoikkeamat[],ROW()-ROW(Työntekijäpoikkeamat[[#Headers],[Kesä]]),1),INDEX(TyöntekijäSuunniteltu[],,1),0),MATCH(Työntekijäpoikkeamat[[#Headers],[Kesä]],TyöntekijäTodellinen[#Headers],0)) -> -500.00 € | I6: =INDEX(TyöntekijäSuunniteltu[],MATCH(INDEX(Työntekijäpoikkeamat[],ROW()-ROW(Työntekijäpoikkeamat[[#Headers],[Heinä]]),1),INDEX(TyöntekijäSuunniteltu[],,1),0),MATCH(Työntekijäpoikkeamat[[#Headers],[Heinä]],TyöntekijäSuunniteltu[#Headers],0))-INDEX(TyöntekijäTodellinen[],MATCH(INDEX(Työntekijäpoikkeamat[],ROW()-ROW(Työntekijäpoikkeamat[[#Headers],[Heinä]]),1),INDEX(TyöntekijäSuunniteltu[],,1),0),MATCH(Työntekijäpoikkeamat[[#Headers],[Heinä]],TyöntekijäTodellinen[#Headers],0)) -> 87,500.00 € | J6: =INDEX(TyöntekijäSuunniteltu[],MATCH(INDEX(Työntekijäpoikkeamat[],ROW()-ROW(Työntekijäpoikkeamat[[#Headers],[Elo]]),1),INDEX(TyöntekijäSuunniteltu[],,1),0),MATCH(Työntekijäpoikkeamat[[#Headers],[Elo]],TyöntekijäSuunniteltu[#Headers],0))-INDEX(TyöntekijäTodellinen[],MATCH(INDEX(Työntekijäpoikkeamat[],ROW()-ROW(Työntekijäpoikkeamat[[#Headers],[Elo]]),1),INDEX(TyöntekijäSuunniteltu[],,1),0),MATCH(Työntekijäpoikkeamat[[#Headers],[Elo]],TyöntekijäTodellinen[#Headers],0)) -> 92,400.00 € | K6: =INDEX(TyöntekijäSuunniteltu[],MATCH(INDEX(Työntekijäpoikkeamat[],ROW()-ROW(Työntekijäpoikkeamat[[#Headers],[Syys]]),1),INDEX(TyöntekijäSuunniteltu[],,1),0),MATCH(Työntekijäpoikkeamat[[#Headers],[Syys]],TyöntekijäSuunniteltu[#Headers],0))-INDEX(TyöntekijäTodellinen[],MATCH(INDEX(Työntekijäpoikkeamat[],ROW()-ROW(Työntekijäpoikkeamat[[#Headers],[Syys]]),1),INDEX(TyöntekijäSuunniteltu[],,1),0),MATCH(Työntekijäpoikkeamat[[#Headers],[Syys]],TyöntekijäTodellinen[#Headers],0)) -> 92,400.00 € | L6: =INDEX(TyöntekijäSuunniteltu[],MATCH(INDEX(Työntekijäpoikkeamat[],ROW()-ROW(Työntekijäpoikkeamat[[#Headers],[Loka]]),1),INDEX(TyöntekijäSuunniteltu[],,1),0),MATCH(Työntekijäpoikkeamat[[#Headers],[Loka]],TyöntekijäSuunniteltu[#Headers],0))-INDEX(TyöntekijäTodellinen[],MATCH(INDEX(Työntekijäpoikkeamat[],ROW()-ROW(Työntekijäpoikkeamat[[#Headers],[Loka]]),1),INDEX(TyöntekijäSuunniteltu[],,1),0),MATCH(Työntekijäpoikkeamat[[#Headers],[Loka]],TyöntekijäTodellinen[#Headers],0)) -> 92,400.00 € | M6: =INDEX(TyöntekijäSuunniteltu[],MATCH(INDEX(Työntekijäpoikkeamat[],ROW()-ROW(Työntekijäpoikkeamat[[#Headers],[Marras]]),1),INDEX(TyöntekijäSuunniteltu[],,1),0),MATCH(Työntekijäpoikkeamat[[#Headers],[Marras]],TyöntekijäSuunniteltu[#Headers],0))-INDEX(TyöntekijäTodellinen[],MATCH(INDEX(Työntekijäpoikkeamat[],ROW()-ROW(Työntekijäpoikkeamat[[#Headers],[Marras]]),1),INDEX(TyöntekijäSuunniteltu[],,1),0),MATCH(Työntekijäpoikkeamat[[#Headers],[Marras]],TyöntekijäTodellinen[#Headers],0)) -> 92,400.00 € | N6: =INDEX(TyöntekijäSuunniteltu[],MATCH(INDEX(Työntekijäpoikkeamat[],ROW()-ROW(Työntekijäpoikkeamat[[#Headers],[Joulu]]),1),INDEX(TyöntekijäSuunniteltu[],,1),0),MATCH(Työntekijäpoikkeamat[[#Headers],[Joulu]],TyöntekijäSuunniteltu[#Headers],0))-INDEX(TyöntekijäTodellinen[],MATCH(INDEX(Työntekijäpoikkeamat[],ROW()-ROW(Työntekijäpoikkeamat[[#Headers],[Joulu]]),1),INDEX(TyöntekijäSuunniteltu[],,1),0),MATCH(Työntekijäpoikkeamat[[#Headers],[Joulu]],TyöntekijäTodellinen[#Headers],0)) -> 92,400.00 € | O6: =SUM(Työntekijäpoikkeamat[[#This Row],[Tammi]:[Joulu]]) -> 548,000.00 €
B7: Edut | C7: =INDEX(TyöntekijäSuunniteltu[],MATCH(INDEX(Työntekijäpoikkeamat[],ROW()-ROW(Työntekijäpoikkeamat[[#Headers],[Tammi]]),1),INDEX(TyöntekijäSuunniteltu[],,1),0),MATCH(Työntekijäpoikkeamat[[#Headers],[Tammi]],TyöntekijäSuunniteltu[#Headers],0))-INDEX(TyöntekijäTodellinen[],MATCH(INDEX(Työntekijäpoikkeamat[],ROW()-ROW(Työntekijäpoikkeamat[[#Headers],[Tammi]]),1),INDEX(TyöntekijäSuunniteltu[],,1),0),MATCH(Työntekijäpoikkeamat[[#Headers],[Tammi]],TyöntekijäTodellinen[#Headers],0)) -> 0.00 € | D7: =INDEX(TyöntekijäSuunniteltu[],MATCH(INDEX(Työntekijäpoikkeamat[],ROW()-ROW(Työntekijäpoikkeamat[[#Headers],[Helmi]]),1),INDEX(TyöntekijäSuunniteltu[],,1),0),MATCH(Työntekijäpoikkeamat[[#Headers],[Helmi]],TyöntekijäSuunniteltu[#Headers],0))-INDEX(TyöntekijäTodellinen[],MATCH(INDEX(Työntekijäpoikkeamat[],ROW()-ROW(Työntekijäpoikkeamat[[#Headers],[Helmi]]),1),INDEX(TyöntekijäSuunniteltu[],,1),0),MATCH(Työntekijäpoikkeamat[[#Headers],[Helmi]],TyöntekijäTodellinen[#Headers],0)) -> 0.00 € | E7: =INDEX(TyöntekijäSuunniteltu[],MATCH(INDEX(Työntekijäpoikkeamat[],ROW()-ROW(Työntekijäpoikkeamat[[#Headers],[Maalis]]),1),INDEX(TyöntekijäSuunniteltu[],,1),0),MATCH(Työntekijäpoikkeamat[[#Headers],[Maalis]],TyöntekijäSuunniteltu[#Headers],0))-INDEX(TyöntekijäTodellinen[],MATCH(INDEX(Työntekijäpoikkeamat[],ROW()-ROW(Työntekijäpoikkeamat[[#Headers],[Maalis]]),1),INDEX(TyöntekijäSuunniteltu[],,1),0),MATCH(Työntekijäpoikkeamat[[#Headers],[Maalis]],TyöntekijäTodellinen[#Headers],0)) -> 0.00 € | F7: =INDEX(TyöntekijäSuunniteltu[],MATCH(INDEX(Työntekijäpoikkeamat[],ROW()-ROW(Työntekijäpoikkeamat[[#Headers],[Huhti]]),1),INDEX(TyöntekijäSuunniteltu[],,1),0),MATCH(Työntekijäpoikkeamat[[#Headers],[Huhti]],TyöntekijäSuunniteltu[#Headers],0))-INDEX(TyöntekijäTodellinen[],MATCH(INDEX(Työntekijäpoikkeamat[],ROW()-ROW(Työntekijäpoikkeamat[[#Headers],[Huhti]]),1),INDEX(TyöntekijäSuunniteltu[],,1),0),MATCH(Työntekijäpoikkeamat[[#Headers],[Huhti]],TyöntekijäTodellinen[#Headers],0)) -> -135.00 € | G7: =INDEX(TyöntekijäSuunniteltu[],MATCH(INDEX(Työntekijäpoikkeamat[],ROW()-ROW(Työntekijäpoikkeamat[[#Headers],[Touko]]),1),INDEX(TyöntekijäSuunniteltu[],,1),0),MATCH(Työntekijäpoikkeamat[[#Headers],[Touko]],TyöntekijäSuunniteltu[#Headers],0))-INDEX(TyöntekijäTodellinen[],MATCH(INDEX(Työntekijäpoikkeamat[],ROW()-ROW(Työntekijäpoikkeamat[[#Headers],[Touko]]),1),INDEX(TyöntekijäSuunniteltu[],,1),0),MATCH(Työntekijäpoikkeamat[[#Headers],[Touko]],TyöntekijäTodellinen[#Headers],0)) -> -135.00 € | H7: =INDEX(TyöntekijäSuunniteltu[],MATCH(INDEX(Työntekijäpoikkeamat[],ROW()-ROW(Työntekijäpoikkeamat[[#Headers],[Kesä]]),1),INDEX(TyöntekijäSuunniteltu[],,1),0),MATCH(Työntekijäpoikkeamat[[#Headers],[Kesä]],TyöntekijäSuunniteltu[#Headers],0))-INDEX(TyöntekijäTodellinen[],MATCH(INDEX(Työntekijäpoikkeamat[],ROW()-ROW(Työntekijäpoikkeamat[[#Headers],[Kesä]]),1),INDEX(TyöntekijäSuunniteltu[],,1),0),MATCH(Työntekijäpoikkeamat[[#Headers],[Kesä]],TyöntekijäTodellinen[#Headers],0)) -> -135.00 € | I7: =INDEX(TyöntekijäSuunniteltu[],MATCH(INDEX(Työntekijäpoikkeamat[],ROW()-ROW(Työntekijäpoikkeamat[[#Headers],[Heinä]]),1),INDEX(TyöntekijäSuunniteltu[],,1),0),MATCH(Työntekijäpoikkeamat[[#Headers],[Heinä]],TyöntekijäSuunniteltu[#Headers],0))-INDEX(TyöntekijäTodellinen[],MATCH(INDEX(Työntekijäpoikkeamat[],ROW()-ROW(Työntekijäpoikkeamat[[#Headers],[Heinä]]),1),INDEX(TyöntekijäSuunniteltu[],,1),0),MATCH(Työntekijäpoikkeamat[[#Headers],[Heinä]],TyöntekijäTodellinen[#Headers],0)) -> 23,625.00 € | J7: =INDEX(TyöntekijäSuunniteltu[],MATCH(INDEX(Työntekijäpoikkeamat[],ROW()-ROW(Työntekijäpoikkeamat[[#Headers],[Elo]]),1),INDEX(TyöntekijäSuunniteltu[],,1),0),MATCH(Työntekijäpoikkeamat[[#Headers],[Elo]],TyöntekijäSuunniteltu[#Headers],0))-INDEX(TyöntekijäTodellinen[],MATCH(INDEX(Työntekijäpoikkeamat[],ROW()-ROW(Työntekijäpoikkeamat[[#Headers],[Elo]]),1),INDEX(TyöntekijäSuunniteltu[],,1),0),MATCH(Työntekijäpoikkeamat[[#Headers],[Elo]],TyöntekijäTodellinen[#Headers],0)) -> 24,948.00 € | K7: =INDEX(TyöntekijäSuunniteltu[],MATCH(INDEX(Työntekijäpoikkeamat[],ROW()-ROW(Työntekijäpoikkeamat[[#Headers],[Syys]]),1),INDEX(TyöntekijäSuunniteltu[],,1),0),MATCH(Työntekijäpoikkeamat[[#Headers],[Syys]],TyöntekijäSuunniteltu[#Headers],0))-INDEX(TyöntekijäTodellinen[],MATCH(INDEX(Työntekijäpoikkeamat[],ROW()-ROW(Työntekijäpoikkeamat[[#Headers],[Syys]]),1),INDEX(TyöntekijäSuunniteltu[],,1),0),MATCH(Työntekijäpoikkeamat[[#Headers],[Syys]],TyöntekijäTodellinen[#Headers],0)) -> 24,948.00 € | L7: =INDEX(TyöntekijäSuunniteltu[],MATCH(INDEX(Työntekijäpoikkeamat[],ROW()-ROW(Työntekijäpoikkeamat[[#Headers],[Loka]]),1),INDEX(TyöntekijäSuunniteltu[],,1),0),MATCH(Työntekijäpoikkeamat[[#Headers],[Loka]],TyöntekijäSuunniteltu[#Headers],0))-INDEX(TyöntekijäTodellinen[],MATCH(INDEX(Työntekijäpoikkeamat[],ROW()-ROW(Työntekijäpoikkeamat[[#Headers],[Loka]]),1),INDEX(TyöntekijäSuunniteltu[],,1),0),MATCH(Työntekijäpoikkeamat[[#Headers],[Loka]],TyöntekijäTodellinen[#Headers],0)) -> 24,948.00 € | M7: =INDEX(TyöntekijäSuunniteltu[],MATCH(INDEX(Työntekijäpoikkeamat[],ROW()-ROW(Työntekijäpoikkeamat[[#Headers],[Marras]]),1),INDEX(TyöntekijäSuunniteltu[],,1),0),MATCH(Työntekijäpoikkeamat[[#Headers],[Marras]],TyöntekijäSuunniteltu[#Headers],0))-INDEX(TyöntekijäTodellinen[],MATCH(INDEX(Työntekijäpoikkeamat[],ROW()-ROW(Työntekijäpoikkeamat[[#Headers],[Marras]]),1),INDEX(TyöntekijäSuunniteltu[],,1),0),MATCH(Työntekijäpoikkeamat[[#Headers],[Marras]],TyöntekijäTodellinen[#Headers],0)) -> 24,948.00 € | N7: =INDEX(TyöntekijäSuunniteltu[],MATCH(INDEX(Työntekijäpoikkeamat[],ROW()-ROW(Työntekijäpoikkeamat[[#Headers],[Joulu]]),1),INDEX(TyöntekijäSuunniteltu[],,1),0),MATCH(Työntekijäpoikkeamat[[#Headers],[Joulu]],TyöntekijäSuunniteltu[#Headers],0))-INDEX(TyöntekijäTodellinen[],MATCH(INDEX(Työntekijäpoikkeamat[],ROW()-ROW(Työntekijäpoikkeamat[[#Headers],[Joulu]]),1),INDEX(TyöntekijäSuunniteltu[],,1),0),MATCH(Työntekijäpoikkeamat[[#Headers],[Joulu]],TyöntekijäTodellinen[#Headers],0)) -> 24,948.00 € | O7: =SUM(Työntekijäpoikkeamat[[#This Row],[Tammi]:[Joulu]]) -> 147,960.00 €
B8: Välisumma | C8: =SUBTOTAL(109,Työntekijäpoikkeamat[Tammi]) -> 0.00 € | D8: =SUBTOTAL(109,Työntekijäpoikkeamat[Helmi]) -> 0.00 € | E8: =SUBTOTAL(109,Työntekijäpoikkeamat[Maalis]) -> 0.00 € | F8: =SUBTOTAL(109,Työntekijäpoikkeamat[Huhti]) -> -635.00 € | G8: =SUBTOTAL(109,Työntekijäpoikkeamat[Touko]) -> -635.00 € | H8: =SUBTOTAL(109,Työntekijäpoikkeamat[Kesä]) -> -635.00 € | I8: =SUBTOTAL(109,Työntekijäpoikkeamat[Heinä]) -> 111,125.00 € | J8: =SUBTOTAL(109,Työntekijäpoikkeamat[Elo]) -> 117,348.00 € | K8: =SUBTOTAL(109,Työntekijäpoikkeamat[Syys]) -> 117,348.00 € | L8: =SUBTOTAL(109,Työntekijäpoikkeamat[Loka]) -> 117,348.00 € | M8: =SUBTOTAL(109,Työntekijäpoikkeamat[Marras]) -> 117,348.00 € | N8: =SUBTOTAL(109,Työntekijäpoikkeamat[Joulu]) -> 117,348.00 € | O8: =SUBTOTAL(109,Työntekijäpoikkeamat[VUOSI]) -> 695,960.00 €
A10: Toimistokulut poikkeama lasketaan automaattisesti Toimistopoikkeamat-taulukkoon oikealla olevasta solusta aloittaen. Seuraava ohje on solussa A21. | B10: Toimistokulut | C10: Tammi | D10: Helmi | E10: Maalis | F10: Huhti | G10: Touko | H10: Kesä | I10: Heinä | J10: Elo | K10: Syys | L10: Loka | M10: Marras | N10: Joulu | O10: VUOSI
B11: Toimiston vuokra | C11: =INDEX(ToimistoSuunniteltu[],MATCH(INDEX(Toimistopoikkeamat[],ROW()-ROW(Toimistopoikkeamat[[#Headers],[Tammi]]),1),INDEX(ToimistoSuunniteltu[],,1),0),MATCH(Toimistopoikkeamat[[#Headers],[Tammi]],ToimistoSuunniteltu[#Headers],0))-INDEX(ToimistoTodellinen[],MATCH(INDEX(Toimistopoikkeamat[],ROW()-ROW(Toimistopoikkeamat[[#Headers],[Tammi]]),1),INDEX(ToimistoSuunniteltu[],,1),0),MATCH(Toimistopoikkeamat[[#Headers],[Tammi]],ToimistoTodellinen[#Headers],0)) -> 0.00 € | D11: =INDEX(ToimistoSuunniteltu[],MATCH(INDEX(Toimistopoikkeamat[],ROW()-ROW(Toimistopoikkeamat[[#Headers],[Helmi]]),1),INDEX(ToimistoSuunniteltu[],,1),0),MATCH(Toimistopoikkeamat[[#Headers],[Helmi]],ToimistoSuunniteltu[#Headers],0))-INDEX(ToimistoTodellinen[],MATCH(INDEX(Toimistopoikkeamat[],ROW()-ROW(Toimistopoikkeamat[[#Headers],[Helmi]]),1),INDEX(ToimistoSuunniteltu[],,1),0),MATCH(Toimistopoikkeamat[[#Headers],[Helmi]],ToimistoTodellinen[#Headers],0)) -> 0.00 € | E11: =INDEX(ToimistoSuunniteltu[],MATCH(INDEX(Toimistopoikkeamat[],ROW()-ROW(Toimistopoikkeamat[[#Headers],[Maalis]]),1),INDEX(ToimistoSuunniteltu[],,1),0),MATCH(Toimistopoikkeamat[[#Headers],[Maalis]],ToimistoSuunniteltu[#Headers],0))-INDEX(ToimistoTodellinen[],MATCH(INDEX(Toimistopoikkeamat[],ROW()-ROW(Toimistopoikkeamat[[#Headers],[Maalis]]),1),INDEX(ToimistoSuunniteltu[],,1),0),MATCH(Toimistopoikkeamat[[#Headers],[Maalis]],ToimistoTodellinen[#Headers],0)) -> 0.00 € | F11: =INDEX(ToimistoSuunniteltu[],MATCH(INDEX(Toimistopoikkeamat[],ROW()-ROW(Toimistopoikkeamat[[#Headers],[Huhti]]),1),INDEX(ToimistoSuunniteltu[],,1),0),MATCH(Toimistopoikkeamat[[#Headers],[Huhti]],ToimistoSuunniteltu[#Headers],0))-INDEX(ToimistoTodellinen[],MATCH(INDEX(Toimistopoikkeamat[],ROW()-ROW(Toimistopoikkeamat[[#Headers],[Huhti]]),1),INDEX(ToimistoSuunniteltu[],,1),0),MATCH(Toimistopoikkeamat[[#Headers],[Huhti]],ToimistoTodellinen[#Headers],0)) -> 0.00 € | G11: =INDEX(ToimistoSuunniteltu[],MATCH(INDEX(Toimistopoikkeamat[],ROW()-ROW(Toimistopoikkeamat[[#Headers],[Touko]]),1),INDEX(ToimistoSuunniteltu[],,1),0),MATCH(Toimistopoikkeamat[[#Headers],[Touko]],ToimistoSuunniteltu[#Headers],0))-INDEX(ToimistoTodellinen[],MATCH(INDEX(Toimistopoikkeamat[],ROW()-ROW(Toimistopoikkeamat[[#Headers],[Touko]]),1),INDEX(ToimistoSuunniteltu[],,1),0),MATCH(Toimistopoikkeamat[[#Headers],[Touko]],ToimistoTodellinen[#Headers],0)) -> 0.00 € | H11: =INDEX(ToimistoSuunniteltu[],MATCH(INDEX(Toimistopoikkeamat[],ROW()-ROW(Toimistopoikkeamat[[#Headers],[Kesä]]),1),INDEX(ToimistoSuunniteltu[],,1),0),MATCH(Toimistopoikkeamat[[#Headers],[Kesä]],ToimistoSuunniteltu[#Headers],0))-INDEX(ToimistoTodellinen[],MATCH(INDEX(Toimistopoikkeamat[],ROW()-ROW(Toimistopoikkeamat[[#Headers],[Kesä]]),1),INDEX(ToimistoSuunniteltu[],,1),0),MATCH(Toimistopoikkeamat[[#Headers],[Kesä]],ToimistoTodellinen[#Headers],0)) -> 0.00 € | I11: =INDEX(ToimistoSuunniteltu[],MATCH(INDEX(Toimistopoikkeamat[],ROW()-ROW(Toimistopoikkeamat[[#Headers],[Heinä]]),1),INDEX(ToimistoSuunniteltu[],,1),0),MATCH(Toimistopoikkeamat[[#Headers],[Heinä]],ToimistoSuunniteltu[#Headers],0))-INDEX(ToimistoTodellinen[],MATCH(INDEX(Toimistopoikkeamat[],ROW()-ROW(Toimistopoikkeamat[[#Headers],[Heinä]]),1),INDEX(ToimistoSuunniteltu[],,1),0),MATCH(Toimistopoikkeamat[[#Headers],[Heinä]],ToimistoTodellinen[#Headers],0)) -> 9,800.00 € | J11: =INDEX(ToimistoSuunniteltu[],MATCH(INDEX(Toimistopoikkeamat[],ROW()-ROW(Toimistopoikkeamat[[#Headers],[Elo]]),1),INDEX(ToimistoSuunniteltu[],,1),0),MATCH(Toimistopoikkeamat[[#Headers],[Elo]],ToimistoSuunniteltu[#Headers],0))-INDEX(ToimistoTodellinen[],MATCH(INDEX(Toimistopoikkeamat[],ROW()-ROW(Toimistopoikkeamat[[#Headers],[Elo]]),1),INDEX(ToimistoSuunniteltu[],,1),0),MATCH(Toimistopoikkeamat[[#Headers],[Elo]],ToimistoTodellinen[#Headers],0)) -> 9,800.00 € | K11: =INDEX(ToimistoSuunniteltu[],MATCH(INDEX(Toimistopoikkeamat[],ROW()-ROW(Toimistopoikkeamat[[#Headers],[Syys]]),1),INDEX(ToimistoSuunniteltu[],,1),0),MATCH(Toimistopoikkeamat[[#Headers],[Syys]],ToimistoSuunniteltu[#Headers],0))-INDEX(ToimistoTodellinen[],MATCH(INDEX(Toimistopoikkeamat[],ROW()-ROW(Toimistopoikkeamat[[#Headers],[Syys]]),1),INDEX(ToimistoSuunniteltu[],,1),0),MATCH(Toimistopoikkeamat[[#Headers],[Syys]],ToimistoTodellinen[#Headers],0)) -> 9,800.00 € | L11: =INDEX(ToimistoSuunniteltu[],MATCH(INDEX(Toimistopoikkeamat[],ROW()-ROW(Toimistopoikkeamat[[#Headers],[Loka]]),1),INDEX(ToimistoSuunniteltu[],,1),0),MATCH(Toimistopoikkeamat[[#Headers],[Loka]],ToimistoSuunniteltu[#Headers],0))-INDEX(ToimistoTodellinen[],MATCH(INDEX(Toimistopoikkeamat[],ROW()-ROW(Toimistopoikkeamat[[#Headers],[Loka]]),1),INDEX(ToimistoSuunniteltu[],,1),0),MATCH(Toimistopoikkeamat[[#Headers],[Loka]],ToimistoTodellinen[#Headers],0)) -> 9,800.00 € | M11: =INDEX(ToimistoSuunniteltu[],MATCH(INDEX(Toimistopoikkeamat[],ROW()-ROW(Toimistopoikkeamat[[#Headers],[Marras]]),1),INDEX(ToimistoSuunniteltu[],,1),0),MATCH(Toimistopoikkeamat[[#Headers],[Marras]],ToimistoSuunniteltu[#Headers],0))-INDEX(ToimistoTodellinen[],MATCH(INDEX(Toimistopoikkeamat[],ROW()-ROW(Toimistopoikkeamat[[#Headers],[Marras]]),1),INDEX(ToimistoSuunniteltu[],,1),0),MATCH(Toimistopoikkeamat[[#Headers],[Marras]],ToimistoTodellinen[#Headers],0)) -> 9,800.00 € | N11: =INDEX(ToimistoSuunniteltu[],MATCH(INDEX(Toimistopoikkeamat[],ROW()-ROW(Toimistopoikkeamat[[#Headers],[Joulu]]),1),INDEX(ToimistoSuunniteltu[],,1),0),MATCH(Toimistopoikkeamat[[#Headers],[Joulu]],ToimistoSuunniteltu[#Headers],0))-INDEX(ToimistoTodellinen[],MATCH(INDEX(Toimistopoikkeamat[],ROW()-ROW(Toimistopoikkeamat[[#Headers],[Joulu]]),1),INDEX(ToimistoSuunniteltu[],,1),0),MATCH(Toimistopoikkeamat[[#Headers],[Joulu]],ToimistoTodellinen[#Headers],0)) -> 9,800.00 € | O11: =SUM(Toimistopoikkeamat[[#This Row],[Tammi]:[Joulu]]) -> 58,800.00 €
B12: Lämmitys | C12: =INDEX(ToimistoSuunniteltu[],MATCH(INDEX(Toimistopoikkeamat[],ROW()-ROW(Toimistopoikkeamat[[#Headers],[Tammi]]),1),INDEX(ToimistoSuunniteltu[],,1),0),MATCH(Toimistopoikkeamat[[#Headers],[Tammi]],ToimistoSuunniteltu[#Headers],0))-INDEX(ToimistoTodellinen[],MATCH(INDEX(Toimistopoikkeamat[],ROW()-ROW(Toimistopoikkeamat[[#Headers],[Tammi]]),1),INDEX(ToimistoSuunniteltu[],,1),0),MATCH(Toimistopoikkeamat[[#Headers],[Tammi]],ToimistoTodellinen[#Headers],0)) -> -4.00 € | D12: =INDEX(ToimistoSuunniteltu[],MATCH(INDEX(Toimistopoikkeamat[],ROW()-ROW(Toimistopoikkeamat[[#Headers],[Helmi]]),1),INDEX(ToimistoSuunniteltu[],,1),0),MATCH(Toimistopoikkeamat[[#Headers],[Helmi]],ToimistoSuunniteltu[#Headers],0))-INDEX(ToimistoTodellinen[],MATCH(INDEX(Toimistopoikkeamat[],ROW()-ROW(Toimistopoikkeamat[[#Headers],[Helmi]]),1),INDEX(ToimistoSuunniteltu[],,1),0),MATCH(Toimistopoikkeamat[[#Headers],[Helmi]],ToimistoTodellinen[#Headers],0)) -> -30.00 € | E12: =INDEX(ToimistoSuunniteltu[],MATCH(INDEX(Toimistopoikkeamat[],ROW()-ROW(Toimistopoikkeamat[[#Headers],[Maalis]]),1),INDEX(ToimistoSuunniteltu[],,1),0),MATCH(Toimistopoikkeamat[[#Headers],[Maalis]],ToimistoSuunniteltu[#Headers],0))-INDEX(ToimistoTodellinen[],MATCH(INDEX(Toimistopoikkeamat[],ROW()-ROW(Toimistopoikkeamat[[#Headers],[Maalis]]),1),INDEX(ToimistoSuunniteltu[],,1),0),MATCH(Toimistopoikkeamat[[#Headers],[Maalis]],ToimistoTodellinen[#Headers],0)) -> 15.00 € | F12: =INDEX(ToimistoSuunniteltu[],MATCH(INDEX(Toimistopoikkeamat[],ROW()-ROW(Toimistopoikkeamat[[#Headers],[Huhti]]),1),INDEX(ToimistoSuunniteltu[],,1),0),MATCH(Toimistopoikkeamat[[#Headers],[Huhti]],ToimistoSuunniteltu[#Headers],0))-INDEX(ToimistoTodellinen[],MATCH(INDEX(Toimistopoikkeamat[],ROW()-ROW(Toimistopoikkeamat[[#Headers],[Huhti]]),1),INDEX(ToimistoSuunniteltu[],,1),0),MATCH(Toimistopoikkeamat[[#Headers],[Huhti]],ToimistoTodellinen[#Headers],0)) -> -130.00 € | G12: =INDEX(ToimistoSuunniteltu[],MATCH(INDEX(Toimistopoikkeamat[],ROW()-ROW(Toimistopoikkeamat[[#Headers],[Touko]]),1),INDEX(ToimistoSuunniteltu[],,1),0),MATCH(Toimistopoikkeamat[[#Headers],[Touko]],ToimistoSuunniteltu[#Headers],0))-INDEX(ToimistoTodellinen[],MATCH(INDEX(Toimistopoikkeamat[],ROW()-ROW(Toimistopoikkeamat[[#Headers],[Touko]]),1),INDEX(ToimistoSuunniteltu[],,1),0),MATCH(Toimistopoikkeamat[[#Headers],[Touko]],ToimistoTodellinen[#Headers],0)) -> 13.00 € | H12: =INDEX(ToimistoSuunniteltu[],MATCH(INDEX(Toimistopoikkeamat[],ROW()-ROW(Toimistopoikkeamat[[#Headers],[Kesä]]),1),INDEX(ToimistoSuunniteltu[],,1),0),MATCH(Toimistopoikkeamat[[#Headers],[Kesä]],ToimistoSuunniteltu[#Headers],0))-INDEX(ToimistoTodellinen[],MATCH(INDEX(Toimistopoikkeamat[],ROW()-ROW(Toimistopoikkeamat[[#Headers],[Kesä]]),1),INDEX(ToimistoSuunniteltu[],,1),0),MATCH(Toimistopoikkeamat[[#Headers],[Kesä]],ToimistoTodellinen[#Headers],0)) -> 12.00 € | I12: =INDEX(ToimistoSuunniteltu[],MATCH(INDEX(Toimistopoikkeamat[],ROW()-ROW(Toimistopoikkeamat[[#Headers],[Heinä]]),1),INDEX(ToimistoSuunniteltu[],,1),0),MATCH(Toimistopoikkeamat[[#Headers],[Heinä]],ToimistoSuunniteltu[#Headers],0))-INDEX(ToimistoTodellinen[],MATCH(INDEX(Toimistopoikkeamat[],ROW()-ROW(Toimistopoikkeamat[[#Headers],[Heinä]]),1),INDEX(ToimistoSuunniteltu[],,1),0),MATCH(Toimistopoikkeamat[[#Headers],[Heinä]],ToimistoTodellinen[#Headers],0)) -> 100.00 € | J12: =INDEX(ToimistoSuunniteltu[],MATCH(INDEX(Toimistopoikkeamat[],ROW()-ROW(Toimistopoikkeamat[[#Headers],[Elo]]),1),INDEX(ToimistoSuunniteltu[],,1),0),MATCH(Toimistopoikkeamat[[#Headers],[Elo]],ToimistoSuunniteltu[#Headers],0))-INDEX(ToimistoTodellinen[],MATCH(INDEX(Toimistopoikkeamat[],ROW()-ROW(Toimistopoikkeamat[[#Headers],[Elo]]),1),INDEX(ToimistoSuunniteltu[],,1),0),MATCH(Toimistopoikkeamat[[#Headers],[Elo]],ToimistoTodellinen[#Headers],0)) -> 100.00 € | K12: =INDEX(ToimistoSuunniteltu[],MATCH(INDEX(Toimistopoikkeamat[],ROW()-ROW(Toimistopoikkeamat[[#Headers],[Syys]]),1),INDEX(ToimistoSuunniteltu[],,1),0),MATCH(Toimistopoikkeamat[[#Headers],[Syys]],ToimistoSuunniteltu[#Headers],0))-INDEX(ToimistoTodellinen[],MATCH(INDEX(Toimistopoikkeamat[],ROW()-ROW(Toimistopoikkeamat[[#Headers],[Syys]]),1),INDEX(ToimistoSuunniteltu[],,1),0),MATCH(Toimistopoikkeamat[[#Headers],[Syys]],ToimistoTodellinen[#Headers],0)) -> 100.00 € | L12: =INDEX(ToimistoSuunniteltu[],MATCH(INDEX(Toimistopoikkeamat[],ROW()-ROW(Toimistopoikkeamat[[#Headers],[Loka]]),1),INDEX(ToimistoSuunniteltu[],,1),0),MATCH(Toimistopoikkeamat[[#Headers],[Loka]],ToimistoSuunniteltu[#Headers],0))-INDEX(ToimistoTodellinen[],MATCH(INDEX(Toimistopoikkeamat[],ROW()-ROW(Toimistopoikkeamat[[#Headers],[Loka]]),1),INDEX(ToimistoSuunniteltu[],,1),0),MATCH(Toimistopoikkeamat[[#Headers],[Loka]],ToimistoTodellinen[#Headers],0)) -> 100.00 € | M12: =INDEX(ToimistoSuunniteltu[],MATCH(INDEX(Toimistopoikkeamat[],ROW()-ROW(Toimistopoikkeamat[[#Headers],[Marras]]),1),INDEX(ToimistoSuunniteltu[],,1),0),MATCH(Toimistopoikkeamat[[#Headers],[Marras]],ToimistoSuunniteltu[#Headers],0))-INDEX(ToimistoTodellinen[],MATCH(INDEX(Toimistopoikkeamat[],ROW()-ROW(Toimistopoikkeamat[[#Headers],[Marras]]),1),INDEX(ToimistoSuunniteltu[],,1),0),MATCH(Toimistopoikkeamat[[#Headers],[Marras]],ToimistoTodellinen[#Headers],0)) -> 400.00 € | N12: =INDEX(ToimistoSuunniteltu[],MATCH(INDEX(Toimistopoikkeamat[],ROW()-ROW(Toimistopoikkeamat[[#Headers],[Joulu]]),1),INDEX(ToimistoSuunniteltu[],,1),0),MATCH(Toimistopoikkeamat[[#Headers],[Joulu]],ToimistoSuunniteltu[#Headers],0))-INDEX(ToimistoTodellinen[],MATCH(INDEX(Toimistopoikkeamat[],ROW()-ROW(Toimistopoikkeamat[[#Headers],[Joulu]]),1),INDEX(ToimistoSuunniteltu[],,1),0),MATCH(Toimistopoikkeamat[[#Headers],[Joulu]],ToimistoTodellinen[#Headers],0)) -> 400.00 € | O12: =SUM(Toimistopoikkeamat[[#This Row],[Tammi]:[Joulu]]) -> 1,076.00 €
B13: Sähkö | C13: =INDEX(ToimistoSuunniteltu[],MATCH(INDEX(Toimistopoikkeamat[],ROW()-ROW(Toimistopoikkeamat[[#Headers],[Tammi]]),1),INDEX(ToimistoSuunniteltu[],,1),0),MATCH(Toimistopoikkeamat[[#Headers],[Tammi]],ToimistoSuunniteltu[#Headers],0))-INDEX(ToimistoTodellinen[],MATCH(INDEX(Toimistopoikkeamat[],ROW()-ROW(Toimistopoikkeamat[[#Headers],[Tammi]]),1),INDEX(ToimistoSuunniteltu[],,1),0),MATCH(Toimistopoikkeamat[[#Headers],[Tammi]],ToimistoTodellinen[#Headers],0)) -> 12.00 € | D13: =INDEX(ToimistoSuunniteltu[],MATCH(INDEX(Toimistopoikkeamat[],ROW()-ROW(Toimistopoikkeamat[[#Headers],[Helmi]]),1),INDEX(ToimistoSuunniteltu[],,1),0),MATCH(Toimistopoikkeamat[[#Headers],[Helmi]],ToimistoSuunniteltu[#Headers],0))-INDEX(ToimistoTodellinen[],MATCH(INDEX(Toimistopoikkeamat[],ROW()-ROW(Toimistopoikkeamat[[#Headers],[Helmi]]),1),INDEX(ToimistoSuunniteltu[],,1),0),MATCH(Toimistopoikkeamat[[#Headers],[Helmi]],ToimistoTodellinen[#Headers],0)) -> 22.00 € | E13: =INDEX(ToimistoSuunniteltu[],MATCH(INDEX(Toimistopoikkeamat[],ROW()-ROW(Toimistopoikkeamat[[#Headers],[Maalis]]),1),INDEX(ToimistoSuunniteltu[],,1),0),MATCH(Toimistopoikkeamat[[#Headers],[Maalis]],ToimistoSuunniteltu[#Headers],0))-INDEX(ToimistoTodellinen[],MATCH(INDEX(Toimistopoikkeamat[],ROW()-ROW(Toimistopoikkeamat[[#Headers],[Maalis]]),1),INDEX(ToimistoSuunniteltu[],,1),0),MATCH(Toimistopoikkeamat[[#Headers],[Maalis]],ToimistoTodellinen[#Headers],0)) -> 32.00 € | F13: =INDEX(ToimistoSuunniteltu[],MATCH(INDEX(Toimistopoikkeamat[],ROW()-ROW(Toimistopoikkeamat[[#Headers],[Huhti]]),1),INDEX(ToimistoSuunniteltu[],,1),0),MATCH(Toimistopoikkeamat[[#Headers],[Huhti]],ToimistoSuunniteltu[#Headers],0))-INDEX(ToimistoTodellinen[],MATCH(INDEX(Toimistopoikkeamat[],ROW()-ROW(Toimistopoikkeamat[[#Headers],[Huhti]]),1),INDEX(ToimistoSuunniteltu[],,1),0),MATCH(Toimistopoikkeamat[[#Headers],[Huhti]],ToimistoTodellinen[#Headers],0)) -> 1.00 € | G13: =INDEX(ToimistoSuunniteltu[],MATCH(INDEX(Toimistopoikkeamat[],ROW()-ROW(Toimistopoikkeamat[[#Headers],[Touko]]),1),INDEX(ToimistoSuunniteltu[],,1),0),MATCH(Toimistopoikkeamat[[#Headers],[Touko]],ToimistoSuunniteltu[#Headers],0))-INDEX(ToimistoTodellinen[],MATCH(INDEX(Toimistopoikkeamat[],ROW()-ROW(Toimistopoikkeamat[[#Headers],[Touko]]),1),INDEX(ToimistoSuunniteltu[],,1),0),MATCH(Toimistopoikkeamat[[#Headers],[Touko]],ToimistoTodellinen[#Headers],0)) -> -6.00 € | H13: =INDEX(ToimistoSuunniteltu[],MATCH(INDEX(Toimistopoikkeamat[],ROW()-ROW(Toimistopoikkeamat[[#Headers],[Kesä]]),1),INDEX(ToimistoSuunniteltu[],,1),0),MATCH(Toimistopoikkeamat[[#Headers],[Kesä]],ToimistoSuunniteltu[#Headers],0))-INDEX(ToimistoTodellinen[],MATCH(INDEX(Toimistopoikkeamat[],ROW()-ROW(Toimistopoikkeamat[[#Headers],[Kesä]]),1),INDEX(ToimistoSuunniteltu[],,1),0),MATCH(Toimistopoikkeamat[[#Headers],[Kesä]],ToimistoTodellinen[#Headers],0)) -> 10.00 € | I13: =INDEX(ToimistoSuunniteltu[],MATCH(INDEX(Toimistopoikkeamat[],ROW()-ROW(Toimistopoikkeamat[[#Headers],[Heinä]]),1),INDEX(ToimistoSuunniteltu[],,1),0),MATCH(Toimistopoikkeamat[[#Headers],[Heinä]],ToimistoSuunniteltu[#Headers],0))-INDEX(ToimistoTodellinen[],MATCH(INDEX(Toimistopoikkeamat[],ROW()-ROW(Toimistopoikkeamat[[#Headers],[Heinä]]),1),INDEX(ToimistoSuunniteltu[],,1),0),MATCH(Toimistopoikkeamat[[#Headers],[Heinä]],ToimistoTodellinen[#Headers],0)) -> 300.00 € | J13: =INDEX(ToimistoSuunniteltu[],MATCH(INDEX(Toimistopoikkeamat[],ROW()-ROW(Toimistopoikkeamat[[#Headers],[Elo]]),1),INDEX(ToimistoSuunniteltu[],,1),0),MATCH(Toimistopoikkeamat[[#Headers],[Elo]],ToimistoSuunniteltu[#Headers],0))-INDEX(ToimistoTodellinen[],MATCH(INDEX(Toimistopoikkeamat[],ROW()-ROW(Toimistopoikkeamat[[#Headers],[Elo]]),1),INDEX(ToimistoSuunniteltu[],,1),0),MATCH(Toimistopoikkeamat[[#Headers],[Elo]],ToimistoTodellinen[#Headers],0)) -> 300.00 € | K13: =INDEX(ToimistoSuunniteltu[],MATCH(INDEX(Toimistopoikkeamat[],ROW()-ROW(Toimistopoikkeamat[[#Headers],[Syys]]),1),INDEX(ToimistoSuunniteltu[],,1),0),MATCH(Toimistopoikkeamat[[#Headers],[Syys]],ToimistoSuunniteltu[#Headers],0))-INDEX(ToimistoTodellinen[],MATCH(INDEX(Toimistopoikkeamat[],ROW()-ROW(Toimistopoikkeamat[[#Headers],[Syys]]),1),INDEX(ToimistoSuunniteltu[],,1),0),MATCH(Toimistopoikkeamat[[#Headers],[Syys]],ToimistoTodellinen[#Headers],0)) -> 300.00 € | L13: =INDEX(ToimistoSuunniteltu[],MATCH(INDEX(Toimistopoikkeamat[],ROW()-ROW(Toimistopoikkeamat[[#Headers],[Loka]]),1),INDEX(ToimistoSuunniteltu[],,1),0),MATCH(Toimistopoikkeamat[[#Headers],[Loka]],ToimistoSuunniteltu[#Headers],0))-INDEX(ToimistoTodellinen[],MATCH(INDEX(Toimistopoikkeamat[],ROW()-ROW(Toimistopoikkeamat[[#Headers],[Loka]]),1),INDEX(ToimistoSuunniteltu[],,1),0),MATCH(Toimistopoikkeamat[[#Headers],[Loka]],ToimistoTodellinen[#Headers],0)) -> 300.00 € | M13: =INDEX(ToimistoSuunniteltu[],MATCH(INDEX(Toimistopoikkeamat[],ROW()-ROW(Toimistopoikkeamat[[#Headers],[Marras]]),1),INDEX(ToimistoSuunniteltu[],,1),0),MATCH(Toimistopoikkeamat[[#Headers],[Marras]],ToimistoSuunniteltu[#Headers],0))-INDEX(ToimistoTodellinen[],MATCH(INDEX(Toimistopoikkeamat[],ROW()-ROW(Toimistopoikkeamat[[#Headers],[Marras]]),1),INDEX(ToimistoSuunniteltu[],,1),0),MATCH(Toimistopoikkeamat[[#Headers],[Marras]],ToimistoTodellinen[#Headers],0)) -> 300.00 € | N13: =INDEX(ToimistoSuunniteltu[],MATCH(INDEX(Toimistopoikkeamat[],ROW()-ROW(Toimistopoikkeamat[[#Headers],[Joulu]]),1),INDEX(ToimistoSuunniteltu[],,1),0),MATCH(Toimistopoikkeamat[[#Headers],[Joulu]],ToimistoSuunniteltu[#Headers],0))-INDEX(ToimistoTodellinen[],MATCH(INDEX(Toimistopoikkeamat[],ROW()-ROW(Toimistopoikkeamat[[#Headers],[Joulu]]),1),INDEX(ToimistoSuunniteltu[],,1),0),MATCH(Toimistopoikkeamat[[#Headers],[Joulu]],ToimistoTodellinen[#Headers],0)) -> 300.00 € | O13: =SUM(Toimistopoikkeamat[[#This Row],[Tammi]:[Joulu]]) -> 1,871.00 €
B14: Vesi | C14: =INDEX(ToimistoSuunniteltu[],MATCH(INDEX(Toimistopoikkeamat[],ROW()-ROW(Toimistopoikkeamat[[#Headers],[Tammi]]),1),INDEX(ToimistoSuunniteltu[],,1),0),MATCH(Toimistopoikkeamat[[#Headers],[Tammi]],ToimistoSuunniteltu[#Headers],0))-INDEX(ToimistoTodellinen[],MATCH(INDEX(Toimistopoikkeamat[],ROW()-ROW(Toimistopoikkeamat[[#Headers],[Tammi]]),1),INDEX(ToimistoSuunniteltu[],,1),0),MATCH(Toimistopoikkeamat[[#Headers],[Tammi]],ToimistoTodellinen[#Headers],0)) -> 5.00 € | D14: =INDEX(ToimistoSuunniteltu[],MATCH(INDEX(Toimistopoikkeamat[],ROW()-ROW(Toimistopoikkeamat[[#Headers],[Helmi]]),1),INDEX(ToimistoSuunniteltu[],,1),0),MATCH(Toimistopoikkeamat[[#Headers],[Helmi]],ToimistoSuunniteltu[#Headers],0))-INDEX(ToimistoTodellinen[],MATCH(INDEX(Toimistopoikkeamat[],ROW()-ROW(Toimistopoikkeamat[[#Headers],[Helmi]]),1),INDEX(ToimistoSuunniteltu[],,1),0),MATCH(Toimistopoikkeamat[[#Headers],[Helmi]],ToimistoTodellinen[#Headers],0)) -> 7.00 € | E14: =INDEX(ToimistoSuunniteltu[],MATCH(INDEX(Toimistopoikkeamat[],ROW()-ROW(Toimistopoikkeamat[[#Headers],[Maalis]]),1),INDEX(ToimistoSuunniteltu[],,1),0),MATCH(Toimistopoikkeamat[[#Headers],[Maalis]],ToimistoSuunniteltu[#Headers],0))-INDEX(ToimistoTodellinen[],MATCH(INDEX(Toimistopoikkeamat[],ROW()-ROW(Toimistopoikkeamat[[#Headers],[Maalis]]),1),INDEX(ToimistoSuunniteltu[],,1),0),MATCH(Toimistopoikkeamat[[#Headers],[Maalis]],ToimistoTodellinen[#Headers],0)) -> 6.00 € | F14: =INDEX(ToimistoSuunniteltu[],MATCH(INDEX(Toimistopoikkeamat[],ROW()-ROW(Toimistopoikkeamat[[#Headers],[Huhti]]),1),INDEX(ToimistoSuunniteltu[],,1),0),MATCH(Toimistopoikkeamat[[#Headers],[Huhti]],ToimistoSuunniteltu[#Headers],0))-INDEX(ToimistoTodellinen[],MATCH(INDEX(Toimistopoikkeamat[],ROW()-ROW(Toimistopoikkeamat[[#Headers],[Huhti]]),1),INDEX(ToimistoSuunniteltu[],,1),0),MATCH(Toimistopoikkeamat[[#Headers],[Huhti]],ToimistoTodellinen[#Headers],0)) -> 4.00 € | G14: =INDEX(ToimistoSuunniteltu[],MATCH(INDEX(Toimistopoikkeamat[],ROW()-ROW(Toimistopoikkeamat[[#Headers],[Touko]]),1),INDEX(ToimistoSuunniteltu[],,1),0),MATCH(Toimistopoikkeamat[[#Headers],[Touko]],ToimistoSuunniteltu[#Headers],0))-INDEX(ToimistoTodellinen[],MATCH(INDEX(Toimistopoikkeamat[],ROW()-ROW(Toimistopoikkeamat[[#Headers],[Touko]]),1),INDEX(ToimistoSuunniteltu[],,1),0),MATCH(Toimistopoikkeamat[[#Headers],[Touko]],ToimistoTodellinen[#Headers],0)) -> 6.00 € | H14: =INDEX(ToimistoSuunniteltu[],MATCH(INDEX(Toimistopoikkeamat[],ROW()-ROW(Toimistopoikkeamat[[#Headers],[Kesä]]),1),INDEX(ToimistoSuunniteltu[],,1),0),MATCH(Toimistopoikkeamat[[#Headers],[Kesä]],ToimistoSuunniteltu[#Headers],0))-INDEX(ToimistoTodellinen[],MATCH(INDEX(Toimistopoikkeamat[],ROW()-ROW(Toimistopoikkeamat[[#Headers],[Kesä]]),1),INDEX(ToimistoSuunniteltu[],,1),0),MATCH(Toimistopoikkeamat[[#Headers],[Kesä]],ToimistoTodellinen[#Headers],0)) -> 4.00 € | I14: =INDEX(ToimistoSuunniteltu[],MATCH(INDEX(Toimistopoikkeamat[],ROW()-ROW(Toimistopoikkeamat[[#Headers],[Heinä]]),1),INDEX(ToimistoSuunniteltu[],,1),0),MATCH(Toimistopoikkeamat[[#Headers],[Heinä]],ToimistoSuunniteltu[#Headers],0))-INDEX(ToimistoTodellinen[],MATCH(INDEX(Toimistopoikkeamat[],ROW()-ROW(Toimistopoikkeamat[[#Headers],[Heinä]]),1),INDEX(ToimistoSuunniteltu[],,1),0),MATCH(Toimistopoikkeamat[[#Headers],[Heinä]],ToimistoTodellinen[#Headers],0)) -> 40.00 € | J14: =INDEX(ToimistoSuunniteltu[],MATCH(INDEX(Toimistopoikkeamat[],ROW()-ROW(Toimistopoikkeamat[[#Headers],[Elo]]),1),INDEX(ToimistoSuunniteltu[],,1),0),MATCH(Toimistopoikkeamat[[#Headers],[Elo]],ToimistoSuunniteltu[#Headers],0))-INDEX(ToimistoTodellinen[],MATCH(INDEX(Toimistopoikkeamat[],ROW()-ROW(Toimistopoikkeamat[[#Headers],[Elo]]),1),INDEX(ToimistoSuunniteltu[],,1),0),MATCH(Toimistopoikkeamat[[#Headers],[Elo]],ToimistoTodellinen[#Headers],0)) -> 40.00 € | K14: =INDEX(ToimistoSuunniteltu[],MATCH(INDEX(Toimistopoikkeamat[],ROW()-ROW(Toimistopoikkeamat[[#Headers],[Syys]]),1),INDEX(ToimistoSuunniteltu[],,1),0),MATCH(Toimistopoikkeamat[[#Headers],[Syys]],ToimistoSuunniteltu[#Headers],0))-INDEX(ToimistoTodellinen[],MATCH(INDEX(Toimistopoikkeamat[],ROW()-ROW(Toimistopoikkeamat[[#Headers],[Syys]]),1),INDEX(ToimistoSuunniteltu[],,1),0),MATCH(Toimistopoikkeamat[[#Headers],[Syys]],ToimistoTodellinen[#Headers],0)) -> 40.00 € | L14: =INDEX(ToimistoSuunniteltu[],MATCH(INDEX(Toimistopoikkeamat[],ROW()-ROW(Toimistopoikkeamat[[#Headers],[Loka]]),1),INDEX(ToimistoSuunniteltu[],,1),0),MATCH(Toimistopoikkeamat[[#Headers],[Loka]],ToimistoSuunniteltu[#Headers],0))-INDEX(ToimistoTodellinen[],MATCH(INDEX(Toimistopoikkeamat[],ROW()-ROW(Toimistopoikkeamat[[#Headers],[Loka]]),1),INDEX(ToimistoSuunniteltu[],,1),0),MATCH(Toimistopoikkeamat[[#Headers],[Loka]],ToimistoTodellinen[#Headers],0)) -> 40.00 € | M14: =INDEX(ToimistoSuunniteltu[],MATCH(INDEX(Toimistopoikkeamat[],ROW()-ROW(Toimistopoikkeamat[[#Headers],[Marras]]),1),INDEX(ToimistoSuunniteltu[],,1),0),MATCH(Toimistopoikkeamat[[#Headers],[Marras]],ToimistoSuunniteltu[#Headers],0))-INDEX(ToimistoTodellinen[],MATCH(INDEX(Toimistopoikkeamat[],ROW()-ROW(Toimistopoikkeamat[[#Headers],[Marras]]),1),INDEX(ToimistoSuunniteltu[],,1),0),MATCH(Toimistopoikkeamat[[#Headers],[Marras]],ToimistoTodellinen[#Headers],0)) -> 40.00 € | N14: =INDEX(ToimistoSuunniteltu[],MATCH(INDEX(Toimistopoikkeamat[],ROW()-ROW(Toimistopoikkeamat[[#Headers],[Joulu]]),1),INDEX(ToimistoSuunniteltu[],,1),0),MATCH(Toimistopoikkeamat[[#Headers],[Joulu]],ToimistoSuunniteltu[#Headers],0))-INDEX(ToimistoTodellinen[],MATCH(INDEX(Toimistopoikkeamat[],ROW()-ROW(Toimistopoikkeamat[[#Headers],[Joulu]]),1),INDEX(ToimistoSuunniteltu[],,1),0),MATCH(Toimistopoikkeamat[[#Headers],[Joulu]],ToimistoTodellinen[#Headers],0)) -> 40.00 € | O14: =SUM(Toimistopoikkeamat[[#This Row],[Tammi]:[Joulu]]) -> 272.00 €
B15: Puhelin | C15: =INDEX(ToimistoSuunniteltu[],MATCH(INDEX(Toimistopoikkeamat[],ROW()-ROW(Toimistopoikkeamat[[#Headers],[Tammi]]),1),INDEX(ToimistoSuunniteltu[],,1),0),MATCH(Toimistopoikkeamat[[#Headers],[Tammi]],ToimistoSuunniteltu[#Headers],0))-INDEX(ToimistoTodellinen[],MATCH(INDEX(Toimistopoikkeamat[],ROW()-ROW(Toimistopoikkeamat[[#Headers],[Tammi]]),1),INDEX(ToimistoSuunniteltu[],,1),0),MATCH(Toimistopoikkeamat[[#Headers],[Tammi]],ToimistoTodellinen[#Headers],0)) -> 26.00 € | D15: =INDEX(ToimistoSuunniteltu[],MATCH(INDEX(Toimistopoikkeamat[],ROW()-ROW(Toimistopoikkeamat[[#Headers],[Helmi]]),1),INDEX(ToimistoSuunniteltu[],,1),0),MATCH(Toimistopoikkeamat[[#Headers],[Helmi]],ToimistoSuunniteltu[#Headers],0))-INDEX(ToimistoTodellinen[],MATCH(INDEX(Toimistopoikkeamat[],ROW()-ROW(Toimistopoikkeamat[[#Headers],[Helmi]]),1),INDEX(ToimistoSuunniteltu[],,1),0),MATCH(Toimistopoikkeamat[[#Headers],[Helmi]],ToimistoTodellinen[#Headers],0)) -> 15.00 € | E15: =INDEX(ToimistoSuunniteltu[],MATCH(INDEX(Toimistopoikkeamat[],ROW()-ROW(Toimistopoikkeamat[[#Headers],[Maalis]]),1),INDEX(ToimistoSuunniteltu[],,1),0),MATCH(Toimistopoikkeamat[[#Headers],[Maalis]],ToimistoSuunniteltu[#Headers],0))-INDEX(ToimistoTodellinen[],MATCH(INDEX(Toimistopoikkeamat[],ROW()-ROW(Toimistopoikkeamat[[#Headers],[Maalis]]),1),INDEX(ToimistoSuunniteltu[],,1),0),MATCH(Toimistopoikkeamat[[#Headers],[Maalis]],ToimistoTodellinen[#Headers],0)) -> -15.00 € | F15: =INDEX(ToimistoSuunniteltu[],MATCH(INDEX(Toimistopoikkeamat[],ROW()-ROW(Toimistopoikkeamat[[#Headers],[Huhti]]),1),INDEX(ToimistoSuunniteltu[],,1),0),MATCH(Toimistopoikkeamat[[#Headers],[Huhti]],ToimistoSuunniteltu[#Headers],0))-INDEX(ToimistoTodellinen[],MATCH(INDEX(Toimistopoikkeamat[],ROW()-ROW(Toimistopoikkeamat[[#Headers],[Huhti]]),1),INDEX(ToimistoSuunniteltu[],,1),0),MATCH(Toimistopoikkeamat[[#Headers],[Huhti]],ToimistoTodellinen[#Headers],0)) -> 5.00 € | G15: =INDEX(ToimistoSuunniteltu[],MATCH(INDEX(Toimistopoikkeamat[],ROW()-ROW(Toimistopoikkeamat[[#Headers],[Touko]]),1),INDEX(ToimistoSuunniteltu[],,1),0),MATCH(Toimistopoikkeamat[[#Headers],[Touko]],ToimistoSuunniteltu[#Headers],0))-INDEX(ToimistoTodellinen[],MATCH(INDEX(Toimistopoikkeamat[],ROW()-ROW(Toimistopoikkeamat[[#Headers],[Touko]]),1),INDEX(ToimistoSuunniteltu[],,1),0),MATCH(Toimistopoikkeamat[[#Headers],[Touko]],ToimistoTodellinen[#Headers],0)) -> 5.00 € | H15: =INDEX(ToimistoSuunniteltu[],MATCH(INDEX(Toimistopoikkeamat[],ROW()-ROW(Toimistopoikkeamat[[#Headers],[Kesä]]),1),INDEX(ToimistoSuunniteltu[],,1),0),MATCH(Toimistopoikkeamat[[#Headers],[Kesä]],ToimistoSuunniteltu[#Headers],0))-INDEX(ToimistoTodellinen[],MATCH(INDEX(Toimistopoikkeamat[],ROW()-ROW(Toimistopoikkeamat[[#Headers],[Kesä]]),1),INDEX(ToimistoSuunniteltu[],,1),0),MATCH(Toimistopoikkeamat[[#Headers],[Kesä]],ToimistoTodellinen[#Headers],0)) -> 30.00 € | I15: =INDEX(ToimistoSuunniteltu[],MATCH(INDEX(Toimistopoikkeamat[],ROW()-ROW(Toimistopoikkeamat[[#Headers],[Heinä]]),1),INDEX(ToimistoSuunniteltu[],,1),0),MATCH(Toimistopoikkeamat[[#Headers],[Heinä]],ToimistoSuunniteltu[#Headers],0))-INDEX(ToimistoTodellinen[],MATCH(INDEX(Toimistopoikkeamat[],ROW()-ROW(Toimistopoikkeamat[[#Headers],[Heinä]]),1),INDEX(ToimistoSuunniteltu[],,1),0),MATCH(Toimistopoikkeamat[[#Headers],[Heinä]],ToimistoTodellinen[#Headers],0)) -> 250.00 € | J15: =INDEX(ToimistoSuunniteltu[],MATCH(INDEX(Toimistopoikkeamat[],ROW()-ROW(Toimistopoikkeamat[[#Headers],[Elo]]),1),INDEX(ToimistoSuunniteltu[],,1),0),MATCH(Toimistopoikkeamat[[#Headers],[Elo]],ToimistoSuunniteltu[#Headers],0))-INDEX(ToimistoTodellinen[],MATCH(INDEX(Toimistopoikkeamat[],ROW()-ROW(Toimistopoikkeamat[[#Headers],[Elo]]),1),INDEX(ToimistoSuunniteltu[],,1),0),MATCH(Toimistopoikkeamat[[#Headers],[Elo]],ToimistoTodellinen[#Headers],0)) -> 250.00 € | K15: =INDEX(ToimistoSuunniteltu[],MATCH(INDEX(Toimistopoikkeamat[],ROW()-ROW(Toimistopoikkeamat[[#Headers],[Syys]]),1),INDEX(ToimistoSuunniteltu[],,1),0),MATCH(Toimistopoikkeamat[[#Headers],[Syys]],ToimistoSuunniteltu[#Headers],0))-INDEX(ToimistoTodellinen[],MATCH(INDEX(Toimistopoikkeamat[],ROW()-ROW(Toimistopoikkeamat[[#Headers],[Syys]]),1),INDEX(ToimistoSuunniteltu[],,1),0),MATCH(Toimistopoikkeamat[[#Headers],[Syys]],ToimistoTodellinen[#Headers],0)) -> 250.00 € | L15: =INDEX(ToimistoSuunniteltu[],MATCH(INDEX(Toimistopoikkeamat[],ROW()-ROW(Toimistopoikkeamat[[#Headers],[Loka]]),1),INDEX(ToimistoSuunniteltu[],,1),0),MATCH(Toimistopoikkeamat[[#Headers],[Loka]],ToimistoSuunniteltu[#Headers],0))-INDEX(ToimistoTodellinen[],MATCH(INDEX(Toimistopoikkeamat[],ROW()-ROW(Toimistopoikkeamat[[#Headers],[Loka]]),1),INDEX(ToimistoSuunniteltu[],,1),0),MATCH(Toimistopoikkeamat[[#Headers],[Loka]],ToimistoTodellinen[#Headers],0)) -> 250.00 € | M15: =INDEX(ToimistoSuunniteltu[],MATCH(INDEX(Toimistopoikkeamat[],ROW()-ROW(Toimistopoikkeamat[[#Headers],[Marras]]),1),INDEX(ToimistoSuunniteltu[],,1),0),MATCH(Toimistopoikkeamat[[#Headers],[Marras]],ToimistoSuunniteltu[#Headers],0))-INDEX(ToimistoTodellinen[],MATCH(INDEX(Toimistopoikkeamat[],ROW()-ROW(Toimistopoikkeamat[[#Headers],[Marras]]),1),INDEX(ToimistoSuunniteltu[],,1),0),MATCH(Toimistopoikkeamat[[#Headers],[Marras]],ToimistoTodellinen[#Headers],0)) -> 250.00 € | N15: =INDEX(ToimistoSuunniteltu[],MATCH(INDEX(Toimistopoikkeamat[],ROW()-ROW(Toimistopoikkeamat[[#Headers],[Joulu]]),1),INDEX(ToimistoSuunniteltu[],,1),0),MATCH(Toimistopoikkeamat[[#Headers],[Joulu]],ToimistoSuunniteltu[#Headers],0))-INDEX(ToimistoTodellinen[],MATCH(INDEX(Toimistopoikkeamat[],ROW()-ROW(Toimistopoikkeamat[[#Headers],[Joulu]]),1),INDEX(ToimistoSuunniteltu[],,1),0),MATCH(Toimistopoikkeamat[[#Headers],[Joulu]],ToimistoTodellinen[#Headers],0)) -> 250.00 € | O15: =SUM(Toimistopoikkeamat[[#This Row],[Tammi]:[Joulu]]) -> 1,566.00 €
B16: Internet-yhteys | C16: =INDEX(ToimistoSuunniteltu[],MATCH(INDEX(Toimistopoikkeamat[],ROW()-ROW(Toimistopoikkeamat[[#Headers],[Tammi]]),1),INDEX(ToimistoSuunniteltu[],,1),0),MATCH(Toimistopoikkeamat[[#Headers],[Tammi]],ToimistoSuunniteltu[#Headers],0))-INDEX(ToimistoTodellinen[],MATCH(INDEX(Toimistopoikkeamat[],ROW()-ROW(Toimistopoikkeamat[[#Headers],[Tammi]]),1),INDEX(ToimistoSuunniteltu[],,1),0),MATCH(Toimistopoikkeamat[[#Headers],[Tammi]],ToimistoTodellinen[#Headers],0)) -> 0.00 € | D16: =INDEX(ToimistoSuunniteltu[],MATCH(INDEX(Toimistopoikkeamat[],ROW()-ROW(Toimistopoikkeamat[[#Headers],[Helmi]]),1),INDEX(ToimistoSuunniteltu[],,1),0),MATCH(Toimistopoikkeamat[[#Headers],[Helmi]],ToimistoSuunniteltu[#Headers],0))-INDEX(ToimistoTodellinen[],MATCH(INDEX(Toimistopoikkeamat[],ROW()-ROW(Toimistopoikkeamat[[#Headers],[Helmi]]),1),INDEX(ToimistoSuunniteltu[],,1),0),MATCH(Toimistopoikkeamat[[#Headers],[Helmi]],ToimistoTodellinen[#Headers],0)) -> 0.00 € | E16: =INDEX(ToimistoSuunniteltu[],MATCH(INDEX(Toimistopoikkeamat[],ROW()-ROW(Toimistopoikkeamat[[#Headers],[Maalis]]),1),INDEX(ToimistoSuunniteltu[],,1),0),MATCH(Toimistopoikkeamat[[#Headers],[Maalis]],ToimistoSuunniteltu[#Headers],0))-INDEX(ToimistoTodellinen[],MATCH(INDEX(Toimistopoikkeamat[],ROW()-ROW(Toimistopoikkeamat[[#Headers],[Maalis]]),1),INDEX(ToimistoSuunniteltu[],,1),0),MATCH(Toimistopoikkeamat[[#Headers],[Maalis]],ToimistoTodellinen[#Headers],0)) -> 0.00 € | F16: =INDEX(ToimistoSuunniteltu[],MATCH(INDEX(Toimistopoikkeamat[],ROW()-ROW(Toimistopoikkeamat[[#Headers],[Huhti]]),1),INDEX(ToimistoSuunniteltu[],,1),0),MATCH(Toimistopoikkeamat[[#Headers],[Huhti]],ToimistoSuunniteltu[#Headers],0))-INDEX(ToimistoTodellinen[],MATCH(INDEX(Toimistopoikkeamat[],ROW()-ROW(Toimistopoikkeamat[[#Headers],[Huhti]]),1),INDEX(ToimistoSuunniteltu[],,1),0),MATCH(Toimistopoikkeamat[[#Headers],[Huhti]],ToimistoTodellinen[#Headers],0)) -> 0.00 € | G16: =INDEX(ToimistoSuunniteltu[],MATCH(INDEX(Toimistopoikkeamat[],ROW()-ROW(Toimistopoikkeamat[[#Headers],[Touko]]),1),INDEX(ToimistoSuunniteltu[],,1),0),MATCH(Toimistopoikkeamat[[#Headers],[Touko]],ToimistoSuunniteltu[#Headers],0))-INDEX(ToimistoTodellinen[],MATCH(INDEX(Toimistopoikkeamat[],ROW()-ROW(Toimistopoikkeamat[[#Headers],[Touko]]),1),INDEX(ToimistoSuunniteltu[],,1),0),MATCH(Toimistopoikkeamat[[#Headers],[Touko]],ToimistoTodellinen[#Headers],0)) -> 0.00 € | H16: =INDEX(ToimistoSuunniteltu[],MATCH(INDEX(Toimistopoikkeamat[],ROW()-ROW(Toimistopoikkeamat[[#Headers],[Kesä]]),1),INDEX(ToimistoSuunniteltu[],,1),0),MATCH(Toimistopoikkeamat[[#Headers],[Kesä]],ToimistoSuunniteltu[#Headers],0))-INDEX(ToimistoTodellinen[],MATCH(INDEX(Toimistopoikkeamat[],ROW()-ROW(Toimistopoikkeamat[[#Headers],[Kesä]]),1),INDEX(ToimistoSuunniteltu[],,1),0),MATCH(Toimistopoikkeamat[[#Headers],[Kesä]],ToimistoTodellinen[#Headers],0)) -> 0.00 € | I16: =INDEX(ToimistoSuunniteltu[],MATCH(INDEX(Toimistopoikkeamat[],ROW()-ROW(Toimistopoikkeamat[[#Headers],[Heinä]]),1),INDEX(ToimistoSuunniteltu[],,1),0),MATCH(Toimistopoikkeamat[[#Headers],[Heinä]],ToimistoSuunniteltu[#Headers],0))-INDEX(ToimistoTodellinen[],MATCH(INDEX(Toimistopoikkeamat[],ROW()-ROW(Toimistopoikkeamat[[#Headers],[Heinä]]),1),INDEX(ToimistoSuunniteltu[],,1),0),MATCH(Toimistopoikkeamat[[#Headers],[Heinä]],ToimistoTodellinen[#Headers],0)) -> 180.00 € | J16: =INDEX(ToimistoSuunniteltu[],MATCH(INDEX(Toimistopoikkeamat[],ROW()-ROW(Toimistopoikkeamat[[#Headers],[Elo]]),1),INDEX(ToimistoSuunniteltu[],,1),0),MATCH(Toimistopoikkeamat[[#Headers],[Elo]],ToimistoSuunniteltu[#Headers],0))-INDEX(ToimistoTodellinen[],MATCH(INDEX(Toimistopoikkeamat[],ROW()-ROW(Toimistopoikkeamat[[#Headers],[Elo]]),1),INDEX(ToimistoSuunniteltu[],,1),0),MATCH(Toimistopoikkeamat[[#Headers],[Elo]],ToimistoTodellinen[#Headers],0)) -> 180.00 € | K16: =INDEX(ToimistoSuunniteltu[],MATCH(INDEX(Toimistopoikkeamat[],ROW()-ROW(Toimistopoikkeamat[[#Headers],[Syys]]),1),INDEX(ToimistoSuunniteltu[],,1),0),MATCH(Toimistopoikkeamat[[#Headers],[Syys]],ToimistoSuunniteltu[#Headers],0))-INDEX(ToimistoTodellinen[],MATCH(INDEX(Toimistopoikkeamat[],ROW()-ROW(Toimistopoikkeamat[[#Headers],[Syys]]),1),INDEX(ToimistoSuunniteltu[],,1),0),MATCH(Toimistopoikkeamat[[#Headers],[Syys]],ToimistoTodellinen[#Headers],0)) -> 180.00 € | L16: =INDEX(ToimistoSuunniteltu[],MATCH(INDEX(Toimistopoikkeamat[],ROW()-ROW(Toimistopoikkeamat[[#Headers],[Loka]]),1),INDEX(ToimistoSuunniteltu[],,1),0),MATCH(Toimistopoikkeamat[[#Headers],[Loka]],ToimistoSuunniteltu[#Headers],0))-INDEX(ToimistoTodellinen[],MATCH(INDEX(Toimistopoikkeamat[],ROW()-ROW(Toimistopoikkeamat[[#Headers],[Loka]]),1),INDEX(ToimistoSuunniteltu[],,1),0),MATCH(Toimistopoikkeamat[[#Headers],[Loka]],ToimistoTodellinen[#Headers],0)) -> 180.00 € | M16: =INDEX(ToimistoSuunniteltu[],MATCH(INDEX(Toimistopoikkeamat[],ROW()-ROW(Toimistopoikkeamat[[#Headers],[Marras]]),1),INDEX(ToimistoSuunniteltu[],,1),0),MATCH(Toimistopoikkeamat[[#Headers],[Marras]],ToimistoSuunniteltu[#Headers],0))-INDEX(ToimistoTodellinen[],MATCH(INDEX(Toimistopoikkeamat[],ROW()-ROW(Toimistopoikkeamat[[#Headers],[Marras]]),1),INDEX(ToimistoSuunniteltu[],,1),0),MATCH(Toimistopoikkeamat[[#Headers],[Marras]],ToimistoTodellinen[#Headers],0)) -> 180.00 € | N16: =INDEX(ToimistoSuunniteltu[],MATCH(INDEX(Toimistopoikkeamat[],ROW()-ROW(Toimistopoikkeamat[[#Headers],[Joulu]]),1),INDEX(ToimistoSuunniteltu[],,1),0),MATCH(Toimistopoikkeamat[[#Headers],[Joulu]],ToimistoSuunniteltu[#Headers],0))-INDEX(ToimistoTodellinen[],MATCH(INDEX(Toimistopoikkeamat[],ROW()-ROW(Toimistopoikkeamat[[#Headers],[Joulu]]),1),INDEX(ToimistoSuunniteltu[],,1),0),MATCH(Toimistopoikkeamat[[#Headers],[Joulu]],ToimistoTodellinen[#Headers],0)) -> 180.00 € | O16: =SUM(Toimistopoikkeamat[[#This Row],[Tammi]:[Joulu]]) -> 1,080.00 €
B17: Toimistotarvikkeet | C17: =INDEX(ToimistoSuunniteltu[],MATCH(INDEX(Toimistopoikkeamat[],ROW()-ROW(Toimistopoikkeamat[[#Headers],[Tammi]]),1),INDEX(ToimistoSuunniteltu[],,1),0),MATCH(Toimistopoikkeamat[[#Headers],[Tammi]],ToimistoSuunniteltu[#Headers],0))-INDEX(ToimistoTodellinen[],MATCH(INDEX(Toimistopoikkeamat[],ROW()-ROW(Toimistopoikkeamat[[#Headers],[Tammi]]),1),INDEX(ToimistoSuunniteltu[],,1),0),MATCH(Toimistopoikkeamat[[#Headers],[Tammi]],ToimistoTodellinen[#Headers],0)) -> -56.00 € | D17: =INDEX(ToimistoSuunniteltu[],MATCH(INDEX(Toimistopoikkeamat[],ROW()-ROW(Toimistopoikkeamat[[#Headers],[Helmi]]),1),INDEX(ToimistoSuunniteltu[],,1),0),MATCH(Toimistopoikkeamat[[#Headers],[Helmi]],ToimistoSuunniteltu[#Headers],0))-INDEX(ToimistoTodellinen[],MATCH(INDEX(Toimistopoikkeamat[],ROW()-ROW(Toimistopoikkeamat[[#Headers],[Helmi]]),1),INDEX(ToimistoSuunniteltu[],,1),0),MATCH(Toimistopoikkeamat[[#Headers],[Helmi]],ToimistoTodellinen[#Headers],0)) -> 58.00 € | E17: =INDEX(ToimistoSuunniteltu[],MATCH(INDEX(Toimistopoikkeamat[],ROW()-ROW(Toimistopoikkeamat[[#Headers],[Maalis]]),1),INDEX(ToimistoSuunniteltu[],,1),0),MATCH(Toimistopoikkeamat[[#Headers],[Maalis]],ToimistoSuunniteltu[#Headers],0))-INDEX(ToimistoTodellinen[],MATCH(INDEX(Toimistopoikkeamat[],ROW()-ROW(Toimistopoikkeamat[[#Headers],[Maalis]]),1),INDEX(ToimistoSuunniteltu[],,1),0),MATCH(Toimistopoikkeamat[[#Headers],[Maalis]],ToimistoTodellinen[#Headers],0)) -> 40.00 € | F17: =INDEX(ToimistoSuunniteltu[],MATCH(INDEX(Toimistopoikkeamat[],ROW()-ROW(Toimistopoikkeamat[[#Headers],[Huhti]]),1),INDEX(ToimistoSuunniteltu[],,1),0),MATCH(Toimistopoikkeamat[[#Headers],[Huhti]],ToimistoSuunniteltu[#Headers],0))-INDEX(ToimistoTodellinen[],MATCH(INDEX(Toimistopoikkeamat[],ROW()-ROW(Toimistopoikkeamat[[#Headers],[Huhti]]),1),INDEX(ToimistoSuunniteltu[],,1),0),MATCH(Toimistopoikkeamat[[#Headers],[Huhti]],ToimistoTodellinen[#Headers],0)) -> -21.00 € | G17: =INDEX(ToimistoSuunniteltu[],MATCH(INDEX(Toimistopoikkeamat[],ROW()-ROW(Toimistopoikkeamat[[#Headers],[Touko]]),1),INDEX(ToimistoSuunniteltu[],,1),0),MATCH(Toimistopoikkeamat[[#Headers],[Touko]],ToimistoSuunniteltu[#Headers],0))-INDEX(ToimistoTodellinen[],MATCH(INDEX(Toimistopoikkeamat[],ROW()-ROW(Toimistopoikkeamat[[#Headers],[Touko]]),1),INDEX(ToimistoSuunniteltu[],,1),0),MATCH(Toimistopoikkeamat[[#Headers],[Touko]],ToimistoTodellinen[#Headers],0)) -> -56.00 € | H17: =INDEX(ToimistoSuunniteltu[],MATCH(INDEX(Toimistopoikkeamat[],ROW()-ROW(Toimistopoikkeamat[[#Headers],[Kesä]]),1),INDEX(ToimistoSuunniteltu[],,1),0),MATCH(Toimistopoikkeamat[[#Headers],[Kesä]],ToimistoSuunniteltu[#Headers],0))-INDEX(ToimistoTodellinen[],MATCH(INDEX(Toimistopoikkeamat[],ROW()-ROW(Toimistopoikkeamat[[#Headers],[Kesä]]),1),INDEX(ToimistoSuunniteltu[],,1),0),MATCH(Toimistopoikkeamat[[#Headers],[Kesä]],ToimistoTodellinen[#Headers],0)) -> -40.00 € | I17: =INDEX(ToimistoSuunniteltu[],MATCH(INDEX(Toimistopoikkeamat[],ROW()-ROW(Toimistopoikkeamat[[#Headers],[Heinä]]),1),INDEX(ToimistoSuunniteltu[],,1),0),MATCH(Toimistopoikkeamat[[#Headers],[Heinä]],ToimistoSuunniteltu[#Headers],0))-INDEX(ToimistoTodellinen[],MATCH(INDEX(Toimistopoikkeamat[],ROW()-ROW(Toimistopoikkeamat[[#Headers],[Heinä]]),1),INDEX(ToimistoSuunniteltu[],,1),0),MATCH(Toimistopoikkeamat[[#Headers],[Heinä]],ToimistoTodellinen[#Headers],0)) -> 200.00 € | J17: =INDEX(ToimistoSuunniteltu[],MATCH(INDEX(Toimistopoikkeamat[],ROW()-ROW(Toimistopoikkeamat[[#Headers],[Elo]]),1),INDEX(ToimistoSuunniteltu[],,1),0),MATCH(Toimistopoikkeamat[[#Headers],[Elo]],ToimistoSuunniteltu[#Headers],0))-INDEX(ToimistoTodellinen[],MATCH(INDEX(Toimistopoikkeamat[],ROW()-ROW(Toimistopoikkeamat[[#Headers],[Elo]]),1),INDEX(ToimistoSuunniteltu[],,1),0),MATCH(Toimistopoikkeamat[[#Headers],[Elo]],ToimistoTodellinen[#Headers],0)) -> 200.00 € | K17: =INDEX(ToimistoSuunniteltu[],MATCH(INDEX(Toimistopoikkeamat[],ROW()-ROW(Toimistopoikkeamat[[#Headers],[Syys]]),1),INDEX(ToimistoSuunniteltu[],,1),0),MATCH(Toimistopoikkeamat[[#Headers],[Syys]],ToimistoSuunniteltu[#Headers],0))-INDEX(ToimistoTodellinen[],MATCH(INDEX(Toimistopoikkeamat[],ROW()-ROW(Toimistopoikkeamat[[#Headers],[Syys]]),1),INDEX(ToimistoSuunniteltu[],,1),0),MATCH(Toimistopoikkeamat[[#Headers],[Syys]],ToimistoTodellinen[#Headers],0)) -> 200.00 € | L17: =INDEX(ToimistoSuunniteltu[],MATCH(INDEX(Toimistopoikkeamat[],ROW()-ROW(Toimistopoikkeamat[[#Headers],[Loka]]),1),INDEX(ToimistoSuunniteltu[],,1),0),MATCH(Toimistopoikkeamat[[#Headers],[Loka]],ToimistoSuunniteltu[#Headers],0))-INDEX(ToimistoTodellinen[],MATCH(INDEX(Toimistopoikkeamat[],ROW()-ROW(Toimistopoikkeamat[[#Headers],[Loka]]),1),INDEX(ToimistoSuunniteltu[],,1),0),MATCH(Toimistopoikkeamat[[#Headers],[Loka]],ToimistoTodellinen[#Headers],0)) -> 200.00 € | M17: =INDEX(ToimistoSuunniteltu[],MATCH(INDEX(Toimistopoikkeamat[],ROW()-ROW(Toimistopoikkeamat[[#Headers],[Marras]]),1),INDEX(ToimistoSuunniteltu[],,1),0),MATCH(Toimistopoikkeamat[[#Headers],[Marras]],ToimistoSuunniteltu[#Headers],0))-INDEX(ToimistoTodellinen[],MATCH(INDEX(Toimistopoikkeamat[],ROW()-ROW(Toimistopoikkeamat[[#Headers],[Marras]]),1),INDEX(ToimistoSuunniteltu[],,1),0),MATCH(Toimistopoikkeamat[[#Headers],[Marras]],ToimistoTodellinen[#Headers],0)) -> 200.00 € | N17: =INDEX(ToimistoSuunniteltu[],MATCH(INDEX(Toimistopoikkeamat[],ROW()-ROW(Toimistopoikkeamat[[#Headers],[Joulu]]),1),INDEX(ToimistoSuunniteltu[],,1),0),MATCH(Toimistopoikkeamat[[#Headers],[Joulu]],ToimistoSuunniteltu[#Headers],0))-INDEX(ToimistoTodellinen[],MATCH(INDEX(Toimistopoikkeamat[],ROW()-ROW(Toimistopoikkeamat[[#Headers],[Joulu]]),1),INDEX(ToimistoSuunniteltu[],,1),0),MATCH(Toimistopoikkeamat[[#Headers],[Joulu]],ToimistoTodellinen[#Headers],0)) -> 200.00 € | O17: =SUM(Toimistopoikkeamat[[#This Row],[Tammi]:[Joulu]]) -> 1,125.00 €
B18: Tietoturva | C18: =INDEX(ToimistoSuunniteltu[],MATCH(INDEX(Toimistopoikkeamat[],ROW()-ROW(Toimistopoikkeamat[[#Headers],[Tammi]]),1),INDEX(ToimistoSuunniteltu[],,1),0),MATCH(Toimistopoikkeamat[[#Headers],[Tammi]],ToimistoSuunniteltu[#Headers],0))-INDEX(ToimistoTodellinen[],MATCH(INDEX(Toimistopoikkeamat[],ROW()-ROW(Toimistopoikkeamat[[#Headers],[Tammi]]),1),INDEX(ToimistoSuunniteltu[],,1),0),MATCH(Toimistopoikkeamat[[#Headers],[Tammi]],ToimistoTodellinen[#Headers],0)) -> 0.00 € | D18: =INDEX(ToimistoSuunniteltu[],MATCH(INDEX(Toimistopoikkeamat[],ROW()-ROW(Toimistopoikkeamat[[#Headers],[Helmi]]),1),INDEX(ToimistoSuunniteltu[],,1),0),MATCH(Toimistopoikkeamat[[#Headers],[Helmi]],ToimistoSuunniteltu[#Headers],0))-INDEX(ToimistoTodellinen[],MATCH(INDEX(Toimistopoikkeamat[],ROW()-ROW(Toimistopoikkeamat[[#Headers],[Helmi]]),1),INDEX(ToimistoSuunniteltu[],,1),0),MATCH(Toimistopoikkeamat[[#Headers],[Helmi]],ToimistoTodellinen[#Headers],0)) -> 0.00 € | E18: =INDEX(ToimistoSuunniteltu[],MATCH(INDEX(Toimistopoikkeamat[],ROW()-ROW(Toimistopoikkeamat[[#Headers],[Maalis]]),1),INDEX(ToimistoSuunniteltu[],,1),0),MATCH(Toimistopoikkeamat[[#Headers],[Maalis]],ToimistoSuunniteltu[#Headers],0))-INDEX(ToimistoTodellinen[],MATCH(INDEX(Toimistopoikkeamat[],ROW()-ROW(Toimistopoikkeamat[[#Headers],[Maalis]]),1),INDEX(ToimistoSuunniteltu[],,1),0),MATCH(Toimistopoikkeamat[[#Headers],[Maalis]],ToimistoTodellinen[#Headers],0)) -> 0.00 € | F18: =INDEX(ToimistoSuunniteltu[],MATCH(INDEX(Toimistopoikkeamat[],ROW()-ROW(Toimistopoikkeamat[[#Headers],[Huhti]]),1),INDEX(ToimistoSuunniteltu[],,1),0),MATCH(Toimistopoikkeamat[[#Headers],[Huhti]],ToimistoSuunniteltu[#Headers],0))-INDEX(ToimistoTodellinen[],MATCH(INDEX(Toimistopoikkeamat[],ROW()-ROW(Toimistopoikkeamat[[#Headers],[Huhti]]),1),INDEX(ToimistoSuunniteltu[],,1),0),MATCH(Toimistopoikkeamat[[#Headers],[Huhti]],ToimistoTodellinen[#Headers],0)) -> 0.00 € | G18: =INDEX(ToimistoSuunniteltu[],MATCH(INDEX(Toimistopoikkeamat[],ROW()-ROW(Toimistopoikkeamat[[#Headers],[Touko]]),1),INDEX(ToimistoSuunniteltu[],,1),0),MATCH(Toimistopoikkeamat[[#Headers],[Touko]],ToimistoSuunniteltu[#Headers],0))-INDEX(ToimistoTodellinen[],MATCH(INDEX(Toimistopoikkeamat[],ROW()-ROW(Toimistopoikkeamat[[#Headers],[Touko]]),1),INDEX(ToimistoSuunniteltu[],,1),0),MATCH(Toimistopoikkeamat[[#Headers],[Touko]],ToimistoTodellinen[#Headers],0)) -> 0.00 € | H18: =INDEX(ToimistoSuunniteltu[],MATCH(INDEX(Toimistopoikkeamat[],ROW()-ROW(Toimistopoikkeamat[[#Headers],[Kesä]]),1),INDEX(ToimistoSuunniteltu[],,1),0),MATCH(Toimistopoikkeamat[[#Headers],[Kesä]],ToimistoSuunniteltu[#Headers],0))-INDEX(ToimistoTodellinen[],MATCH(INDEX(Toimistopoikkeamat[],ROW()-ROW(Toimistopoikkeamat[[#Headers],[Kesä]]),1),INDEX(ToimistoSuunniteltu[],,1),0),MATCH(Toimistopoikkeamat[[#Headers],[Kesä]],ToimistoTodellinen[#Headers],0)) -> 0.00 € | I18: =INDEX(ToimistoSuunniteltu[],MATCH(INDEX(Toimistopoikkeamat[],ROW()-ROW(Toimistopoikkeamat[[#Headers],[Heinä]]),1),INDEX(ToimistoSuunniteltu[],,1),0),MATCH(Toimistopoikkeamat[[#Headers],[Heinä]],ToimistoSuunniteltu[#Headers],0))-INDEX(ToimistoTodellinen[],MATCH(INDEX(Toimistopoikkeamat[],ROW()-ROW(Toimistopoikkeamat[[#Headers],[Heinä]]),1),INDEX(ToimistoSuunniteltu[],,1),0),MATCH(Toimistopoikkeamat[[#Headers],[Heinä]],ToimistoTodellinen[#Headers],0)) -> 600.00 € | J18: =INDEX(ToimistoSuunniteltu[],MATCH(INDEX(Toimistopoikkeamat[],ROW()-ROW(Toimistopoikkeamat[[#Headers],[Elo]]),1),INDEX(ToimistoSuunniteltu[],,1),0),MATCH(Toimistopoikkeamat[[#Headers],[Elo]],ToimistoSuunniteltu[#Headers],0))-INDEX(ToimistoTodellinen[],MATCH(INDEX(Toimistopoikkeamat[],ROW()-ROW(Toimistopoikkeamat[[#Headers],[Elo]]),1),INDEX(ToimistoSuunniteltu[],,1),0),MATCH(Toimistopoikkeamat[[#Headers],[Elo]],ToimistoTodellinen[#Headers],0)) -> 600.00 € | K18: =INDEX(ToimistoSuunniteltu[],MATCH(INDEX(Toimistopoikkeamat[],ROW()-ROW(Toimistopoikkeamat[[#Headers],[Syys]]),1),INDEX(ToimistoSuunniteltu[],,1),0),MATCH(Toimistopoikkeamat[[#Headers],[Syys]],ToimistoSuunniteltu[#Headers],0))-INDEX(ToimistoTodellinen[],MATCH(INDEX(Toimistopoikkeamat[],ROW()-ROW(Toimistopoikkeamat[[#Headers],[Syys]]),1),INDEX(ToimistoSuunniteltu[],,1),0),MATCH(Toimistopoikkeamat[[#Headers],[Syys]],ToimistoTodellinen[#Headers],0)) -> 600.00 € | L18: =INDEX(ToimistoSuunniteltu[],MATCH(INDEX(Toimistopoikkeamat[],ROW()-ROW(Toimistopoikkeamat[[#Headers],[Loka]]),1),INDEX(ToimistoSuunniteltu[],,1),0),MATCH(Toimistopoikkeamat[[#Headers],[Loka]],ToimistoSuunniteltu[#Headers],0))-INDEX(ToimistoTodellinen[],MATCH(INDEX(Toimistopoikkeamat[],ROW()-ROW(Toimistopoikkeamat[[#Headers],[Loka]]),1),INDEX(ToimistoSuunniteltu[],,1),0),MATCH(Toimistopoikkeamat[[#Headers],[Loka]],ToimistoTodellinen[#Headers],0)) -> 600.00 € | M18: =INDEX(ToimistoSuunniteltu[],MATCH(INDEX(Toimistopoikkeamat[],ROW()-ROW(Toimistopoikkeamat[[#Headers],[Marras]]),1),INDEX(ToimistoSuunniteltu[],,1),0),MATCH(Toimistopoikkeamat[[#Headers],[Marras]],ToimistoSuunniteltu[#Headers],0))-INDEX(ToimistoTodellinen[],MATCH(INDEX(Toimistopoikkeamat[],ROW()-ROW(Toimistopoikkeamat[[#Headers],[Marras]]),1),INDEX(ToimistoSuunniteltu[],,1),0),MATCH(Toimistopoikkeamat[[#Headers],[Marras]],ToimistoTodellinen[#Headers],0)) -> 600.00 € | N18: =INDEX(ToimistoSuunniteltu[],MATCH(INDEX(Toimistopoikkeamat[],ROW()-ROW(Toimistopoikkeamat[[#Headers],[Joulu]]),1),INDEX(ToimistoSuunniteltu[],,1),0),MATCH(Toimistopoikkeamat[[#Headers],[Joulu]],ToimistoSuunniteltu[#Headers],0))-INDEX(ToimistoTodellinen[],MATCH(INDEX(Toimistopoikkeamat[],ROW()-ROW(Toimistopoikkeamat[[#Headers],[Joulu]]),1),INDEX(ToimistoSuunniteltu[],,1),0),MATCH(Toimistopoikkeamat[[#Headers],[Joulu]],ToimistoTodellinen[#Headers],0)) -> 600.00 € | O18: =SUM(Toimistopoikkeamat[[#This Row],[Tammi]:[Joulu]]) -> 3,600.00 €
B19: Välisumma | C19: =SUBTOTAL(109,Toimistopoikkeamat[Tammi]) -> -17.00 € | D19: =SUBTOTAL(109,Toimistopoikkeamat[Helmi]) -> 72.00 € | E19: =SUBTOTAL(109,Toimistopoikkeamat[Maalis]) -> 78.00 € | F19: =SUBTOTAL(109,Toimistopoikkeamat[Huhti]) -> -141.00 € | G19: =SUBTOTAL(109,Toimistopoikkeamat[Touko]) -> -38.00 € | H19: =SUBTOTAL(109,Toimistopoikkeamat[Kesä]) -> 16.00 € | I19: =SUBTOTAL(109,Toimistopoikkeamat[Heinä]) -> 11,470.00 € | J19: =SUBTOTAL(109,Toimistopoikkeamat[Elo]) -> 11,470.00 € | K19: =SUBTOTAL(109,Toimistopoikkeamat[Syys]) -> 11,470.00 € | L19: =SUBTOTAL(109,Toimistopoikkeamat[Loka]) -> 11,470.00 € | M19: =SUBTOTAL(109,Toimistopoikkeamat[Marras]) -> 11,770.00 € | N19: =SUBTOTAL(109,Toimistopoikkeamat[Joulu]) -> 11,770.00 € | O19: =SUBTOTAL(109,Toimistopoikkeamat[VUOSI]) -> 69,390.00 €
A21: Markkinointikulut poikkeama lasketaan automaattisesti Markkinointipoikkeamat-taulukkoon oikealla olevasta solusta aloittaen. Seuraava ohje on solussa A30. | B21: Markkinointikulut | C21: Tammi | D21: Helmi | E21: Maalis | F21: Huhti | G21: Touko | H21: Kesä | I21: Heinä | J21: Elo | K21: Syys | L21: Loka | M21: Marras | N21: Joulu | O21: VUOSI
B22: Verkkosivuston isännöinti | C22: =INDEX(MarkkinointiSuunniteltu[],MATCH(INDEX(Markkinointipoikkeamat[],ROW()-ROW(Markkinointipoikkeamat[[#Headers],[Tammi]]),1),INDEX(MarkkinointiSuunniteltu[],,1),0),MATCH(Markkinointipoikkeamat[[#Headers],[Tammi]],MarkkinointiSuunniteltu[#Headers],0))-INDEX(MarkkinointiTodellinen[],MATCH(INDEX(Markkinointipoikkeamat[],ROW()-ROW(Markkinointipoikkeamat[[#Headers],[Tammi]]),1),INDEX(MarkkinointiSuunniteltu[],,1),0),MATCH(Markkinointipoikkeamat[[#Headers],[Tammi]],MarkkinointiTodellinen[#Headers],0)) -> 0.00 € | D22: =INDEX(MarkkinointiSuunniteltu[],MATCH(INDEX(Markkinointipoikkeamat[],ROW()-ROW(Markkinointipoikkeamat[[#Headers],[Helmi]]),1),INDEX(MarkkinointiSuunniteltu[],,1),0),MATCH(Markkinointipoikkeamat[[#Headers],[Helmi]],MarkkinointiSuunniteltu[#Headers],0))-INDEX(MarkkinointiTodellinen[],MATCH(INDEX(Markkinointipoikkeamat[],ROW()-ROW(Markkinointipoikkeamat[[#Headers],[Helmi]]),1),INDEX(MarkkinointiSuunniteltu[],,1),0),MATCH(Markkinointipoikkeamat[[#Headers],[Helmi]],MarkkinointiTodellinen[#Headers],0)) -> 0.00 € | E22: =INDEX(MarkkinointiSuunniteltu[],MATCH(INDEX(Markkinointipoikkeamat[],ROW()-ROW(Markkinointipoikkeamat[[#Headers],[Maalis]]),1),INDEX(MarkkinointiSuunniteltu[],,1),0),MATCH(Markkinointipoikkeamat[[#Headers],[Maalis]],MarkkinointiSuunniteltu[#Headers],0))-INDEX(MarkkinointiTodellinen[],MATCH(INDEX(Markkinointipoikkeamat[],ROW()-ROW(Markkinointipoikkeamat[[#Headers],[Maalis]]),1),INDEX(MarkkinointiSuunniteltu[],,1),0),MATCH(Markkinointipoikkeamat[[#Headers],[Maalis]],MarkkinointiTodellinen[#Headers],0)) -> 0.00 € | F22: =INDEX(MarkkinointiSuunniteltu[],MATCH(INDEX(Markkinointipoikkeamat[],ROW()-ROW(Markkinointipoikkeamat[[#Headers],[Huhti]]),1),INDEX(MarkkinointiSuunniteltu[],,1),0),MATCH(Markkinointipoikkeamat[[#Headers],[Huhti]],MarkkinointiSuunniteltu[#Headers],0))-INDEX(MarkkinointiTodellinen[],MATCH(INDEX(Markkinointipoikkeamat[],ROW()-ROW(Markkinointipoikkeamat[[#Headers],[Huhti]]),1),INDEX(MarkkinointiSuunniteltu[],,1),0),MATCH(Markkinointipoikkeamat[[#Headers],[Huhti]],MarkkinointiTodellinen[#Headers],0)) -> 0.00 € | G22: =INDEX(MarkkinointiSuunniteltu[],MATCH(INDEX(Markkinointipoikkeamat[],ROW()-ROW(Markkinointipoikkeamat[[#Headers],[Touko]]),1),INDEX(MarkkinointiSuunniteltu[],,1),0),MATCH(Markkinointipoikkeamat[[#Headers],[Touko]],MarkkinointiSuunniteltu[#Headers],0))-INDEX(MarkkinointiTodellinen[],MATCH(INDEX(Markkinointipoikkeamat[],ROW()-ROW(Markkinointipoikkeamat[[#Headers],[Touko]]),1),INDEX(MarkkinointiSuunniteltu[],,1),0),MATCH(Markkinointipoikkeamat[[#Headers],[Touko]],MarkkinointiTodellinen[#Headers],0)) -> 0.00 € | H22: =INDEX(MarkkinointiSuunniteltu[],MATCH(INDEX(Markkinointipoikkeamat[],ROW()-ROW(Markkinointipoikkeamat[[#Headers],[Kesä]]),1),INDEX(MarkkinointiSuunniteltu[],,1),0),MATCH(Markkinointipoikkeamat[[#Headers],[Kesä]],MarkkinointiSuunniteltu[#Headers],0))-INDEX(MarkkinointiTodellinen[],MATCH(INDEX(Markkinointipoikkeamat[],ROW()-ROW(Markkinointipoikkeamat[[#Headers],[Kesä]]),1),INDEX(MarkkinointiSuunniteltu[],,1),0),MATCH(Markkinointipoikkeamat[[#Headers],[Kesä]],MarkkinointiTodellinen[#Headers],0)) -> 0.00 € | I22: =INDEX(MarkkinointiSuunniteltu[],MATCH(INDEX(Markkinointipoikkeamat[],ROW()-ROW(Markkinointipoikkeamat[[#Headers],[Heinä]]),1),INDEX(MarkkinointiSuunniteltu[],,1),0),MATCH(Markkinointipoikkeamat[[#Headers],[Heinä]],MarkkinointiSuunniteltu[#Headers],0))-INDEX(MarkkinointiTodellinen[],MATCH(INDEX(Markkinointipoikkeamat[],ROW()-ROW(Markkinointipoikkeamat[[#Headers],[Heinä]]),1),INDEX(MarkkinointiSuunniteltu[],,1),0),MATCH(Markkinointipoikkeamat[[#Headers],[Heinä]],MarkkinointiTodellinen[#Headers],0)) -> 500.00 € | J22: =INDEX(MarkkinointiSuunniteltu[],MATCH(INDEX(Markkinointipoikkeamat[],ROW()-ROW(Markkinointipoikkeamat[[#Headers],[Elo]]),1),INDEX(MarkkinointiSuunniteltu[],,1),0),MATCH(Markkinointipoikkeamat[[#Headers],[Elo]],MarkkinointiSuunniteltu[#Headers],0))-INDEX(MarkkinointiTodellinen[],MATCH(INDEX(Markkinointipoikkeamat[],ROW()-ROW(Markkinointipoikkeamat[[#Headers],[Elo]]),1),INDEX(MarkkinointiSuunniteltu[],,1),0),MATCH(Markkinointipoikkeamat[[#Headers],[Elo]],MarkkinointiTodellinen[#Headers],0)) -> 500.00 € | K22: =INDEX(MarkkinointiSuunniteltu[],MATCH(INDEX(Markkinointipoikkeamat[],ROW()-ROW(Markkinointipoikkeamat[[#Headers],[Syys]]),1),INDEX(MarkkinointiSuunniteltu[],,1),0),MATCH(Markkinointipoikkeamat[[#Headers],[Syys]],MarkkinointiSuunniteltu[#Headers],0))-INDEX(MarkkinointiTodellinen[],MATCH(INDEX(Markkinointipoikkeamat[],ROW()-ROW(Markkinointipoikkeamat[[#Headers],[Syys]]),1),INDEX(MarkkinointiSuunniteltu[],,1),0),MATCH(Markkinointipoikkeamat[[#Headers],[Syys]],MarkkinointiTodellinen[#Headers],0)) -> 500.00 € | L22: =INDEX(MarkkinointiSuunniteltu[],MATCH(INDEX(Markkinointipoikkeamat[],ROW()-ROW(Markkinointipoikkeamat[[#Headers],[Loka]]),1),INDEX(MarkkinointiSuunniteltu[],,1),0),MATCH(Markkinointipoikkeamat[[#Headers],[Loka]],MarkkinointiSuunniteltu[#Headers],0))-INDEX(MarkkinointiTodellinen[],MATCH(INDEX(Markkinointipoikkeamat[],ROW()-ROW(Markkinointipoikkeamat[[#Headers],[Loka]]),1),INDEX(MarkkinointiSuunniteltu[],,1),0),MATCH(Markkinointipoikkeamat[[#Headers],[Loka]],MarkkinointiTodellinen[#Headers],0)) -> 500.00 € | M22: =INDEX(MarkkinointiSuunniteltu[],MATCH(INDEX(Markkinointipoikkeamat[],ROW()-ROW(Markkinointipoikkeamat[[#Headers],[Marras]]),1),INDEX(MarkkinointiSuunniteltu[],,1),0),MATCH(Markkinointipoikkeamat[[#Headers],[Marras]],MarkkinointiSuunniteltu[#Headers],0))-INDEX(MarkkinointiTodellinen[],MATCH(INDEX(Markkinointipoikkeamat[],ROW()-ROW(Markkinointipoikkeamat[[#Headers],[Marras]]),1),INDEX(MarkkinointiSuunniteltu[],,1),0),MATCH(Markkinointipoikkeamat[[#Headers],[Marras]],MarkkinointiTodellinen[#Headers],0)) -> 500.00 € | N22: =INDEX(MarkkinointiSuunniteltu[],MATCH(INDEX(Markkinointipoikkeamat[],ROW()-ROW(Markkinointipoikkeamat[[#Headers],[Joulu]]),1),INDEX(MarkkinointiSuunniteltu[],,1),0),MATCH(Markkinointipoikkeamat[[#Headers],[Joulu]],MarkkinointiSuunniteltu[#Headers],0))-INDEX(MarkkinointiTodellinen[],MATCH(INDEX(Markkinointipoikkeamat[],ROW()-ROW(Markkinointipoikkeamat[[#Headers],[Joulu]]),1),INDEX(MarkkinointiSuunniteltu[],,1),0),MATCH(Markkinointipoikkeamat[[#Headers],[Joulu]],MarkkinointiTodellinen[#Headers],0)) -> 500.00 € | O22: =SUM(Markkinointipoikkeamat[[#This Row],[Tammi]:[Joulu]]) -> 3,000.00 €
B23: Verkkosivuston päivitykset | C23: =INDEX(MarkkinointiSuunniteltu[],MATCH(INDEX(Markkinointipoikkeamat[],ROW()-ROW(Markkinointipoikkeamat[[#Headers],[Tammi]]),1),INDEX(MarkkinointiSuunniteltu[],,1),0),MATCH(Markkinointipoikkeamat[[#Headers],[Tammi]],MarkkinointiSuunniteltu[#Headers],0))-INDEX(MarkkinointiTodellinen[],MATCH(INDEX(Markkinointipoikkeamat[],ROW()-ROW(Markkinointipoikkeamat[[#Headers],[Tammi]]),1),INDEX(MarkkinointiSuunniteltu[],,1),0),MATCH(Markkinointipoikkeamat[[#Headers],[Tammi]],MarkkinointiTodellinen[#Headers],0)) -> 0.00 € | D23: =INDEX(MarkkinointiSuunniteltu[],MATCH(INDEX(Markkinointipoikkeamat[],ROW()-ROW(Markkinointipoikkeamat[[#Headers],[Helmi]]),1),INDEX(MarkkinointiSuunniteltu[],,1),0),MATCH(Markkinointipoikkeamat[[#Headers],[Helmi]],MarkkinointiSuunniteltu[#Headers],0))-INDEX(MarkkinointiTodellinen[],MATCH(INDEX(Markkinointipoikkeamat[],ROW()-ROW(Markkinointipoikkeamat[[#Headers],[Helmi]]),1),INDEX(MarkkinointiSuunniteltu[],,1),0),MATCH(Markkinointipoikkeamat[[#Headers],[Helmi]],MarkkinointiTodellinen[#Headers],0)) -> 0.00 € | E23: =INDEX(MarkkinointiSuunniteltu[],MATCH(INDEX(Markkinointipoikkeamat[],ROW()-ROW(Markkinointipoikkeamat[[#Headers],[Maalis]]),1),INDEX(MarkkinointiSuunniteltu[],,1),0),MATCH(Markkinointipoikkeamat[[#Headers],[Maalis]],MarkkinointiSuunniteltu[#Headers],0))-INDEX(MarkkinointiTodellinen[],MATCH(INDEX(Markkinointipoikkeamat[],ROW()-ROW(Markkinointipoikkeamat[[#Headers],[Maalis]]),1),INDEX(MarkkinointiSuunniteltu[],,1),0),MATCH(Markkinointipoikkeamat[[#Headers],[Maalis]],MarkkinointiTodellinen[#Headers],0)) -> 0.00 € | F23: =INDEX(MarkkinointiSuunniteltu[],MATCH(INDEX(Markkinointipoikkeamat[],ROW()-ROW(Markkinointipoikkeamat[[#Headers],[Huhti]]),1),INDEX(MarkkinointiSuunniteltu[],,1),0),MATCH(Markkinointipoikkeamat[[#Headers],[Huhti]],MarkkinointiSuunniteltu[#Headers],0))-INDEX(MarkkinointiTodellinen[],MATCH(INDEX(Markkinointipoikkeamat[],ROW()-ROW(Markkinointipoikkeamat[[#Headers],[Huhti]]),1),INDEX(MarkkinointiSuunniteltu[],,1),0),MATCH(Markkinointipoikkeamat[[#Headers],[Huhti]],MarkkinointiTodellinen[#Headers],0)) -> 0.00 € | G23: =INDEX(MarkkinointiSuunniteltu[],MATCH(INDEX(Markkinointipoikkeamat[],ROW()-ROW(Markkinointipoikkeamat[[#Headers],[Touko]]),1),INDEX(MarkkinointiSuunniteltu[],,1),0),MATCH(Markkinointipoikkeamat[[#Headers],[Touko]],MarkkinointiSuunniteltu[#Headers],0))-INDEX(MarkkinointiTodellinen[],MATCH(INDEX(Markkinointipoikkeamat[],ROW()-ROW(Markkinointipoikkeamat[[#Headers],[Touko]]),1),INDEX(MarkkinointiSuunniteltu[],,1),0),MATCH(Markkinointipoikkeamat[[#Headers],[Touko]],MarkkinointiTodellinen[#Headers],0)) -> 0.00 € | H23: =INDEX(MarkkinointiSuunniteltu[],MATCH(INDEX(Markkinointipoikkeamat[],ROW()-ROW(Markkinointipoikkeamat[[#Headers],[Kesä]]),1),INDEX(MarkkinointiSuunniteltu[],,1),0),MATCH(Markkinointipoikkeamat[[#Headers],[Kesä]],MarkkinointiSuunniteltu[#Headers],0))-INDEX(MarkkinointiTodellinen[],MATCH(INDEX(Markkinointipoikkeamat[],ROW()-ROW(Markkinointipoikkeamat[[#Headers],[Kesä]]),1),INDEX(MarkkinointiSuunniteltu[],,1),0),MATCH(Markkinointipoikkeamat[[#Headers],[Kesä]],MarkkinointiTodellinen[#Headers],0)) -> -500.00 € | I23: =INDEX(MarkkinointiSuunniteltu[],MATCH(INDEX(Markkinointipoikkeamat[],ROW()-ROW(Markkinointipoikkeamat[[#Headers],[Heinä]]),1),INDEX(MarkkinointiSuunniteltu[],,1),0),MATCH(Markkinointipoikkeamat[[#Headers],[Heinä]],MarkkinointiSuunniteltu[#Headers],0))-INDEX(MarkkinointiTodellinen[],MATCH(INDEX(Markkinointipoikkeamat[],ROW()-ROW(Markkinointipoikkeamat[[#Headers],[Heinä]]),1),INDEX(MarkkinointiSuunniteltu[],,1),0),MATCH(Markkinointipoikkeamat[[#Headers],[Heinä]],MarkkinointiTodellinen[#Headers],0)) -> 200.00 € | J23: =INDEX(MarkkinointiSuunniteltu[],MATCH(INDEX(Markkinointipoikkeamat[],ROW()-ROW(Markkinointipoikkeamat[[#Headers],[Elo]]),1),INDEX(MarkkinointiSuunniteltu[],,1),0),MATCH(Markkinointipoikkeamat[[#Headers],[Elo]],MarkkinointiSuunniteltu[#Headers],0))-INDEX(MarkkinointiTodellinen[],MATCH(INDEX(Markkinointipoikkeamat[],ROW()-ROW(Markkinointipoikkeamat[[#Headers],[Elo]]),1),INDEX(MarkkinointiSuunniteltu[],,1),0),MATCH(Markkinointipoikkeamat[[#Headers],[Elo]],MarkkinointiTodellinen[#Headers],0)) -> 200.00 € | K23: =INDEX(MarkkinointiSuunniteltu[],MATCH(INDEX(Markkinointipoikkeamat[],ROW()-ROW(Markkinointipoikkeamat[[#Headers],[Syys]]),1),INDEX(MarkkinointiSuunniteltu[],,1),0),MATCH(Markkinointipoikkeamat[[#Headers],[Syys]],MarkkinointiSuunniteltu[#Headers],0))-INDEX(MarkkinointiTodellinen[],MATCH(INDEX(Markkinointipoikkeamat[],ROW()-ROW(Markkinointipoikkeamat[[#Headers],[Syys]]),1),INDEX(MarkkinointiSuunniteltu[],,1),0),MATCH(Markkinointipoikkeamat[[#Headers],[Syys]],MarkkinointiTodellinen[#Headers],0)) -> 200.00 € | L23: =INDEX(MarkkinointiSuunniteltu[],MATCH(INDEX(Markkinointipoikkeamat[],ROW()-ROW(Markkinointipoikkeamat[[#Headers],[Loka]]),1),INDEX(MarkkinointiSuunniteltu[],,1),0),MATCH(Markkinointipoikkeamat[[#Headers],[Loka]],MarkkinointiSuunniteltu[#Headers],0))-INDEX(MarkkinointiTodellinen[],MATCH(INDEX(Markkinointipoikkeamat[],ROW()-ROW(Markkinointipoikkeamat[[#Headers],[Loka]]),1),INDEX(MarkkinointiSuunniteltu[],,1),0),MATCH(Markkinointipoikkeamat[[#Headers],[Loka]],MarkkinointiTodellinen[#Headers],0)) -> 200.00 € | M23: =INDEX(MarkkinointiSuunniteltu[],MATCH(INDEX(Markkinointipoikkeamat[],ROW()-ROW(Markkinointipoikkeamat[[#Headers],[Marras]]),1),INDEX(MarkkinointiSuunniteltu[],,1),0),MATCH(Markkinointipoikkeamat[[#Headers],[Marras]],MarkkinointiSuunniteltu[#Headers],0))-INDEX(MarkkinointiTodellinen[],MATCH(INDEX(Markkinointipoikkeamat[],ROW()-ROW(Markkinointipoikkeamat[[#Headers],[Marras]]),1),INDEX(MarkkinointiSuunniteltu[],,1),0),MATCH(Markkinointipoikkeamat[[#Headers],[Marras]],MarkkinointiTodellinen[#Headers],0)) -> 200.00 € | N23: =INDEX(MarkkinointiSuunniteltu[],MATCH(INDEX(Markkinointipoikkeamat[],ROW()-ROW(Markkinointipoikkeamat[[#Headers],[Joulu]]),1),INDEX(MarkkinointiSuunniteltu[],,1),0),MATCH(Markkinointipoikkeamat[[#Headers],[Joulu]],MarkkinointiSuunniteltu[#Headers],0))-INDEX(MarkkinointiTodellinen[],MATCH(INDEX(Markkinointipoikkeamat[],ROW()-ROW(Markkinointipoikkeamat[[#Headers],[Joulu]]),1),INDEX(MarkkinointiSuunniteltu[],,1),0),MATCH(Markkinointipoikkeamat[[#Headers],[Joulu]],MarkkinointiTodellinen[#Headers],0)) -> 1,000.00 € | O23: =SUM(Markkinointipoikkeamat[[#This Row],[Tammi]:[Joulu]]) -> 1,500.00 €
B24: Oheismateriaalin valmistelu | C24: =INDEX(MarkkinointiSuunniteltu[],MATCH(INDEX(Markkinointipoikkeamat[],ROW()-ROW(Markkinointipoikkeamat[[#Headers],[Tammi]]),1),INDEX(MarkkinointiSuunniteltu[],,1),0),MATCH(Markkinointipoikkeamat[[#Headers],[Tammi]],MarkkinointiSuunniteltu[#Headers],0))-INDEX(MarkkinointiTodellinen[],MATCH(INDEX(Markkinointipoikkeamat[],ROW()-ROW(Markkinointipoikkeamat[[#Headers],[Tammi]]),1),INDEX(MarkkinointiSuunniteltu[],,1),0),MATCH(Markkinointipoikkeamat[[#Headers],[Tammi]],MarkkinointiTodellinen[#Headers],0)) -> 200.00 € | D24: =INDEX(MarkkinointiSuunniteltu[],MATCH(INDEX(Markkinointipoikkeamat[],ROW()-ROW(Markkinointipoikkeamat[[#Headers],[Helmi]]),1),INDEX(MarkkinointiSuunniteltu[],,1),0),MATCH(Markkinointipoikkeamat[[#Headers],[Helmi]],MarkkinointiSuunniteltu[#Headers],0))-INDEX(MarkkinointiTodellinen[],MATCH(INDEX(Markkinointipoikkeamat[],ROW()-ROW(Markkinointipoikkeamat[[#Headers],[Helmi]]),1),INDEX(MarkkinointiSuunniteltu[],,1),0),MATCH(Markkinointipoikkeamat[[#Headers],[Helmi]],MarkkinointiTodellinen[#Headers],0)) -> 0.00 € | E24: =INDEX(MarkkinointiSuunniteltu[],MATCH(INDEX(Markkinointipoikkeamat[],ROW()-ROW(Markkinointipoikkeamat[[#Headers],[Maalis]]),1),INDEX(MarkkinointiSuunniteltu[],,1),0),MATCH(Markkinointipoikkeamat[[#Headers],[Maalis]],MarkkinointiSuunniteltu[#Headers],0))-INDEX(MarkkinointiTodellinen[],MATCH(INDEX(Markkinointipoikkeamat[],ROW()-ROW(Markkinointipoikkeamat[[#Headers],[Maalis]]),1),INDEX(MarkkinointiSuunniteltu[],,1),0),MATCH(Markkinointipoikkeamat[[#Headers],[Maalis]],MarkkinointiTodellinen[#Headers],0)) -> 0.00 € | F24: =INDEX(MarkkinointiSuunniteltu[],MATCH(INDEX(Markkinointipoikkeamat[],ROW()-ROW(Markkinointipoikkeamat[[#Headers],[Huhti]]),1),INDEX(MarkkinointiSuunniteltu[],,1),0),MATCH(Markkinointipoikkeamat[[#Headers],[Huhti]],MarkkinointiSuunniteltu[#Headers],0))-INDEX(MarkkinointiTodellinen[],MATCH(INDEX(Markkinointipoikkeamat[],ROW()-ROW(Markkinointipoikkeamat[[#Headers],[Huhti]]),1),INDEX(MarkkinointiSuunniteltu[],,1),0),MATCH(Markkinointipoikkeamat[[#Headers],[Huhti]],MarkkinointiTodellinen[#Headers],0)) -> -500.00 € | G24: =INDEX(MarkkinointiSuunniteltu[],MATCH(INDEX(Markkinointipoikkeamat[],ROW()-ROW(Markkinointipoikkeamat[[#Headers],[Touko]]),1),INDEX(MarkkinointiSuunniteltu[],,1),0),MATCH(Markkinointipoikkeamat[[#Headers],[Touko]],MarkkinointiSuunniteltu[#Headers],0))-INDEX(MarkkinointiTodellinen[],MATCH(INDEX(Markkinointipoikkeamat[],ROW()-ROW(Markkinointipoikkeamat[[#Headers],[Touko]]),1),INDEX(MarkkinointiSuunniteltu[],,1),0),MATCH(Markkinointipoikkeamat[[#Headers],[Touko]],MarkkinointiTodellinen[#Headers],0)) -> 0.00 € | H24: =INDEX(MarkkinointiSuunniteltu[],MATCH(INDEX(Markkinointipoikkeamat[],ROW()-ROW(Markkinointipoikkeamat[[#Headers],[Kesä]]),1),INDEX(MarkkinointiSuunniteltu[],,1),0),MATCH(Markkinointipoikkeamat[[#Headers],[Kesä]],MarkkinointiSuunniteltu[#Headers],0))-INDEX(MarkkinointiTodellinen[],MATCH(INDEX(Markkinointipoikkeamat[],ROW()-ROW(Markkinointipoikkeamat[[#Headers],[Kesä]]),1),INDEX(MarkkinointiSuunniteltu[],,1),0),MATCH(Markkinointipoikkeamat[[#Headers],[Kesä]],MarkkinointiTodellinen[#Headers],0)) -> 0.00 € | I24: =INDEX(MarkkinointiSuunniteltu[],MATCH(INDEX(Markkinointipoikkeamat[],ROW()-ROW(Markkinointipoikkeamat[[#Headers],[Heinä]]),1),INDEX(MarkkinointiSuunniteltu[],,1),0),MATCH(Markkinointipoikkeamat[[#Headers],[Heinä]],MarkkinointiSuunniteltu[#Headers],0))-INDEX(MarkkinointiTodellinen[],MATCH(INDEX(Markkinointipoikkeamat[],ROW()-ROW(Markkinointipoikkeamat[[#Headers],[Heinä]]),1),INDEX(MarkkinointiSuunniteltu[],,1),0),MATCH(Markkinointipoikkeamat[[#Headers],[Heinä]],MarkkinointiTodellinen[#Headers],0)) -> 5,000.00 € | J24: =INDEX(MarkkinointiSuunniteltu[],MATCH(INDEX(Markkinointipoikkeamat[],ROW()-ROW(Markkinointipoikkeamat[[#Headers],[Elo]]),1),INDEX(MarkkinointiSuunniteltu[],,1),0),MATCH(Markkinointipoikkeamat[[#Headers],[Elo]],MarkkinointiSuunniteltu[#Headers],0))-INDEX(MarkkinointiTodellinen[],MATCH(INDEX(Markkinointipoikkeamat[],ROW()-ROW(Markkinointipoikkeamat[[#Headers],[Elo]]),1),INDEX(MarkkinointiSuunniteltu[],,1),0),MATCH(Markkinointipoikkeamat[[#Headers],[Elo]],MarkkinointiTodellinen[#Headers],0)) -> 0.00 € | K24: =INDEX(MarkkinointiSuunniteltu[],MATCH(INDEX(Markkinointipoikkeamat[],ROW()-ROW(Markkinointipoikkeamat[[#Headers],[Syys]]),1),INDEX(MarkkinointiSuunniteltu[],,1),0),MATCH(Markkinointipoikkeamat[[#Headers],[Syys]],MarkkinointiSuunniteltu[#Headers],0))-INDEX(MarkkinointiTodellinen[],MATCH(INDEX(Markkinointipoikkeamat[],ROW()-ROW(Markkinointipoikkeamat[[#Headers],[Syys]]),1),INDEX(MarkkinointiSuunniteltu[],,1),0),MATCH(Markkinointipoikkeamat[[#Headers],[Syys]],MarkkinointiTodellinen[#Headers],0)) -> 0.00 € | L24: =INDEX(MarkkinointiSuunniteltu[],MATCH(INDEX(Markkinointipoikkeamat[],ROW()-ROW(Markkinointipoikkeamat[[#Headers],[Loka]]),1),INDEX(MarkkinointiSuunniteltu[],,1),0),MATCH(Markkinointipoikkeamat[[#Headers],[Loka]],MarkkinointiSuunniteltu[#Headers],0))-INDEX(MarkkinointiTodellinen[],MATCH(INDEX(Markkinointipoikkeamat[],ROW()-ROW(Markkinointipoikkeamat[[#Headers],[Loka]]),1),INDEX(MarkkinointiSuunniteltu[],,1),0),MATCH(Markkinointipoikkeamat[[#Headers],[Loka]],MarkkinointiTodellinen[#Headers],0)) -> 5,000.00 € | M24: =INDEX(MarkkinointiSuunniteltu[],MATCH(INDEX(Markkinointipoikkeamat[],ROW()-ROW(Markkinointipoikkeamat[[#Headers],[Marras]]),1),INDEX(MarkkinointiSuunniteltu[],,1),0),MATCH(Markkinointipoikkeamat[[#Headers],[Marras]],MarkkinointiSuunniteltu[#Headers],0))-INDEX(MarkkinointiTodellinen[],MATCH(INDEX(Markkinointipoikkeamat[],ROW()-ROW(Markkinointipoikkeamat[[#Headers],[Marras]]),1),INDEX(MarkkinointiSuunniteltu[],,1),0),MATCH(Markkinointipoikkeamat[[#Headers],[Marras]],MarkkinointiTodellinen[#Headers],0)) -> 0.00 € | N24: =INDEX(MarkkinointiSuunniteltu[],MATCH(INDEX(Markkinointipoikkeamat[],ROW()-ROW(Markkinointipoikkeamat[[#Headers],[Joulu]]),1),INDEX(MarkkinointiSuunniteltu[],,1),0),MATCH(Markkinointipoikkeamat[[#Headers],[Joulu]],MarkkinointiSuunniteltu[#Headers],0))-INDEX(MarkkinointiTodellinen[],MATCH(INDEX(Markkinointipoikkeamat[],ROW()-ROW(Markkinointipoikkeamat[[#Headers],[Joulu]]),1),INDEX(MarkkinointiSuunniteltu[],,1),0),MATCH(Markkinointipoikkeamat[[#Headers],[Joulu]],MarkkinointiTodellinen[#Headers],0)) -> 0.00 € | O24: =SUM(Markkinointipoikkeamat[[#This Row],[Tammi]:[Joulu]]) -> 9,700.00 €
B25: Oheismateriaalin tulostaminen | C25: =INDEX(MarkkinointiSuunniteltu[],MATCH(INDEX(Markkinointipoikkeamat[],ROW()-ROW(Markkinointipoikkeamat[[#Headers],[Tammi]]),1),INDEX(MarkkinointiSuunniteltu[],,1),0),MATCH(Markkinointipoikkeamat[[#Headers],[Tammi]],MarkkinointiSuunniteltu[#Headers],0))-INDEX(MarkkinointiTodellinen[],MATCH(INDEX(Markkinointipoikkeamat[],ROW()-ROW(Markkinointipoikkeamat[[#Headers],[Tammi]]),1),INDEX(MarkkinointiSuunniteltu[],,1),0),MATCH(Markkinointipoikkeamat[[#Headers],[Tammi]],MarkkinointiTodellinen[#Headers],0)) -> 100.00 € | D25: =INDEX(MarkkinointiSuunniteltu[],MATCH(INDEX(Markkinointipoikkeamat[],ROW()-ROW(Markkinointipoikkeamat[[#Headers],[Helmi]]),1),INDEX(MarkkinointiSuunniteltu[],,1),0),MATCH(Markkinointipoikkeamat[[#Headers],[Helmi]],MarkkinointiSuunniteltu[#Headers],0))-INDEX(MarkkinointiTodellinen[],MATCH(INDEX(Markkinointipoikkeamat[],ROW()-ROW(Markkinointipoikkeamat[[#Headers],[Helmi]]),1),INDEX(MarkkinointiSuunniteltu[],,1),0),MATCH(Markkinointipoikkeamat[[#Headers],[Helmi]],MarkkinointiTodellinen[#Headers],0)) -> -300.00 € | E25: =INDEX(MarkkinointiSuunniteltu[],MATCH(INDEX(Markkinointipoikkeamat[],ROW()-ROW(Markkinointipoikkeamat[[#Headers],[Maalis]]),1),INDEX(MarkkinointiSuunniteltu[],,1),0),MATCH(Markkinointipoikkeamat[[#Headers],[Maalis]],MarkkinointiSuunniteltu[#Headers],0))-INDEX(MarkkinointiTodellinen[],MATCH(INDEX(Markkinointipoikkeamat[],ROW()-ROW(Markkinointipoikkeamat[[#Headers],[Maalis]]),1),INDEX(MarkkinointiSuunniteltu[],,1),0),MATCH(Markkinointipoikkeamat[[#Headers],[Maalis]],MarkkinointiTodellinen[#Headers],0)) -> 100.00 € | F25: =INDEX(MarkkinointiSuunniteltu[],MATCH(INDEX(Markkinointipoikkeamat[],ROW()-ROW(Markkinointipoikkeamat[[#Headers],[Huhti]]),1),INDEX(MarkkinointiSuunniteltu[],,1),0),MATCH(Markkinointipoikkeamat[[#Headers],[Huhti]],MarkkinointiSuunniteltu[#Headers],0))-INDEX(MarkkinointiTodellinen[],MATCH(INDEX(Markkinointipoikkeamat[],ROW()-ROW(Markkinointipoikkeamat[[#Headers],[Huhti]]),1),INDEX(MarkkinointiSuunniteltu[],,1),0),MATCH(Markkinointipoikkeamat[[#Headers],[Huhti]],MarkkinointiTodellinen[#Headers],0)) -> 100.00 € | G25: =INDEX(MarkkinointiSuunniteltu[],MATCH(INDEX(Markkinointipoikkeamat[],ROW()-ROW(Markkinointipoikkeamat[[#Headers],[Touko]]),1),INDEX(MarkkinointiSuunniteltu[],,1),0),MATCH(Markkinointipoikkeamat[[#Headers],[Touko]],MarkkinointiSuunniteltu[#Headers],0))-INDEX(MarkkinointiTodellinen[],MATCH(INDEX(Markkinointipoikkeamat[],ROW()-ROW(Markkinointipoikkeamat[[#Headers],[Touko]]),1),INDEX(MarkkinointiSuunniteltu[],,1),0),MATCH(Markkinointipoikkeamat[[#Headers],[Touko]],MarkkinointiTodellinen[#Headers],0)) -> -400.00 € | H25: =INDEX(MarkkinointiSuunniteltu[],MATCH(INDEX(Markkinointipoikkeamat[],ROW()-ROW(Markkinointipoikkeamat[[#Headers],[Kesä]]),1),INDEX(MarkkinointiSuunniteltu[],,1),0),MATCH(Markkinointipoikkeamat[[#Headers],[Kesä]],MarkkinointiSuunniteltu[#Headers],0))-INDEX(MarkkinointiTodellinen[],MATCH(INDEX(Markkinointipoikkeamat[],ROW()-ROW(Markkinointipoikkeamat[[#Headers],[Kesä]]),1),INDEX(MarkkinointiSuunniteltu[],,1),0),MATCH(Markkinointipoikkeamat[[#Headers],[Kesä]],MarkkinointiTodellinen[#Headers],0)) -> 20.00 € | I25: =INDEX(MarkkinointiSuunniteltu[],MATCH(INDEX(Markkinointipoikkeamat[],ROW()-ROW(Markkinointipoikkeamat[[#Headers],[Heinä]]),1),INDEX(MarkkinointiSuunniteltu[],,1),0),MATCH(Markkinointipoikkeamat[[#Headers],[Heinä]],MarkkinointiSuunniteltu[#Headers],0))-INDEX(MarkkinointiTodellinen[],MATCH(INDEX(Markkinointipoikkeamat[],ROW()-ROW(Markkinointipoikkeamat[[#Headers],[Heinä]]),1),INDEX(MarkkinointiSuunniteltu[],,1),0),MATCH(Markkinointipoikkeamat[[#Headers],[Heinä]],MarkkinointiTodellinen[#Headers],0)) -> 200.00 € | J25: =INDEX(MarkkinointiSuunniteltu[],MATCH(INDEX(Markkinointipoikkeamat[],ROW()-ROW(Markkinointipoikkeamat[[#Headers],[Elo]]),1),INDEX(MarkkinointiSuunniteltu[],,1),0),MATCH(Markkinointipoikkeamat[[#Headers],[Elo]],MarkkinointiSuunniteltu[#Headers],0))-INDEX(MarkkinointiTodellinen[],MATCH(INDEX(Markkinointipoikkeamat[],ROW()-ROW(Markkinointipoikkeamat[[#Headers],[Elo]]),1),INDEX(MarkkinointiSuunniteltu[],,1),0),MATCH(Markkinointipoikkeamat[[#Headers],[Elo]],MarkkinointiTodellinen[#Headers],0)) -> 200.00 € | K25: =INDEX(MarkkinointiSuunniteltu[],MATCH(INDEX(Markkinointipoikkeamat[],ROW()-ROW(Markkinointipoikkeamat[[#Headers],[Syys]]),1),INDEX(MarkkinointiSuunniteltu[],,1),0),MATCH(Markkinointipoikkeamat[[#Headers],[Syys]],MarkkinointiSuunniteltu[#Headers],0))-INDEX(MarkkinointiTodellinen[],MATCH(INDEX(Markkinointipoikkeamat[],ROW()-ROW(Markkinointipoikkeamat[[#Headers],[Syys]]),1),INDEX(MarkkinointiSuunniteltu[],,1),0),MATCH(Markkinointipoikkeamat[[#Headers],[Syys]],MarkkinointiTodellinen[#Headers],0)) -> 200.00 € | L25: =INDEX(MarkkinointiSuunniteltu[],MATCH(INDEX(Markkinointipoikkeamat[],ROW()-ROW(Markkinointipoikkeamat[[#Headers],[Loka]]),1),INDEX(MarkkinointiSuunniteltu[],,1),0),MATCH(Markkinointipoikkeamat[[#Headers],[Loka]],MarkkinointiSuunniteltu[#Headers],0))-INDEX(MarkkinointiTodellinen[],MATCH(INDEX(Markkinointipoikkeamat[],ROW()-ROW(Markkinointipoikkeamat[[#Headers],[Loka]]),1),INDEX(MarkkinointiSuunniteltu[],,1),0),MATCH(Markkinointipoikkeamat[[#Headers],[Loka]],MarkkinointiTodellinen[#Headers],0)) -> 200.00 € | M25: =INDEX(MarkkinointiSuunniteltu[],MATCH(INDEX(Markkinointipoikkeamat[],ROW()-ROW(Markkinointipoikkeamat[[#Headers],[Marras]]),1),INDEX(MarkkinointiSuunniteltu[],,1),0),MATCH(Markkinointipoikkeamat[[#Headers],[Marras]],MarkkinointiSuunniteltu[#Headers],0))-INDEX(MarkkinointiTodellinen[],MATCH(INDEX(Markkinointipoikkeamat[],ROW()-ROW(Markkinointipoikkeamat[[#Headers],[Marras]]),1),INDEX(MarkkinointiSuunniteltu[],,1),0),MATCH(Markkinointipoikkeamat[[#Headers],[Marras]],MarkkinointiTodellinen[#Headers],0)) -> 200.00 € | N25: =INDEX(MarkkinointiSuunniteltu[],MATCH(INDEX(Markkinointipoikkeamat[],ROW()-ROW(Markkinointipoikkeamat[[#Headers],[Joulu]]),1),INDEX(MarkkinointiSuunniteltu[],,1),0),MATCH(Markkinointipoikkeamat[[#Headers],[Joulu]],MarkkinointiSuunniteltu[#Headers],0))-INDEX(MarkkinointiTodellinen[],MATCH(INDEX(Markkinointipoikkeamat[],ROW()-ROW(Markkinointipoikkeamat[[#Headers],[Joulu]]),1),INDEX(MarkkinointiSuunniteltu[],,1),0),MATCH(Markkinointipoikkeamat[[#Headers],[Joulu]],MarkkinointiTodellinen[#Headers],0)) -> 200.00 € | O25: =SUM(Markkinointipoikkeamat[[#This Row],[Tammi]:[Joulu]]) -> 820.00 €
B26: Markkinointitapahtumat | C26: =INDEX(MarkkinointiSuunniteltu[],MATCH(INDEX(Markkinointipoikkeamat[],ROW()-ROW(Markkinointipoikkeamat[[#Headers],[Tammi]]),1),INDEX(MarkkinointiSuunniteltu[],,1),0),MATCH(Markkinointipoikkeamat[[#Headers],[Tammi]],MarkkinointiSuunniteltu[#Headers],0))-INDEX(MarkkinointiTodellinen[],MATCH(INDEX(Markkinointipoikkeamat[],ROW()-ROW(Markkinointipoikkeamat[[#Headers],[Tammi]]),1),INDEX(MarkkinointiSuunniteltu[],,1),0),MATCH(Markkinointipoikkeamat[[#Headers],[Tammi]],MarkkinointiTodellinen[#Headers],0)) -> 200.00 € | D26: =INDEX(MarkkinointiSuunniteltu[],MATCH(INDEX(Markkinointipoikkeamat[],ROW()-ROW(Markkinointipoikkeamat[[#Headers],[Helmi]]),1),INDEX(MarkkinointiSuunniteltu[],,1),0),MATCH(Markkinointipoikkeamat[[#Headers],[Helmi]],MarkkinointiSuunniteltu[#Headers],0))-INDEX(MarkkinointiTodellinen[],MATCH(INDEX(Markkinointipoikkeamat[],ROW()-ROW(Markkinointipoikkeamat[[#Headers],[Helmi]]),1),INDEX(MarkkinointiSuunniteltu[],,1),0),MATCH(Markkinointipoikkeamat[[#Headers],[Helmi]],MarkkinointiTodellinen[#Headers],0)) -> -200.00 € | E26: =INDEX(MarkkinointiSuunniteltu[],MATCH(INDEX(Markkinointipoikkeamat[],ROW()-ROW(Markkinointipoikkeamat[[#Headers],[Maalis]]),1),INDEX(MarkkinointiSuunniteltu[],,1),0),MATCH(Markkinointipoikkeamat[[#Headers],[Maalis]],MarkkinointiSuunniteltu[#Headers],0))-INDEX(MarkkinointiTodellinen[],MATCH(INDEX(Markkinointipoikkeamat[],ROW()-ROW(Markkinointipoikkeamat[[#Headers],[Maalis]]),1),INDEX(MarkkinointiSuunniteltu[],,1),0),MATCH(Markkinointipoikkeamat[[#Headers],[Maalis]],MarkkinointiTodellinen[#Headers],0)) -> -200.00 € | F26: =INDEX(MarkkinointiSuunniteltu[],MATCH(INDEX(Markkinointipoikkeamat[],ROW()-ROW(Markkinointipoikkeamat[[#Headers],[Huhti]]),1),INDEX(MarkkinointiSuunniteltu[],,1),0),MATCH(Markkinointipoikkeamat[[#Headers],[Huhti]],MarkkinointiSuunniteltu[#Headers],0))-INDEX(MarkkinointiTodellinen[],MATCH(INDEX(Markkinointipoikkeamat[],ROW()-ROW(Markkinointipoikkeamat[[#Headers],[Huhti]]),1),INDEX(MarkkinointiSuunniteltu[],,1),0),MATCH(Markkinointipoikkeamat[[#Headers],[Huhti]],MarkkinointiTodellinen[#Headers],0)) -> 300.00 € | G26: =INDEX(MarkkinointiSuunniteltu[],MATCH(INDEX(Markkinointipoikkeamat[],ROW()-ROW(Markkinointipoikkeamat[[#Headers],[Touko]]),1),INDEX(MarkkinointiSuunniteltu[],,1),0),MATCH(Markkinointipoikkeamat[[#Headers],[Touko]],MarkkinointiSuunniteltu[#Headers],0))-INDEX(MarkkinointiTodellinen[],MATCH(INDEX(Markkinointipoikkeamat[],ROW()-ROW(Markkinointipoikkeamat[[#Headers],[Touko]]),1),INDEX(MarkkinointiSuunniteltu[],,1),0),MATCH(Markkinointipoikkeamat[[#Headers],[Touko]],MarkkinointiTodellinen[#Headers],0)) -> 500.00 € | H26: =INDEX(MarkkinointiSuunniteltu[],MATCH(INDEX(Markkinointipoikkeamat[],ROW()-ROW(Markkinointipoikkeamat[[#Headers],[Kesä]]),1),INDEX(MarkkinointiSuunniteltu[],,1),0),MATCH(Markkinointipoikkeamat[[#Headers],[Kesä]],MarkkinointiSuunniteltu[#Headers],0))-INDEX(MarkkinointiTodellinen[],MATCH(INDEX(Markkinointipoikkeamat[],ROW()-ROW(Markkinointipoikkeamat[[#Headers],[Kesä]]),1),INDEX(MarkkinointiSuunniteltu[],,1),0),MATCH(Markkinointipoikkeamat[[#Headers],[Kesä]],MarkkinointiTodellinen[#Headers],0)) -> -300.00 € | I26: =INDEX(MarkkinointiSuunniteltu[],MATCH(INDEX(Markkinointipoikkeamat[],ROW()-ROW(Markkinointipoikkeamat[[#Headers],[Heinä]]),1),INDEX(MarkkinointiSuunniteltu[],,1),0),MATCH(Markkinointipoikkeamat[[#Headers],[Heinä]],MarkkinointiSuunniteltu[#Headers],0))-INDEX(MarkkinointiTodellinen[],MATCH(INDEX(Markkinointipoikkeamat[],ROW()-ROW(Markkinointipoikkeamat[[#Headers],[Heinä]]),1),INDEX(MarkkinointiSuunniteltu[],,1),0),MATCH(Markkinointipoikkeamat[[#Headers],[Heinä]],MarkkinointiTodellinen[#Headers],0)) -> 2,000.00 € | J26: =INDEX(MarkkinointiSuunniteltu[],MATCH(INDEX(Markkinointipoikkeamat[],ROW()-ROW(Markkinointipoikkeamat[[#Headers],[Elo]]),1),INDEX(MarkkinointiSuunniteltu[],,1),0),MATCH(Markkinointipoikkeamat[[#Headers],[Elo]],MarkkinointiSuunniteltu[#Headers],0))-INDEX(MarkkinointiTodellinen[],MATCH(INDEX(Markkinointipoikkeamat[],ROW()-ROW(Markkinointipoikkeamat[[#Headers],[Elo]]),1),INDEX(MarkkinointiSuunniteltu[],,1),0),MATCH(Markkinointipoikkeamat[[#Headers],[Elo]],MarkkinointiTodellinen[#Headers],0)) -> 5,000.00 € | K26: =INDEX(MarkkinointiSuunniteltu[],MATCH(INDEX(Markkinointipoikkeamat[],ROW()-ROW(Markkinointipoikkeamat[[#Headers],[Syys]]),1),INDEX(MarkkinointiSuunniteltu[],,1),0),MATCH(Markkinointipoikkeamat[[#Headers],[Syys]],MarkkinointiSuunniteltu[#Headers],0))-INDEX(MarkkinointiTodellinen[],MATCH(INDEX(Markkinointipoikkeamat[],ROW()-ROW(Markkinointipoikkeamat[[#Headers],[Syys]]),1),INDEX(MarkkinointiSuunniteltu[],,1),0),MATCH(Markkinointipoikkeamat[[#Headers],[Syys]],MarkkinointiTodellinen[#Headers],0)) -> 2,000.00 € | L26: =INDEX(MarkkinointiSuunniteltu[],MATCH(INDEX(Markkinointipoikkeamat[],ROW()-ROW(Markkinointipoikkeamat[[#Headers],[Loka]]),1),INDEX(MarkkinointiSuunniteltu[],,1),0),MATCH(Markkinointipoikkeamat[[#Headers],[Loka]],MarkkinointiSuunniteltu[#Headers],0))-INDEX(MarkkinointiTodellinen[],MATCH(INDEX(Markkinointipoikkeamat[],ROW()-ROW(Markkinointipoikkeamat[[#Headers],[Loka]]),1),INDEX(MarkkinointiSuunniteltu[],,1),0),MATCH(Markkinointipoikkeamat[[#Headers],[Loka]],MarkkinointiTodellinen[#Headers],0)) -> 2,000.00 € | M26: =INDEX(MarkkinointiSuunniteltu[],MATCH(INDEX(Markkinointipoikkeamat[],ROW()-ROW(Markkinointipoikkeamat[[#Headers],[Marras]]),1),INDEX(MarkkinointiSuunniteltu[],,1),0),MATCH(Markkinointipoikkeamat[[#Headers],[Marras]],MarkkinointiSuunniteltu[#Headers],0))-INDEX(MarkkinointiTodellinen[],MATCH(INDEX(Markkinointipoikkeamat[],ROW()-ROW(Markkinointipoikkeamat[[#Headers],[Marras]]),1),INDEX(MarkkinointiSuunniteltu[],,1),0),MATCH(Markkinointipoikkeamat[[#Headers],[Marras]],MarkkinointiTodellinen[#Headers],0)) -> 2,000.00 € | N26: =INDEX(MarkkinointiSuunniteltu[],MATCH(INDEX(Markkinointipoikkeamat[],ROW()-ROW(Markkinointipoikkeamat[[#Headers],[Joulu]]),1),INDEX(MarkkinointiSuunniteltu[],,1),0),MATCH(Markkinointipoikkeamat[[#Headers],[Joulu]],MarkkinointiSuunniteltu[#Headers],0))-INDEX(MarkkinointiTodellinen[],MATCH(INDEX(Markkinointipoikkeamat[],ROW()-ROW(Markkinointipoikkeamat[[#Headers],[Joulu]]),1),INDEX(MarkkinointiSuunniteltu[],,1),0),MATCH(Markkinointipoikkeamat[[#Headers],[Joulu]],MarkkinointiTodellinen[#Headers],0)) -> 5,000.00 € | O26: =SUM(Markkinointipoikkeamat[[#This Row],[Tammi]:[Joulu]]) -> 18,300.00 €
B27: Sekalaiset kulut | C27: =INDEX(MarkkinointiSuunniteltu[],MATCH(INDEX(Markkinointipoikkeamat[],ROW()-ROW(Markkinointipoikkeamat[[#Headers],[Tammi]]),1),INDEX(MarkkinointiSuunniteltu[],,1),0),MATCH(Markkinointipoikkeamat[[#Headers],[Tammi]],MarkkinointiSuunniteltu[#Headers],0))-INDEX(MarkkinointiTodellinen[],MATCH(INDEX(Markkinointipoikkeamat[],ROW()-ROW(Markkinointipoikkeamat[[#Headers],[Tammi]]),1),INDEX(MarkkinointiSuunniteltu[],,1),0),MATCH(Markkinointipoikkeamat[[#Headers],[Tammi]],MarkkinointiTodellinen[#Headers],0)) -> 55.00 € | D27: =INDEX(MarkkinointiSuunniteltu[],MATCH(INDEX(Markkinointipoikkeamat[],ROW()-ROW(Markkinointipoikkeamat[[#Headers],[Helmi]]),1),INDEX(MarkkinointiSuunniteltu[],,1),0),MATCH(Markkinointipoikkeamat[[#Headers],[Helmi]],MarkkinointiSuunniteltu[#Headers],0))-INDEX(MarkkinointiTodellinen[],MATCH(INDEX(Markkinointipoikkeamat[],ROW()-ROW(Markkinointipoikkeamat[[#Headers],[Helmi]]),1),INDEX(MarkkinointiSuunniteltu[],,1),0),MATCH(Markkinointipoikkeamat[[#Headers],[Helmi]],MarkkinointiTodellinen[#Headers],0)) -> 44.00 € | E27: =INDEX(MarkkinointiSuunniteltu[],MATCH(INDEX(Markkinointipoikkeamat[],ROW()-ROW(Markkinointipoikkeamat[[#Headers],[Maalis]]),1),INDEX(MarkkinointiSuunniteltu[],,1),0),MATCH(Markkinointipoikkeamat[[#Headers],[Maalis]],MarkkinointiSuunniteltu[#Headers],0))-INDEX(MarkkinointiTodellinen[],MATCH(INDEX(Markkinointipoikkeamat[],ROW()-ROW(Markkinointipoikkeamat[[#Headers],[Maalis]]),1),INDEX(MarkkinointiSuunniteltu[],,1),0),MATCH(Markkinointipoikkeamat[[#Headers],[Maalis]],MarkkinointiTodellinen[#Headers],0)) -> 77.00 € | F27: =INDEX(MarkkinointiSuunniteltu[],MATCH(INDEX(Markkinointipoikkeamat[],ROW()-ROW(Markkinointipoikkeamat[[#Headers],[Huhti]]),1),INDEX(MarkkinointiSuunniteltu[],,1),0),MATCH(Markkinointipoikkeamat[[#Headers],[Huhti]],MarkkinointiSuunniteltu[#Headers],0))-INDEX(MarkkinointiTodellinen[],MATCH(INDEX(Markkinointipoikkeamat[],ROW()-ROW(Markkinointipoikkeamat[[#Headers],[Huhti]]),1),INDEX(MarkkinointiSuunniteltu[],,1),0),MATCH(Markkinointipoikkeamat[[#Headers],[Huhti]],MarkkinointiTodellinen[#Headers],0)) -> -23.00 € | G27: =INDEX(MarkkinointiSuunniteltu[],MATCH(INDEX(Markkinointipoikkeamat[],ROW()-ROW(Markkinointipoikkeamat[[#Headers],[Touko]]),1),INDEX(MarkkinointiSuunniteltu[],,1),0),MATCH(Markkinointipoikkeamat[[#Headers],[Touko]],MarkkinointiSuunniteltu[#Headers],0))-INDEX(MarkkinointiTodellinen[],MATCH(INDEX(Markkinointipoikkeamat[],ROW()-ROW(Markkinointipoikkeamat[[#Headers],[Touko]]),1),INDEX(MarkkinointiSuunniteltu[],,1),0),MATCH(Markkinointipoikkeamat[[#Headers],[Touko]],MarkkinointiTodellinen[#Headers],0)) -> 13.00 € | H27: =INDEX(MarkkinointiSuunniteltu[],MATCH(INDEX(Markkinointipoikkeamat[],ROW()-ROW(Markkinointipoikkeamat[[#Headers],[Kesä]]),1),INDEX(MarkkinointiSuunniteltu[],,1),0),MATCH(Markkinointipoikkeamat[[#Headers],[Kesä]],MarkkinointiSuunniteltu[#Headers],0))-INDEX(MarkkinointiTodellinen[],MATCH(INDEX(Markkinointipoikkeamat[],ROW()-ROW(Markkinointipoikkeamat[[#Headers],[Kesä]]),1),INDEX(MarkkinointiSuunniteltu[],,1),0),MATCH(Markkinointipoikkeamat[[#Headers],[Kesä]],MarkkinointiTodellinen[#Headers],0)) -> -45.00 € | I27: =INDEX(MarkkinointiSuunniteltu[],MATCH(INDEX(Markkinointipoikkeamat[],ROW()-ROW(Markkinointipoikkeamat[[#Headers],[Heinä]]),1),INDEX(MarkkinointiSuunniteltu[],,1),0),MATCH(Markkinointipoikkeamat[[#Headers],[Heinä]],MarkkinointiSuunniteltu[#Headers],0))-INDEX(MarkkinointiTodellinen[],MATCH(INDEX(Markkinointipoikkeamat[],ROW()-ROW(Markkinointipoikkeamat[[#Headers],[Heinä]]),1),INDEX(MarkkinointiSuunniteltu[],,1),0),MATCH(Markkinointipoikkeamat[[#Headers],[Heinä]],MarkkinointiTodellinen[#Headers],0)) -> 200.00 € | J27: =INDEX(MarkkinointiSuunniteltu[],MATCH(INDEX(Markkinointipoikkeamat[],ROW()-ROW(Markkinointipoikkeamat[[#Headers],[Elo]]),1),INDEX(MarkkinointiSuunniteltu[],,1),0),MATCH(Markkinointipoikkeamat[[#Headers],[Elo]],MarkkinointiSuunniteltu[#Headers],0))-INDEX(MarkkinointiTodellinen[],MATCH(INDEX(Markkinointipoikkeamat[],ROW()-ROW(Markkinointipoikkeamat[[#Headers],[Elo]]),1),INDEX(MarkkinointiSuunniteltu[],,1),0),MATCH(Markkinointipoikkeamat[[#Headers],[Elo]],MarkkinointiTodellinen[#Headers],0)) -> 200.00 € | K27: =INDEX(MarkkinointiSuunniteltu[],MATCH(INDEX(Markkinointipoikkeamat[],ROW()-ROW(Markkinointipoikkeamat[[#Headers],[Syys]]),1),INDEX(MarkkinointiSuunniteltu[],,1),0),MATCH(Markkinointipoikkeamat[[#Headers],[Syys]],MarkkinointiSuunniteltu[#Headers],0))-INDEX(MarkkinointiTodellinen[],MATCH(INDEX(Markkinointipoikkeamat[],ROW()-ROW(Markkinointipoikkeamat[[#Headers],[Syys]]),1),INDEX(MarkkinointiSuunniteltu[],,1),0),MATCH(Markkinointipoikkeamat[[#Headers],[Syys]],MarkkinointiTodellinen[#Headers],0)) -> 200.00 € | L27: =INDEX(MarkkinointiSuunniteltu[],MATCH(INDEX(Markkinointipoikkeamat[],ROW()-ROW(Markkinointipoikkeamat[[#Headers],[Loka]]),1),INDEX(MarkkinointiSuunniteltu[],,1),0),MATCH(Markkinointipoikkeamat[[#Headers],[Loka]],MarkkinointiSuunniteltu[#Headers],0))-INDEX(MarkkinointiTodellinen[],MATCH(INDEX(Markkinointipoikkeamat[],ROW()-ROW(Markkinointipoikkeamat[[#Headers],[Loka]]),1),INDEX(MarkkinointiSuunniteltu[],,1),0),MATCH(Markkinointipoikkeamat[[#Headers],[Loka]],MarkkinointiTodellinen[#Headers],0)) -> 200.00 € | M27: =INDEX(MarkkinointiSuunniteltu[],MATCH(INDEX(Markkinointipoikkeamat[],ROW()-ROW(Markkinointipoikkeamat[[#Headers],[Marras]]),1),INDEX(MarkkinointiSuunniteltu[],,1),0),MATCH(Markkinointipoikkeamat[[#Headers],[Marras]],MarkkinointiSuunniteltu[#Headers],0))-INDEX(MarkkinointiTodellinen[],MATCH(INDEX(Markkinointipoikkeamat[],ROW()-ROW(Markkinointipoikkeamat[[#Headers],[Marras]]),1),INDEX(MarkkinointiSuunniteltu[],,1),0),MATCH(Markkinointipoikkeamat[[#Headers],[Marras]],MarkkinointiTodellinen[#Headers],0)) -> 200.00 € | N27: =INDEX(MarkkinointiSuunniteltu[],MATCH(INDEX(Markkinointipoikkeamat[],ROW()-ROW(Markkinointipoikkeamat[[#Headers],[Joulu]]),1),INDEX(MarkkinointiSuunniteltu[],,1),0),MATCH(Markkinointipoikkeamat[[#Headers],[Joulu]],MarkkinointiSuunniteltu[#Headers],0))-INDEX(MarkkinointiTodellinen[],MATCH(INDEX(Markkinointipoikkeamat[],ROW()-ROW(Markkinointipoikkeamat[[#Headers],[Joulu]]),1),INDEX(MarkkinointiSuunniteltu[],,1),0),MATCH(Markkinointipoikkeamat[[#Headers],[Joulu]],MarkkinointiTodellinen[#Headers],0)) -> 200.00 € | O27: =SUM(Markkinointipoikkeamat[[#This Row],[Tammi]:[Joulu]]) -> 1,321.00 €
B28: Välisumma | C28: =SUBTOTAL(109,Markkinointipoikkeamat[Tammi]) -> 555.00 € | D28: =SUBTOTAL(109,Markkinointipoikkeamat[Helmi]) -> -456.00 € | E28: =SUBTOTAL(109,Markkinointipoikkeamat[Maalis]) -> -23.00 € | F28: =SUBTOTAL(109,Markkinointipoikkeamat[Huhti]) -> -123.00 € | G28: =SUBTOTAL(109,Markkinointipoikkeamat[Touko]) -> 113.00 € | H28: =SUBTOTAL(109,Markkinointipoikkeamat[Kesä]) -> -825.00 € | I28: =SUBTOTAL(109,Markkinointipoikkeamat[Heinä]) -> 8,100.00 € | J28: =SUBTOTAL(109,Markkinointipoikkeamat[Elo]) -> 6,100.00 € | K28: =SUBTOTAL(109,Markkinointipoikkeamat[Syys]) -> 3,100.00 € | L28: =SUBTOTAL(109,Markkinointipoikkeamat[Loka]) -> 8,100.00 € | M28: =SUBTOTAL(109,Markkinointipoikkeamat[Marras]) -> 3,100.00 € | N28: =SUBTOTAL(109,Markkinointipoikkeamat[Joulu]) -> 6,900.00 € | O28: =SUBTOTAL(109,Markkinointipoikkeamat[VUOSI]) -> 34,641.00 €
A30: Koulutus- tai matkakulujen poikkeama lasketaan automaattisesti Koulutus- ja matkapoikkeamat -taulukkoon oikealla olevasta solusta aloittaen. Seuraava ohje on solussa A35. | B30: Koulutus/matka | C30: Tammi | D30: Helmi | E30: Maalis | F30: Huhti | G30: Touko | H30: Kesä | I30: Heinä | J30: Elo | K30: Syys | L30: Loka | M30: Marras | N30: Joulu | O30: VUOSI
B31: Koulutuskurssit | C31: =INDEX(KoulutusJaMatkaSuunniteltu[],MATCH(INDEX(KoulutusJaMatkapoikkeamat[],ROW()-ROW(KoulutusJaMatkapoikkeamat[[#Headers],[Tammi]]),1),INDEX(KoulutusJaMatkaSuunniteltu[],,1),0),MATCH(KoulutusJaMatkapoikkeamat[[#Headers],[Tammi]],KoulutusJaMatkaSuunniteltu[#Headers],0))-INDEX(KoulutusJaMatkaTodellinen[],MATCH(INDEX(KoulutusJaMatkapoikkeamat[],ROW()-ROW(KoulutusJaMatkapoikkeamat[[#Headers],[Tammi]]),1),INDEX(KoulutusJaMatkaSuunniteltu[],,1),0),MATCH(KoulutusJaMatkapoikkeamat[[#Headers],[Tammi]],KoulutusJaMatkaTodellinen[#Headers],0)) -> 400.00 € | D31: =INDEX(KoulutusJaMatkaSuunniteltu[],MATCH(INDEX(KoulutusJaMatkapoikkeamat[],ROW()-ROW(KoulutusJaMatkapoikkeamat[[#Headers],[Helmi]]),1),INDEX(KoulutusJaMatkaSuunniteltu[],,1),0),MATCH(KoulutusJaMatkapoikkeamat[[#Headers],[Helmi]],KoulutusJaMatkaSuunniteltu[#Headers],0))-INDEX(KoulutusJaMatkaTodellinen[],MATCH(INDEX(KoulutusJaMatkapoikkeamat[],ROW()-ROW(KoulutusJaMatkapoikkeamat[[#Headers],[Helmi]]),1),INDEX(KoulutusJaMatkaSuunniteltu[],,1),0),MATCH(KoulutusJaMatkapoikkeamat[[#Headers],[Helmi]],KoulutusJaMatkaTodellinen[#Headers],0)) -> -400.00 € | E31: =INDEX(KoulutusJaMatkaSuunniteltu[],MATCH(INDEX(KoulutusJaMatkapoikkeamat[],ROW()-ROW(KoulutusJaMatkapoikkeamat[[#Headers],[Maalis]]),1),INDEX(KoulutusJaMatkaSuunniteltu[],,1),0),MATCH(KoulutusJaMatkapoikkeamat[[#Headers],[Maalis]],KoulutusJaMatkaSuunniteltu[#Headers],0))-INDEX(KoulutusJaMatkaTodellinen[],MATCH(INDEX(KoulutusJaMatkapoikkeamat[],ROW()-ROW(KoulutusJaMatkapoikkeamat[[#Headers],[Maalis]]),1),INDEX(KoulutusJaMatkaSuunniteltu[],,1),0),MATCH(KoulutusJaMatkapoikkeamat[[#Headers],[Maalis]],KoulutusJaMatkaTodellinen[#Headers],0)) -> 600.00 € | F31: =INDEX(KoulutusJaMatkaSuunniteltu[],MATCH(INDEX(KoulutusJaMatkapoikkeamat[],ROW()-ROW(KoulutusJaMatkapoikkeamat[[#Headers],[Huhti]]),1),INDEX(KoulutusJaMatkaSuunniteltu[],,1),0),MATCH(KoulutusJaMatkapoikkeamat[[#Headers],[Huhti]],KoulutusJaMatkaSuunniteltu[#Headers],0))-INDEX(KoulutusJaMatkaTodellinen[],MATCH(INDEX(KoulutusJaMatkapoikkeamat[],ROW()-ROW(KoulutusJaMatkapoikkeamat[[#Headers],[Huhti]]),1),INDEX(KoulutusJaMatkaSuunniteltu[],,1),0),MATCH(KoulutusJaMatkapoikkeamat[[#Headers],[Huhti]],KoulutusJaMatkaTodellinen[#Headers],0)) -> 400.00 € | G31: =INDEX(KoulutusJaMatkaSuunniteltu[],MATCH(INDEX(KoulutusJaMatkapoikkeamat[],ROW()-ROW(KoulutusJaMatkapoikkeamat[[#Headers],[Touko]]),1),INDEX(KoulutusJaMatkaSuunniteltu[],,1),0),MATCH(KoulutusJaMatkapoikkeamat[[#Headers],[Touko]],KoulutusJaMatkaSuunniteltu[#Headers],0))-INDEX(KoulutusJaMatkaTodellinen[],MATCH(INDEX(KoulutusJaMatkapoikkeamat[],ROW()-ROW(KoulutusJaMatkapoikkeamat[[#Headers],[Touko]]),1),INDEX(KoulutusJaMatkaSuunniteltu[],,1),0),MATCH(KoulutusJaMatkapoikkeamat[[#Headers],[Touko]],KoulutusJaMatkaTodellinen[#Headers],0)) -> 800.00 € | H31: =INDEX(KoulutusJaMatkaSuunniteltu[],MATCH(INDEX(KoulutusJaMatkapoikkeamat[],ROW()-ROW(KoulutusJaMatkapoikkeamat[[#Headers],[Kesä]]),1),INDEX(KoulutusJaMatkaSuunniteltu[],,1),0),MATCH(KoulutusJaMatkapoikkeamat[[#Headers],[Kesä]],KoulutusJaMatkaSuunniteltu[#Headers],0))-INDEX(KoulutusJaMatkaTodellinen[],MATCH(INDEX(KoulutusJaMatkapoikkeamat[],ROW()-ROW(KoulutusJaMatkapoikkeamat[[#Headers],[Kesä]]),1),INDEX(KoulutusJaMatkaSuunniteltu[],,1),0),MATCH(KoulutusJaMatkapoikkeamat[[#Headers],[Kesä]],KoulutusJaMatkaTodellinen[#Headers],0)) -> -800.00 € | I31: =INDEX(KoulutusJaMatkaSuunniteltu[],MATCH(INDEX(KoulutusJaMatkapoikkeamat[],ROW()-ROW(KoulutusJaMatkapoikkeamat[[#Headers],[Heinä]]),1),INDEX(KoulutusJaMatkaSuunniteltu[],,1),0),MATCH(KoulutusJaMatkapoikkeamat[[#Headers],[Heinä]],KoulutusJaMatkaSuunniteltu[#Headers],0))-INDEX(KoulutusJaMatkaTodellinen[],MATCH(INDEX(KoulutusJaMatkapoikkeamat[],ROW()-ROW(KoulutusJaMatkapoikkeamat[[#Headers],[Heinä]]),1),INDEX(KoulutusJaMatkaSuunniteltu[],,1),0),MATCH(KoulutusJaMatkapoikkeamat[[#Headers],[Heinä]],KoulutusJaMatkaTodellinen[#Headers],0)) -> 2,000.00 € | J31: =INDEX(KoulutusJaMatkaSuunniteltu[],MATCH(INDEX(KoulutusJaMatkapoikkeamat[],ROW()-ROW(KoulutusJaMatkapoikkeamat[[#Headers],[Elo]]),1),INDEX(KoulutusJaMatkaSuunniteltu[],,1),0),MATCH(KoulutusJaMatkapoikkeamat[[#Headers],[Elo]],KoulutusJaMatkaSuunniteltu[#Headers],0))-INDEX(KoulutusJaMatkaTodellinen[],MATCH(INDEX(KoulutusJaMatkapoikkeamat[],ROW()-ROW(KoulutusJaMatkapoikkeamat[[#Headers],[Elo]]),1),INDEX(KoulutusJaMatkaSuunniteltu[],,1),0),MATCH(KoulutusJaMatkapoikkeamat[[#Headers],[Elo]],KoulutusJaMatkaTodellinen[#Headers],0)) -> 2,000.00 € | K31: =INDEX(KoulutusJaMatkaSuunniteltu[],MATCH(INDEX(KoulutusJaMatkapoikkeamat[],ROW()-ROW(KoulutusJaMatkapoikkeamat[[#Headers],[Syys]]),1),INDEX(KoulutusJaMatkaSuunniteltu[],,1),0),MATCH(KoulutusJaMatkapoikkeamat[[#Headers],[Syys]],KoulutusJaMatkaSuunniteltu[#Headers],0))-INDEX(KoulutusJaMatkaTodellinen[],MATCH(INDEX(KoulutusJaMatkapoikkeamat[],ROW()-ROW(KoulutusJaMatkapoikkeamat[[#Headers],[Syys]]),1),INDEX(KoulutusJaMatkaSuunniteltu[],,1),0),MATCH(KoulutusJaMatkapoikkeamat[[#Headers],[Syys]],KoulutusJaMatkaTodellinen[#Headers],0)) -> 2,000.00 € | L31: =INDEX(KoulutusJaMatkaSuunniteltu[],MATCH(INDEX(KoulutusJaMatkapoikkeamat[],ROW()-ROW(KoulutusJaMatkapoikkeamat[[#Headers],[Loka]]),1),INDEX(KoulutusJaMatkaSuunniteltu[],,1),0),MATCH(KoulutusJaMatkapoikkeamat[[#Headers],[Loka]],KoulutusJaMatkaSuunniteltu[#Headers],0))-INDEX(KoulutusJaMatkaTodellinen[],MATCH(INDEX(KoulutusJaMatkapoikkeamat[],ROW()-ROW(KoulutusJaMatkapoikkeamat[[#Headers],[Loka]]),1),INDEX(KoulutusJaMatkaSuunniteltu[],,1),0),MATCH(KoulutusJaMatkapoikkeamat[[#Headers],[Loka]],KoulutusJaMatkaTodellinen[#Headers],0)) -> 2,000.00 € | M31: =INDEX(KoulutusJaMatkaSuunniteltu[],MATCH(INDEX(KoulutusJaMatkapoikkeamat[],ROW()-ROW(KoulutusJaMatkapoikkeamat[[#Headers],[Marras]]),1),INDEX(KoulutusJaMatkaSuunniteltu[],,1),0),MATCH(KoulutusJaMatkapoikkeamat[[#Headers],[Marras]],KoulutusJaMatkaSuunniteltu[#Headers],0))-INDEX(KoulutusJaMatkaTodellinen[],MATCH(INDEX(KoulutusJaMatkapoikkeamat[],ROW()-ROW(KoulutusJaMatkapoikkeamat[[#Headers],[Marras]]),1),INDEX(KoulutusJaMatkaSuunniteltu[],,1),0),MATCH(KoulutusJaMatkapoikkeamat[[#Headers],[Marras]],KoulutusJaMatkaTodellinen[#Headers],0)) -> 2,000.00 € | N31: =INDEX(KoulutusJaMatkaSuunniteltu[],MATCH(INDEX(KoulutusJaMatkapoikkeamat[],ROW()-ROW(KoulutusJaMatkapoikkeamat[[#Headers],[Joulu]]),1),INDEX(KoulutusJaMatkaSuunniteltu[],,1),0),MATCH(KoulutusJaMatkapoikkeamat[[#Headers],[Joulu]],KoulutusJaMatkaSuunniteltu[#Headers],0))-INDEX(KoulutusJaMatkaTodellinen[],MATCH(INDEX(KoulutusJaMatkapoikkeamat[],ROW()-ROW(KoulutusJaMatkapoikkeamat[[#Headers],[Joulu]]),1),INDEX(KoulutusJaMatkaSuunniteltu[],,1),0),MATCH(KoulutusJaMatkapoikkeamat[[#Headers],[Joulu]],KoulutusJaMatkaTodellinen[#Headers],0)) -> 2,000.00 € | O31: =SUM(KoulutusJaMatkapoikkeamat[[#This Row],[Tammi]:[Joulu]]) -> 13,000.00 €
B32: Koulutukseen liittyvät matkakulut | C32: =INDEX(KoulutusJaMatkaSuunniteltu[],MATCH(INDEX(KoulutusJaMatkapoikkeamat[],ROW()-ROW(KoulutusJaMatkapoikkeamat[[#Headers],[Tammi]]),1),INDEX(KoulutusJaMatkaSuunniteltu[],,1),0),MATCH(KoulutusJaMatkapoikkeamat[[#Headers],[Tammi]],KoulutusJaMatkaSuunniteltu[#Headers],0))-INDEX(KoulutusJaMatkaTodellinen[],MATCH(INDEX(KoulutusJaMatkapoikkeamat[],ROW()-ROW(KoulutusJaMatkapoikkeamat[[#Headers],[Tammi]]),1),INDEX(KoulutusJaMatkaSuunniteltu[],,1),0),MATCH(KoulutusJaMatkapoikkeamat[[#Headers],[Tammi]],KoulutusJaMatkaTodellinen[#Headers],0)) -> 800.00 € | D32: =INDEX(KoulutusJaMatkaSuunniteltu[],MATCH(INDEX(KoulutusJaMatkapoikkeamat[],ROW()-ROW(KoulutusJaMatkapoikkeamat[[#Headers],[Helmi]]),1),INDEX(KoulutusJaMatkaSuunniteltu[],,1),0),MATCH(KoulutusJaMatkapoikkeamat[[#Headers],[Helmi]],KoulutusJaMatkaSuunniteltu[#Headers],0))-INDEX(KoulutusJaMatkaTodellinen[],MATCH(INDEX(KoulutusJaMatkapoikkeamat[],ROW()-ROW(KoulutusJaMatkapoikkeamat[[#Headers],[Helmi]]),1),INDEX(KoulutusJaMatkaSuunniteltu[],,1),0),MATCH(KoulutusJaMatkapoikkeamat[[#Headers],[Helmi]],KoulutusJaMatkaTodellinen[#Headers],0)) -> -200.00 € | E32: =INDEX(KoulutusJaMatkaSuunniteltu[],MATCH(INDEX(KoulutusJaMatkapoikkeamat[],ROW()-ROW(KoulutusJaMatkapoikkeamat[[#Headers],[Maalis]]),1),INDEX(KoulutusJaMatkaSuunniteltu[],,1),0),MATCH(KoulutusJaMatkapoikkeamat[[#Headers],[Maalis]],KoulutusJaMatkaSuunniteltu[#Headers],0))-INDEX(KoulutusJaMatkaTodellinen[],MATCH(INDEX(KoulutusJaMatkapoikkeamat[],ROW()-ROW(KoulutusJaMatkapoikkeamat[[#Headers],[Maalis]]),1),INDEX(KoulutusJaMatkaSuunniteltu[],,1),0),MATCH(KoulutusJaMatkapoikkeamat[[#Headers],[Maalis]],KoulutusJaMatkaTodellinen[#Headers],0)) -> 600.00 € | F32: =INDEX(KoulutusJaMatkaSuunniteltu[],MATCH(INDEX(KoulutusJaMatkapoikkeamat[],ROW()-ROW(KoulutusJaMatkapoikkeamat[[#Headers],[Huhti]]),1),INDEX(KoulutusJaMatkaSuunniteltu[],,1),0),MATCH(KoulutusJaMatkapoikkeamat[[#Headers],[Huhti]],KoulutusJaMatkaSuunniteltu[#Headers],0))-INDEX(KoulutusJaMatkaTodellinen[],MATCH(INDEX(KoulutusJaMatkapoikkeamat[],ROW()-ROW(KoulutusJaMatkapoikkeamat[[#Headers],[Huhti]]),1),INDEX(KoulutusJaMatkaSuunniteltu[],,1),0),MATCH(KoulutusJaMatkapoikkeamat[[#Headers],[Huhti]],KoulutusJaMatkaTodellinen[#Headers],0)) -> 800.00 € | G32: =INDEX(KoulutusJaMatkaSuunniteltu[],MATCH(INDEX(KoulutusJaMatkapoikkeamat[],ROW()-ROW(KoulutusJaMatkapoikkeamat[[#Headers],[Touko]]),1),INDEX(KoulutusJaMatkaSuunniteltu[],,1),0),MATCH(KoulutusJaMatkapoikkeamat[[#Headers],[Touko]],KoulutusJaMatkaSuunniteltu[#Headers],0))-INDEX(KoulutusJaMatkaTodellinen[],MATCH(INDEX(KoulutusJaMatkapoikkeamat[],ROW()-ROW(KoulutusJaMatkapoikkeamat[[#Headers],[Touko]]),1),INDEX(KoulutusJaMatkaSuunniteltu[],,1),0),MATCH(KoulutusJaMatkapoikkeamat[[#Headers],[Touko]],KoulutusJaMatkaTodellinen[#Headers],0)) -> 1,200.00 € | H32: =INDEX(KoulutusJaMatkaSuunniteltu[],MATCH(INDEX(KoulutusJaMatkapoikkeamat[],ROW()-ROW(KoulutusJaMatkapoikkeamat[[#Headers],[Kesä]]),1),INDEX(KoulutusJaMatkaSuunniteltu[],,1),0),MATCH(KoulutusJaMatkapoikkeamat[[#Headers],[Kesä]],KoulutusJaMatkaSuunniteltu[#Headers],0))-INDEX(KoulutusJaMatkaTodellinen[],MATCH(INDEX(KoulutusJaMatkapoikkeamat[],ROW()-ROW(KoulutusJaMatkapoikkeamat[[#Headers],[Kesä]]),1),INDEX(KoulutusJaMatkaSuunniteltu[],,1),0),MATCH(KoulutusJaMatkapoikkeamat[[#Headers],[Kesä]],KoulutusJaMatkaTodellinen[#Headers],0)) -> -1,500.00 € | I32: =INDEX(KoulutusJaMatkaSuunniteltu[],MATCH(INDEX(KoulutusJaMatkapoikkeamat[],ROW()-ROW(KoulutusJaMatkapoikkeamat[[#Headers],[Heinä]]),1),INDEX(KoulutusJaMatkaSuunniteltu[],,1),0),MATCH(KoulutusJaMatkapoikkeamat[[#Headers],[Heinä]],KoulutusJaMatkaSuunniteltu[#Headers],0))-INDEX(KoulutusJaMatkaTodellinen[],MATCH(INDEX(KoulutusJaMatkapoikkeamat[],ROW()-ROW(KoulutusJaMatkapoikkeamat[[#Headers],[Heinä]]),1),INDEX(KoulutusJaMatkaSuunniteltu[],,1),0),MATCH(KoulutusJaMatkapoikkeamat[[#Headers],[Heinä]],KoulutusJaMatkaTodellinen[#Headers],0)) -> 2,000.00 € | J32: =INDEX(KoulutusJaMatkaSuunniteltu[],MATCH(INDEX(KoulutusJaMatkapoikkeamat[],ROW()-ROW(KoulutusJaMatkapoikkeamat[[#Headers],[Elo]]),1),INDEX(KoulutusJaMatkaSuunniteltu[],,1),0),MATCH(KoulutusJaMatkapoikkeamat[[#Headers],[Elo]],KoulutusJaMatkaSuunniteltu[#Headers],0))-INDEX(KoulutusJaMatkaTodellinen[],MATCH(INDEX(KoulutusJaMatkapoikkeamat[],ROW()-ROW(KoulutusJaMatkapoikkeamat[[#Headers],[Elo]]),1),INDEX(KoulutusJaMatkaSuunniteltu[],,1),0),MATCH(KoulutusJaMatkapoikkeamat[[#Headers],[Elo]],KoulutusJaMatkaTodellinen[#Headers],0)) -> 2,000.00 € | K32: =INDEX(KoulutusJaMatkaSuunniteltu[],MATCH(INDEX(KoulutusJaMatkapoikkeamat[],ROW()-ROW(KoulutusJaMatkapoikkeamat[[#Headers],[Syys]]),1),INDEX(KoulutusJaMatkaSuunniteltu[],,1),0),MATCH(KoulutusJaMatkapoikkeamat[[#Headers],[Syys]],KoulutusJaMatkaSuunniteltu[#Headers],0))-INDEX(KoulutusJaMatkaTodellinen[],MATCH(INDEX(KoulutusJaMatkapoikkeamat[],ROW()-ROW(KoulutusJaMatkapoikkeamat[[#Headers],[Syys]]),1),INDEX(KoulutusJaMatkaSuunniteltu[],,1),0),MATCH(KoulutusJaMatkapoikkeamat[[#Headers],[Syys]],KoulutusJaMatkaTodellinen[#Headers],0)) -> 2,000.00 € | L32: =INDEX(KoulutusJaMatkaSuunniteltu[],MATCH(INDEX(KoulutusJaMatkapoikkeamat[],ROW()-ROW(KoulutusJaMatkapoikkeamat[[#Headers],[Loka]]),1),INDEX(KoulutusJaMatkaSuunniteltu[],,1),0),MATCH(KoulutusJaMatkapoikkeamat[[#Headers],[Loka]],KoulutusJaMatkaSuunniteltu[#Headers],0))-INDEX(KoulutusJaMatkaTodellinen[],MATCH(INDEX(KoulutusJaMatkapoikkeamat[],ROW()-ROW(KoulutusJaMatkapoikkeamat[[#Headers],[Loka]]),1),INDEX(KoulutusJaMatkaSuunniteltu[],,1),0),MATCH(KoulutusJaMatkapoikkeamat[[#Headers],[Loka]],KoulutusJaMatkaTodellinen[#Headers],0)) -> 2,000.00 € | M32: =INDEX(KoulutusJaMatkaSuunniteltu[],MATCH(INDEX(KoulutusJaMatkapoikkeamat[],ROW()-ROW(KoulutusJaMatkapoikkeamat[[#Headers],[Marras]]),1),INDEX(KoulutusJaMatkaSuunniteltu[],,1),0),MATCH(KoulutusJaMatkapoikkeamat[[#Headers],[Marras]],KoulutusJaMatkaSuunniteltu[#Headers],0))-INDEX(KoulutusJaMatkaTodellinen[],MATCH(INDEX(KoulutusJaMatkapoikkeamat[],ROW()-ROW(KoulutusJaMatkapoikkeamat[[#Headers],[Marras]]),1),INDEX(KoulutusJaMatkaSuunniteltu[],,1),0),MATCH(KoulutusJaMatkapoikkeamat[[#Headers],[Marras]],KoulutusJaMatkaTodellinen[#Headers],0)) -> 2,000.00 € | N32: =INDEX(KoulutusJaMatkaSuunniteltu[],MATCH(INDEX(KoulutusJaMatkapoikkeamat[],ROW()-ROW(KoulutusJaMatkapoikkeamat[[#Headers],[Joulu]]),1),INDEX(KoulutusJaMatkaSuunniteltu[],,1),0),MATCH(KoulutusJaMatkapoikkeamat[[#Headers],[Joulu]],KoulutusJaMatkaSuunniteltu[#Headers],0))-INDEX(KoulutusJaMatkaTodellinen[],MATCH(INDEX(KoulutusJaMatkapoikkeamat[],ROW()-ROW(KoulutusJaMatkapoikkeamat[[#Headers],[Joulu]]),1),INDEX(KoulutusJaMatkaSuunniteltu[],,1),0),MATCH(KoulutusJaMatkapoikkeamat[[#Headers],[Joulu]],KoulutusJaMatkaTodellinen[#Headers],0)) -> 2,000.00 € | O32: =SUM(KoulutusJaMatkapoikkeamat[[#This Row],[Tammi]:[Joulu]]) -> 13,700.00 €
B33: Välisumma | C33: =SUBTOTAL(109,KoulutusJaMatkapoikkeamat[Tammi]) -> 1,200.00 € | D33: =SUBTOTAL(109,KoulutusJaMatkapoikkeamat[Helmi]) -> -600.00 € | E33: =SUBTOTAL(109,KoulutusJaMatkapoikkeamat[Maalis]) -> 1,200.00 € | F33: =SUBTOTAL(109,KoulutusJaMatkapoikkeamat[Huhti]) -> 1,200.00 € | G33: =SUBTOTAL(109,KoulutusJaMatkapoikkeamat[Touko]) -> 2,000.00 € | H33: =SUBTOTAL(109,KoulutusJaMatkapoikkeamat[Kesä]) -> -2,300.00 € | I33: =SUBTOTAL(109,KoulutusJaMatkapoikkeamat[Heinä]) -> 4,000.00 € | J33: =SUBTOTAL(109,KoulutusJaMatkapoikkeamat[Elo]) -> 4,000.00 € | K33: =SUBTOTAL(109,KoulutusJaMatkapoikkeamat[Syys]) -> 4,000.00 € | L33: =SUBTOTAL(109,KoulutusJaMatkapoikkeamat[Loka]) -> 4,000.00 € | M33: =SUBTOTAL(109,KoulutusJaMatkapoikkeamat[Marras]) -> 4,000.00 € | N33: =SUBTOTAL(109,KoulutusJaMatkapoikkeamat[Joulu]) -> 4,000.00 € | O33: =SUBTOTAL(109,KoulutusJaMatkapoikkeamat[VUOSI]) -> 26,700.00 €
A35: Kustannuspoikkeamat lasketaan automaattisesti Kokonaispoikkeamat-taulukkoon oikealla olevasta solusta aloittaen. | B35: YHTEENSÄ | C35: Tammi | D35: Helmi | E35: Maalis | F35: Huhti | G35: Touko | H35: Kesä | I35: Heinä | J35: Elo | K35: Syys | L35: Loka | M35: Marras | N35: Joulu | O35: Vuosi
B36: Kuukausittaiset todelliset kulut | C36: =KoulutusJaMatkapoikkeamat[[#Totals],[Tammi]]+Markkinointipoikkeamat[[#Totals],[Tammi]]+Toimistopoikkeamat[[#Totals],[Tammi]]+Työntekijäpoikkeamat[[#Totals],[Tammi]] -> 1,738.00 € | D36: =KoulutusJaMatkapoikkeamat[[#Totals],[Helmi]]+Markkinointipoikkeamat[[#Totals],[Helmi]]+Toimistopoikkeamat[[#Totals],[Helmi]]+Työntekijäpoikkeamat[[#Totals],[Helmi]] -> -984.00 € | E36: =KoulutusJaMatkapoikkeamat[[#Totals],[Maalis]]+Markkinointipoikkeamat[[#Totals],[Maalis]]+Toimistopoikkeamat[[#Totals],[Maalis]]+Työntekijäpoikkeamat[[#Totals],[Maalis]] -> 1,255.00 € | F36: =KoulutusJaMatkapoikkeamat[[#Totals],[Huhti]]+Markkinointipoikkeamat[[#Totals],[Huhti]]+Toimistopoikkeamat[[#Totals],[Huhti]]+Työntekijäpoikkeamat[[#Totals],[Huhti]] -> 301.00 € | G36: =KoulutusJaMatkapoikkeamat[[#Totals],[Touko]]+Markkinointipoikkeamat[[#Totals],[Touko]]+Toimistopoikkeamat[[#Totals],[Touko]]+Työntekijäpoikkeamat[[#Totals],[Touko]] -> 1,440.00 € | H36: =KoulutusJaMatkapoikkeamat[[#Totals],[Kesä]]+Markkinointipoikkeamat[[#Totals],[Kesä]]+Toimistopoikkeamat[[#Totals],[Kesä]]+Työntekijäpoikkeamat[[#Totals],[Kesä]] -> -3,744.00 € | I36: =KoulutusJaMatkapoikkeamat[[#Totals],[Heinä]]+Markkinointipoikkeamat[[#Totals],[Heinä]]+Toimistopoikkeamat[[#Totals],[Heinä]]+Työntekijäpoikkeamat[[#Totals],[Heinä]] -> 134,695.00 € | J36: =KoulutusJaMatkapoikkeamat[[#Totals],[Elo]]+Markkinointipoikkeamat[[#Totals],[Elo]]+Toimistopoikkeamat[[#Totals],[Elo]]+Työntekijäpoikkeamat[[#Totals],[Elo]] -> 138,918.00 € | K36: =KoulutusJaMatkapoikkeamat[[#Totals],[Syys]]+Markkinointipoikkeamat[[#Totals],[Syys]]+Toimistopoikkeamat[[#Totals],[Syys]]+Työntekijäpoikkeamat[[#Totals],[Syys]] -> 135,918.00 € | L36: =KoulutusJaMatkapoikkeamat[[#Totals],[Loka]]+Markkinointipoikkeamat[[#Totals],[Loka]]+Toimistopoikkeamat[[#Totals],[Loka]]+Työntekijäpoikkeamat[[#Totals],[Loka]] -> 140,918.00 € | M36: =KoulutusJaMatkapoikkeamat[[#Totals],[Marras]]+Markkinointipoikkeamat[[#Totals],[Marras]]+Toimistopoikkeamat[[#Totals],[Marras]]+Työntekijäpoikkeamat[[#Totals],[Marras]] -> 136,218.00 € | N36: =KoulutusJaMatkapoikkeamat[[#Totals],[Joulu]]+Markkinointipoikkeamat[[#Totals],[Joulu]]+Toimistopoikkeamat[[#Totals],[Joulu]]+Työntekijäpoikkeamat[[#Totals],[Joulu]] -> 140,018.00 € | O36: =KoulutusJaMatkapoikkeamat[[#Totals],[VUOSI]]+Markkinointipoikkeamat[[#Totals],[VUOSI]]+Toimistopoikkeamat[[#Totals],[VUOSI]]+Työntekijäpoikkeamat[[#Totals],[VUOSI]] -> 826,691.00 €
B37: YHTEENSÄ Todelliset kulut | C37: =SUM($C$36:C36) -> 1,738.00 € | D37: =SUM($C$36:D36) -> 754.00 € | E37: =SUM($C$36:E36) -> 2,009.00 € | F37: =SUM($C$36:F36) -> 2,310.00 € | G37: =SUM($C$36:G36) -> 3,750.00 € | H37: =SUM($C$36:H36) -> 6.00 € | I37: =SUM($C$36:I36) -> 134,701.00 € | J37: =SUM($C$36:J36) -> 273,619.00 € | K37: =SUM($C$36:K36) -> 409,537.00 € | L37: =SUM($C$36:L36) -> 550,455.00 € | M37: =SUM($C$36:M36) -> 686,673.00 € | N37: =SUM($C$36:N36) -> 826,691.00 €

Sheet KULUANALYYSI
A1: Vuosittaiset suunnitellut ja todelliset kulut, kustannuspoikkeamat ja kustannuspoikkeaman prosenttiluku automaattisesti tämän laskentataulukon vastaaviin kululuokkiin. Tämän sarakkeen soluissa on hyödyllisiä ohjeita tämän laskentataulukon käyttöön. Aloita siirtymällä nuolella alaspäin.
A2: Yrityksen nimi päivitetään automaattisesti oikealla olevaan soluun. Lisää logo soluun F2. | B2: ='SUUNNITELLUT KULUT'!B2:D3 -> Yrityksen nimi | F2: Logon paikkamerkki on tässä solussa.
A3: Tämän laskentataulukon otsikko on solussa E3. Seuraava ohje on solussa A5. | E3: =laskentataulukon_otsikko -> Yksityiskohtaiset kuluarviot
A5: Suunnitellut kulut, todelliset kulut, kustannuspoikkeamat ja kustannuspoikkeaman prosenttiluku automaattisesti Analyysi-taulukkoon oikealla olevasta solusta aloittaen. Seuraava ohje on solussa A12. | B5: Kululuokka | C5: Suunnitellut kulut | D5: Todelliset kulut | E5: Kustannuspoikkeamat | F5: Kustannuspoikkeaman prosenttiluku
B6: Työntekijäkulut | C6: =TyöntekijäSuunniteltu[[#Totals],[VUOSI]] -> 1,355,090.00 € | D6: =TyöntekijäTodellinen[[#Totals],[VUOSI]] -> 659,130.00 € | E6: =C6-D6 -> 695,960.00 € | F6: =E6/C6 -> 51%
B7: ='SUUNNITELLUT KULUT'!B10 -> Toimistokulut | C7: =ToimistoSuunniteltu[[#Totals],[VUOSI]] -> 138,740.00 € | D7: =ToimistoTodellinen[[#Totals],[VUOSI]] -> 69,350.00 € | E7: =C7-D7 -> 69,390.00 € | F7: =E7/C7 -> 50%
B8: ='SUUNNITELLUT KULUT'!B21 -> Markkinointikulut | C8: =MarkkinointiSuunniteltu[[#Totals],[VUOSI]] -> 67,800.00 € | D8: =MarkkinointiTodellinen[[#Totals],[VUOSI]] -> 33,159.00 € | E8: =C8-D8 -> 34,641.00 € | F8: =E8/C8 -> 51%
B9: ='SUUNNITELLUT KULUT'!B30 -> Koulutus/matka | C9: =KoulutusJaMatkaSuunniteltu[[#Totals],[VUOSI]] -> 48,000.00 € | D9: =KoulutusJaMatkaTodellinen[[#Totals],[VUOSI]] -> 21,300.00 € | E9: =C9-D9 -> 26,700.00 € | F9: =E9/C9 -> 56%
B10: ='SUUNNITELLUT KULUT'!B35 -> SUMMA | C10: ='SUUNNITELLUT KULUT'!O36 -> 1,609,630.00 € | D10: ='TODELLISET KULUT'!O36 -> 782,939.00 € | E10: =C10-D10 -> 826,691.00 € | F10: =E10/C10 -> 51%
A12: Suunnitellut kulut -ympyräkaavio on oikealla olevassa solussa ja Todelliset kulut -ympyräkaavio solussa D12. Seuraava ohje on solussa A14. | B12: Suunnitellut kulut kululuokittain esittävä ympyräkaavio on tässä solussa. | D12: Todelliset kulut kululuokittain esittävä ympyräkaavio on tässä solussa.
A14: Suunniteltu ja todellinen kulut sekä poikkeama näkyvät Kuukausittaiset kulut -kaaviossa oikealla olevassa solussa.
